Workbook

Sheet 通过名单
A1: 附件1
A2: 【开平市】江门市外贸高质量创新发展资金审核通过名单
A3: 序号 | B3: 企业名称 | C3: 统一社会信用代码 | D3: 支持方向 | E3: 项目类别 | F3: 项目名称 | G3: 申请支持金额（元） | H3: 核准可申请支持金额（元） | I3: 备注 | J3: 项目申报人 | K3: 手机号 | L3: 开户银行 | M3: 开户户名 | N3: 银行账号
A4: =ROW()-3 -> 1 | B4: 开平市锦强五金制品有限公司 | C4: 91440783MA53EQM9X8 | D4: 开拓市场 | E4: 境外参展 | F4: 2024年6月13日-6月15日 迪拜世贸中心 2023年第十四届中国（阿联酋）贸易博览会 | G4: 17,906.00 | H4: 17,906.00 | J4: 邝锦源 | K4: 18824076668 | L4: 广东开平农村商业银行股份有限公司水口支行 | M4: 开平市锦强五金制品有限公司 | N4: 80020000013805231
A5: =ROW()-3 -> 2 | B5: 开平市朝升卫浴有限公司 | C5: 91440783741747873R | D5: 开拓市场 | E5: 境外参展 | F5: 2023年第十五届中国（阿联酋）贸易博览会 | G5: 20,000.00 | H5: 20,000.00 | J5: 梁丽莹 | K5: 13428286143 | L5: 中国工商银行股份有限公司开平水口科技支行 | M5: 广东华艺卫浴实业有限公司 | N5: 2012008109024805928
A6: 3 | B6: 开平市诺曼卫浴有限公司 | C6: 914407837912243684 | D6: 开拓市场 | E6: 境外参展 | F6: 2023年09月20日-09月22日南非（约翰内斯堡）2023年第七届中国（南非）贸易博览会 | G6: 20,000.00 | H6: 20,000.00 | J6: 邝群仙 | K6: 13809605529 | L6: 中国银行 | M6: 开平市朝升卫浴有限公司 | N6: 630171951180
A7: 4 | B7: 开平市新明光五金制品有限公司 | C7: 9144078374917810XU | D7: 开拓市场 | E7: 境外参展 | F7: 2023年第四届中国（印尼）贸易博览会 | G7: 20,000.00 | H7: 20,000.00 | J7: 岑彩婷 | K7: 18933158882 | L7: 广东开平农村商业银行股份有限公司翠山湖科技支行 | M7: 开平市亿展阀芯有限公司 | N7: 80020000009698007
A8: 5 | B8: 开平市智康卫浴有限公司 | C8: 914407830568482469 | D8: 开拓市场 | E8: 境外参展 | F8: 2023年第五届中国（印尼）贸易博览会 | G8: 20,000.00 | H8: 20,000.00 | J8: 邝锦豪 | K8: 15907506208 | L8: 中国建设银行股份有限公司江门开平水口支行 | M8: 开平市诺曼卫浴有限公司 | N8: 44001670905053000484
A9: 6 | B9: 开平市谛玛卫浴有限公司 | C9: 91440783304208484F | D9: 开拓市场 | E9: 境外参展 | F9: 2023年12月19日-12月21日-阿联酋（迪拜）2023年第十五届中国（阿联酋）贸易博览会 | G9: 20,000.00 | H9: 20,000.00 | J9: 黄远健 | K9: 19107506507 | L9: 广东开平农村商业银行股份有限公司 | M9: 开平市新明光五金制品有限公司 | N9: 80020000000463129
A10: 7 | B10: 开平市谛玛卫浴有限公司 | C10: 91440783304208484F | D10: 开拓市场 | E10: 境外参展 | F10: 2023年12月5日-12月7日-墨西哥（墨西哥城）2023年第八届中国（墨西哥）贸易博览会 | G10: 20,000.00 | H10: 20,000.00 | J10: 黄先生 | K10: 19107506507 | L10: 广东开平农村商业银行股份有限公司 | M10: 开平市新明光五金制品有限公司 | N10: 80020000000463129
A11: 8 | B11: 开平市领雅厨卫有限公司 | C11: 91440784314926199J | D11: 开拓市场 | E11: 境外参展 | F11: 2023年第十届中国（巴西）贸易博览会（秋季展） | G11: 20,000.00 | H11: 20,000.00 | J11: 黄秀云 | K11: 13422641961 | L11: 中国工商银行股份有限公司江门开平水口科技支行 | M11: 开平市和洋洁具有限公司 | N11: 2012008109200064945
A12: 9 | B12: 开平市伯源卫浴有限公司 | C12: 91440783MA51M77439 | D12: 开拓市场 | E12: 境外参展 | F12: 2023年第十五届中国（阿联酋）贸易博览会 | G12: 20,000.00 | H12: 20,000.00 | J12: 区金容 | K12: 13822369233 | L12: 中国工商银行股份有限公司 | M12: 开平力蒲卫浴有限公司 | N12: 2012008109024216838
A13: 10 | B13: 江门市凯逸卫浴有限公司 | C13: 91440783MABULGW9XP | D13: 开拓市场 | E13: 境外参展 | F13: 2023年第十五届中国（阿联酋）贸易博览会 | G13: 20,000.00 | H13: 20,000.00 | J13: 徐艺文 | K13: 13725999568 | L13: 中国工商银行 | M13: 开平市金特卫浴有限公司 | N13: 2012032409024810913
A14: 11 | B14: 江门市凯逸卫浴有限公司 | C14: 91440783MABULGW9XP | D14: 开拓市场 | E14: 境外参展 | F14: 2023年越南胡志明市国际建材展览会 | G14: 20,000.00 | H14: 20,000.00 | J14: 邓小姐 | K14: 13427165755 | L14: 广东开平农村商业银行股份有限公司 | M14: 开平市惠普卫浴实业有限公司 | N14: 80020000000463243
A15: 12 | B15: 江门市凯逸卫浴有限公司 | C15: 91440783MABULGW9XP | D15: 开拓市场 | E15: 境外参展 | F15: 2023年第四届中国（印尼）贸易展览会 | G15: 20,000.00 | H15: 20,000.00 | J15: 何惠芳 | K15: 13555681163 | L15: 中国农业银行 | M15: 开平市力泰五金制品有限公司 | N15: 44402601040007006
A16: 13 | B16: 开平市宝来塑胶制品有限公司 | C16: 9144078374709798XT | D16: 开拓市场 | E16: 境外参展 | F16: 2023年12月7日-12月9日越南国际贸易展览会 | G16: 20,000.00 | H16: 20,000.00 | J16: 关颖莹 | K16: 18802550728 | L16: 中国工商银行 | M16: 广东顶尖管业科技有限公司 | N16: 2012008109024857785
A17: 14 | B17: 开平市宝来塑胶制品有限公司 | C17: 9144078374709798XT | D17: 开拓市场 | E17: 境外参展 | F17: 2023年6月18日—6月20日 德国科隆园艺展览会 -SPOGA+GAFA 2023 | G17: 20,000.00 | H17: 20,000.00 | J17: 甄劲云 | K17: 13426729221 | L17: 广东开平农村商业银行股份有限公司 | M17: 开平市东陶压铸卫浴有限公司 | N17: 80020000000456600
A18: 15 | B18: 开平市易洁卫浴有限公司 | C18: 914407833232734337 | D18: 开拓市场 | E18: 境外参展 | F18: 2023年12月19日-12月21日阿联酋（迪拜）2023年第十五届中国（阿联酋）贸易博览会 | G18: 20,000.00 | H18: 20,000.00 | J18: 李建海 | K18: 13902551679 | L18: 中国建设银行江门开平水口支行 | M18: 开平市汉玛克卫浴有限公司 | N18: 44001670905059001688
A19: 16 | B19: 开平市鸿士达卫浴实业有限公司 | C19: 91440783724392193T | D19: 开拓市场 | E19: 境外参展 | F19: 第27届中国国际厨房、卫浴设施展览会 | G19: 40,000.00 | H19: 40,000.00 | J19: 孔飞球 | K19: 13926932069 | L19: 中国建设银行股份有限公司开平支行 | M19: 开平市智康卫浴有限公司 | N19: 44001670905053004442
A20: 17 | B20: 开平市叁拾玖度卫浴有限公司 | C20: 91440783MA555MJ76P | D20: 开拓市场 | E20: 境外参展 | F20: 2023 年第十五届中国(阿联酋)贸易博览会 | G20: 40,000.00 | H20: 40,000.00 | J20: 张卉 | K20: 13828056883 | L20: 中国银行 | M20: 开平市谛玛卫浴有限公司 | N20: 660063953302
A21: 18 | B21: 开平市思华卫浴有限公司 | C21: 91440783066682040U | D21: 开拓市场 | E21: 境外参展 | F21: 2023 年第十四届中国（阿联酋）贸易博览会 | G21: 20,000.00 | H21: 20,000.00 | J21: 张卉 | K21: 13828056883 | L21: 中国银行 | M21: 开平市谛玛卫浴有限公司 | N21: 660063953302
A22: 19 | B22: 开平市广盛卫浴有限公司 | C22: 914407836665486031 | D22: 开拓市场 | E22: 境外参展 | F22: 2023年12月19日-12月21日-阿联酋（迪拜）-2023年第十五届中国（阿联酋）贸易博览会 | G22: 20,000.00 | H22: 20,000.00 | J22: 孙群爱 | K22: 13824023268 | L22: 中国农业银行开平水口支行 | M22: 开平市嘉恩卫浴有限公司 | N22: 44402601040007139
A23: 20 | B23: 广东粤轻卫浴科技有限公司 | C23: 91440783194282164T | D23: 开拓市场 | E23: 境外参展 | F23: 2023年第十五届中国(阿联酋)贸易博览会 | G23: 40,000.00 | H23: 40,000.00 | J23: 吴永稳 | K23: 13672991196 | L23: 开平农商行 | M23: 开平市领雅厨卫有限公司 | N23: 80020000019411922
A24: 21 | B24: 江门市一六八卫浴科技有限公司 | C24: 91440783MA4UKH0U2U | D24: 开拓市场 | E24: 境外参展 | F24: 12月19日-12月21日-阿联酋- 2023年第十五届中国（阿联酋）贸易展览会 | G24: 40,000.00 | H24: 40,000.00 | J24: 吴永稳 | K24: 13672991196 | L24: 开平农商行 | M24: 开平市领雅厨卫有限公司 | N24: 80020000019411922
A25: 22 | B25: 江门市一六八卫浴科技有限公司 | C25: 91440783MA4UKH0U2U | D25: 开拓市场 | E25: 境外参展 | F25: 6月13日-6月15日-阿联酋-2023年第十四届中国（阿联酋）贸易博览会 | G25: 40,000.00 | H25: 40,000.00 | J25: 刘欣 | K25: 13923067077 | L25: 中国农业银行股份有限公司 | M25: 开平市伯源卫浴有限公司 | N25: 44400801040004795
A26: 23 | B26: 江门锦鼎金属制品实业有限公司 | C26: 91440783304216126P | D26: 开拓市场 | E26: 境外参展 | F26: 2023年6月13日-6月15日迪拜2023年第十四届中国（阿联酋）贸易博览会（春季展） | G26: 20,000.00 | H26: 20,000.00 | J26: 罗小姐 | K26: 13189879290 | L26: 中国银行 | M26: 江门市凯逸卫浴有限公司 | N26: 700376240339
A27: 24 | B27: 江门市德美佳厨具有限公司 | C27: 9144078334540051X5 | D27: 开拓市场 | E27: 境外参展 | F27: 2023年09月20日-09月22日南非2023年第七届中 国（南非）贸易博览会） | G27: 20,000.00 | H27: 20,000.00 | J27: 罗小姐 | K27: 13189879290 | L27: 中国银行 | M27: 江门市凯逸卫浴有限公司 | N27: 700376240339
A28: 25 | B28: 江门市德美佳厨具有限公司 | C28: 9144078334540051X5 | D28: 开拓市场 | E28: 境外参展 | F28: 2023年6月13日-6月15日-阿联酋（迪拜）-第十四届中国(阿联酋)贸易博览会 | G28: 20,000.00 | H28: 20,000.00 | J28: 罗小姐 | K28: 13189879290 | L28: 中国银行 | M28: 江门市凯逸卫浴有限公司 | N28: 700376240339
A29: 26 | B29: 开平市海宏卫浴实业有限公司 | C29: 91440783MA53XGAW8N | D29: 开拓市场 | E29: 境外参展 | F29: 2023年第十五届中国（阿联酋）贸易博览会 | G29: 20,000.00 | H29: 20,000.00 | J29: 陈柳仙 | K29: 13555676812 | L29: 中国建设银行股份有限公司开平支行 | M29: 开平市宝来塑胶制品有限公司 | N29: 44001670901051286933
A30: 27 | B30: 开平市奇迪科压铸卫浴有限公司 | C30: 914407006981443122 | D30: 开拓市场 | E30: 境外参展 | F30: 2023年第十届中国（巴西）贸易博览会 | G30: 20,000.00 | H30: 20,000.00 | J30: 陈柳仙 | K30: 13555676812 | L30: 中国建设银行股份有限公司开平支行 | M30: 开平市宝来塑胶制品有限公司 | N30: 44001670901051286933
A31: 28 | B31: 开平市奇迪科压铸卫浴有限公司 | C31: 914407006981443122 | D31: 开拓市场 | E31: 境外参展 | F31: 2023年第十五届中国（阿联酋）贸易博览会 | G31: 20,000.00 | H31: 20,000.00 | J31: 邝杏柔 | K31: 13828063616 | L31: 中国工商银行股份有限公司开平水口科技支行 | M31: 开平柏斯高卫浴有限公司 | N31: 2012008109024213981
A32: 29 | B32: 开平市洁士五金科技有限公司 | C32: 91440783MA55Y6YRXT | D32: 开拓市场 | E32: 境外参展 | F32: 2023年第十五届中国（阿联酋）贸易博览会 | G32: 20,000.00 | H32: 20,000.00 | J32: 张健民 | K32: 13528315982 | L32: 中国建设银行股份有限公司开平支行 | M32: 开平市凯赛德水暖配件有限公司 | N32: 44001670901053004626
A33: 30 | B33: 江门市诺基山厨卫科技有限公司 | C33: 91440784MA4WCEB31K | D33: 开拓市场 | E33: 境外参展 | F33: 2023年第十五届中国（阿联酋）贸易博览会 | G33: 20,000.00 | H33: 20,000.00 | J33: 涂方建 | K33: 13970375943 | L33: 中国工商银行股份有限公司 | M33: 开平市方剑卫浴有限公司 | N33: 2012008109200045113
A34: 31 | B34: 广东高盛卫浴科技有限公司 | C34: 91440783MA4W64E14N | D34: 开拓市场 | E34: 境外参展 | F34: 2023年12月11日到13日年第十届中国（巴西）外贸博览会 | G34: 20,000.00 | H34: 20,000.00 | J34: 黎德荣 | K34: 13809605850 | L34: 中国建设银行 | M34: 开平市图恩卫浴有限公司 | N34: 44001670905053004257
A35: 32 | B35: 开平市达豪日化科技有限公司 | C35: 914407836615297294 | D35: 开拓市场 | E35: 境外参展 | F35: 2023年11月23-25日-雅加达-第五届中国(印尼)贸易博览会 | G35: 20,000.00 | H35: 20,000.00 | J35: 陈贤香 | K35: 13630469717 | L35: 中国农业银行 | M35: 开平市佳力五金制品有限公司 | N35: 44-402601040009226
A36: 33 | B36: 开平市达豪日化科技有限公司 | C36: 914407836615297294 | D36: 开拓市场 | E36: 境外参展 | F36: 2023年12月19-21日-迪拜-第十五届中国(阿联酋)贸易博览会 | G36: 20,000.00 | H36: 20,000.00 | J36: 谈烈钦 | K36: 13902551635 | L36: 工商银行 | M36: 开平市伊丹卫浴实业有限公司 | N36: 2012008109024811552
A37: 34 | B37: 开平市本铃机车密封垫有限公司 | C37: 914407837350253646 | D37: 开拓市场 | E37: 境外参展 | F37: 2023年8月21日-8月24日俄罗斯（莫斯科）国际汽车零配件及售后服务展览会 | G37: 20,000.00 | H37: 20,000.00 | J37: 刘巧 | K37: 13827061657 | L37: 中国银行股份有限公司 | M37: 开平市易洁卫浴有限公司 | N37: 632764632236
A38: 35 | B38: 开平市卓阳卫浴实业有限公司 | C38: 9144078355557864X9 | D38: 开拓市场 | E38: 境外参展 | F38: 2023年第十五届中国（阿联酋）贸易博览会 | G38: 20,000.00 | H38: 20,000.00 | J38: 李嘉威 | K38: 13902241704 | L38: 广东开平农村商业银行股份有限公司 | M38: 开平金牌洁具有限公司 | N38: 80020000000443352
A39: 开拓市场境内参展项目小计 | G39: =SUM(G4:G38) -> 797,906.00 | H39: =SUM(H4:H38) -> 797,906.00 | J39: 余泽南 | K39: 18929089170 | L39: 广东开平农村商业银行股份有限公司苍城支行 | M39: 联冠（开平）胶粘制品有限公司 | N39: 80020000000484638
A40: =ROW()-4 -> 36 | B40: 开平市预发卫浴有限公司 | C40: 914407836649671859 | D40: 开拓市场 | E40: 境内参展 | F40: 第27届中国国际厨房、卫浴设施展览会 | G40: 40,000.00 | H40: 40,000.00 | J40: 陈炜 | K40: 13809607974 | L40: 中国工商银行 | M40: 开平市联洋卫浴配件有限公司 | N40: 2012008109248035450
A41: =ROW()-4 -> 37 | B41: 开平市亿展阀芯有限公司 | C41: 91440783568210545X | D41: 开拓市场 | E41: 境内参展 | F41: 第27届中国国际厨房、卫浴设施展览会 | G41: 40,000.00 | H41: 40,000.00 | J41: 邝雪珠 | K41: 13431783592 | L41: 广东开平农村商业银行股份有限公司 | M41: 开平市汉朗莎卫浴实业有限公司 | N41: 80020000000456394
A42: 38 | B42: 开平市新明光五金制品有限公司 | C42: 9144078374917810XU | D42: 开拓市场 | E42: 境内参展 | F42: 第 27 届中国国际厨房、卫浴设施展览会 | G42: 20,000.00 | H42: 20,000.00 | J42: 谭润馀 | K42: 18219110681 | L42: 中国银行 | M42: 开平市利德信进出口贸易有限公司 | N42: 654857748808
A43: 39 | B43: 开平市和洋洁具有限公司 | C43: 91440783MA529L282H | D43: 开拓市场 | E43: 境内参展 | F43: 第 27 届中国国际厨房、卫浴设施展览会 | G43: 30,000.00 | H43: 30,000.00 | J43: 李志刚 | K43: 13926825717 | L43: 中国建设银行股份有限公司江门开平水口支行 | M43: 开平赛道龙头配件有限公司 | N43: 44001670905051300833
A44: 40 | B44: 开平力蒲卫浴有限公司 | C44: 91440700766592951G | D44: 开拓市场 | E44: 境内参展 | F44: 第27届中国国际厨房、卫浴设施展览会 | G44: 40,000.00 | H44: 40,000.00 | J44: 袁佩怡 | K44: 13760517615 | L44: 中国农业银行 | M44: 开平市思华卫浴有限公司 | N44: 4440801040002757
A45: 41 | B45: 开平市金特卫浴有限公司 | C45: 91440783076659370D | D45: 开拓市场 | E45: 境内参展 | F45: 第27届中国国际厨房、卫浴设施展览会 | G45: 40,000.00 | H45: 40,000.00 | J45: 张艳娟 | K45: 15015010948 | L45: 中国工商银行 | M45: 开平市广盛卫浴有限公司 | N45: 2012008109024837175
A46: 42 | B46: 开平赛道龙头配件有限公司 | C46: 91440700753696495F | D46: 开拓市场 | E46: 境内参展 | F46: 第27届中国国际厨房、卫浴设施展览会 | G46: 40,000.00 | H46: 40,000.00 | J46: 张艳娟 | K46: 15015010948 | L46: 中国工商银行 | M46: 开平市广盛卫浴有限公司 | N46: 2012008109024837175
A47: 43 | B47: 开平市惠普卫浴实业有限公司 | C47: 91440783663327434D | D47: 开拓市场 | E47: 境内参展 | F47: 第 27 届中国国际厨房、卫浴设施展览会 | G47: 20,000.00 | H47: 20,000.00 | J47: 陈信剑 | K47: 13528328016 | L47: 中国银行 | M47: 广东粤轻卫浴科技有限公司 | N47: 634057749151
A48: 44 | B48: 开平市力泰五金制品有限公司 | C48: 9144078377923263XR | D48: 开拓市场 | E48: 境内参展 | F48: 第27届中国国际厨房、卫浴设施展览会 | G48: 20,000.00 | H48: 20,000.00 | J48: 钱超 | K48: 13726157852 | L48: 中国农业银行开平水口支行 | M48: 开平市预发卫浴有限公司 | N48: 44402601040008509
A49: 45 | B49: 广东顶尖管业科技有限公司 | C49: 914407836947263826 | D49: 开拓市场 | E49: 境内参展 | F49: 第27届中国国际厨房、卫浴设施展览会 | G49: 40,000.00 | H49: 40,000.00 | J49: 周蒲香 | K49: 13794206031 | L49: 广东开平农村商业银行股份有限公司 | M49: 江门市一六八卫浴科技有限公司 | N49: 80020000008227639
A50: 46 | B50: 开平市东陶压铸卫浴有限公司 | C50: 91440783694709478K | D50: 开拓市场 | E50: 境内参展 | F50: (第27届）中国(上海)国际厨房、卫浴设施展览会 | G50: 20,000.00 | H50: 20,000.00 | J50: 周蒲香 | K50: 13794206031 | L50: 广东开平农村商业银行股份有限公司 | M50: 江门市一六八卫浴科技有限公司 | N50: 80020000008227639
A51: 47 | B51: 开平市汉玛克卫浴有限公司 | C51: 91440783675229508N | D51: 开拓市场 | E51: 境内参展 | F51: 第27届中国国际厨房、卫浴设施展览会 | G51: 40,000.00 | H51: 40,000.00 | J51: 陈娃妮 | K51: 13828071218 | L51: 中国工商银行股份有限公司 | M51: 江门锦鼎金属制品实业有限公司 | N51: 2012008119200047771
A52: 48 | B52: 开平市嘉恩卫浴有限公司 | C52: 914407837879034561 | D52: 开拓市场 | E52: 境内参展 | F52: 第27届中国国际厨房、卫浴设施展览会 | G52: 40,000.00 | H52: 40,000.00 | J52: 陈娃妮 | K52: 13828071218 | L52: 中国工商银行股份有限公司 | M52: 江门锦鼎金属制品实业有限公司 | N52: 2012008119200047771
A53: 49 | B53: 开平市领雅厨卫有限公司 | C53: 91440784314926199J | D53: 开拓市场 | E53: 境内参展 | F53: 2023年8月18日-8月20日-中国（广州）-中国跨境电商交易会（秋季） | G53: 10,000.00 | H53: 10,000.00 | J53: 梁丽晶 | K53: 13672869553 | L53: 中国建设银行股份有限公司 | M53: 开平市旭特五金实业有限公司 | N53: 44050167090500000646
A54: 50 | B54: 开平柏斯高卫浴有限公司 | C54: 91440700763809166M | D54: 开拓市场 | E54: 境内参展 | F54: 第27届中国国际厨房、卫浴设施展览会 | G54: 40,000.00 | H54: 40,000.00 | J54: 司徒锦雅 | K54: 13431791034 | L54: 中国工商银行开平市水口支行 | M54: 开平市澳佳卫浴有限公司 | N54: 2012008109024863711
A55: 51 | B55: 开平市凯赛德水暖配件有限公司 | C55: 914407005682141675 | D55: 开拓市场 | E55: 境内参展 | F55: 第27届中国国际厨房、卫浴设施展览会 | G55: 40,000.00 | H55: 40,000.00 | J55: 李荫锦 | K55: 18038755388 | L55: 中国银行股份有限公司江门开平支行 | M55: 江门市德美佳厨具有限公司 | N55: 723769315152
A56: 52 | B56: 开平市方剑卫浴有限公司 | C56: 91440783MA53LETQ9C | D56: 开拓市场 | E56: 境内参展 | F56: CCEE全球跨境电商展览会（广州） | G56: 40,000.00 | H56: 40,000.00 | J56: 李荫锦 | K56: 18038755388 | L56: 中国银行股份有限公司江门开平支行 | M56: 江门市德美佳厨具有限公司 | N56: 723769315152
A57: 53 | B57: 开平市图恩卫浴有限公司 | C57: 91440700597424948G | D57: 开拓市场 | E57: 境内参展 | F57: 第27届中国国际厨房、卫浴设施展览会 | G57: 40,000.00 | H57: 40,000.00 | J57: 洪小姬 | K57: 13555652140 | L57: 中国工商银行 | M57: 开平市海宏卫浴实业有限公司 | N57: 2012032409100020152
A58: 54 | B58: 开平市佳力五金制品有限公司 | C58: 914407836886221659 | D58: 开拓市场 | E58: 境内参展 | F58: 第27届中国国际厨房、卫浴设施展览会 | G58: 30,000.00 | H58: 30,000.00 | J58: 许旭春 | K58: 13632082737 | L58: 中国银行股份有限公司江门开平支行 | M58: 开平市奇迪科压铸卫浴有限公司 | N58: 649657748815
A59: 55 | B59: 开平市伊丹卫浴实业有限公司 | C59: 91440783748026892B | D59: 开拓市场 | E59: 境内参展 | F59: 第27届中国国际厨房、卫浴设施展览会 | G59: 40,000.00 | H59: 40,000.00 | J59: 许旭春 | K59: 13632082737 | L59: 中国银行股份有限公司江门开平支行 | M59: 开平市奇迪科压铸卫浴有限公司 | N59: 649657748815
A60: 56 | B60: 开平金牌洁具有限公司 | C60: 914407007993288071 | D60: 开拓市场 | E60: 境内参展 | F60: 第27届中国国际厨房、卫浴设施展览会 | G60: 40,000.00 | H60: 40,000.00 | J60: 许旭春 | K60: 13632082737 | L60: 中国银行股份有限公司江门开平支行 | M60: 开平市奇迪科压铸卫浴有限公司 | N60: 649657748815
A61: 57 | B61: 开平市联洋卫浴配件有限公司 | C61: 91440700MA4UWUD51J | D61: 开拓市场 | E61: 境内参展 | F61: 第27届中国国际厨房、卫浴设施展览会 | G61: 40,000.00 | H61: 40,000.00 | J61: 麦翠萍 | K61: 18929081412 | L61: 中国建设银行股份有限公司江门开平卫东支行 | M61: 开平市健派卫浴有限公司 | N61: 44050167092100000375
A62: 58 | B62: 开平达威尔厨卫有限公司 | C62: 91440700792902861X | D62: 开拓市场 | E62: 境内参展 | F62: 第27届中国国际厨房、卫浴设施展览会 | G62: 40,000.00 | H62: 40,000.00 | J62: 谭艳芳 | K62: 13809606127 | L62: 广东开平农村商业银行股份有限公司 | M62: 开平市洁士五金科技有限公司 | N62: 80020000016163152
A63: 59 | B63: 开平市汉朗莎卫浴实业有限公司 | C63: 91440783686418486H | D63: 开拓市场 | E63: 境内参展 | F63: 第27届中国国际厨房、卫浴设施展览会 | G63: 40,000.00 | H63: 40,000.00 | J63: 李群仲 | K63: 15913683023 | L63: 广东鹤山农村商业银行股份有限公司 | M63: 江门市诺基山厨卫科技有限公司 | N63: 80020000010584370
A64: 60 | B64: 广东华艺卫浴实业有限公司 | C64: 914407837192225016 | D64: 开拓市场 | E64: 境内参展 | F64: 第27届中国国际厨房、卫浴设施展览会 | G64: 40,000.00 | H64: 40,000.00 | J64: 林春瑶 | K64: 13630473743 | L64: 中国工商银行股份有限公司开平水口科技支行 | M64: 广东伟祥卫浴实业有限公司 | N64: 2012008109024209638
A65: 61 | B65: 开平市利德信进出口贸易有限公司 | C65: 91440783797790408Y | D65: 开拓市场 | E65: 境内参展 | F65: 2023年4月12日-14日-中国（广州）-CCEE全球跨境电商展览会（广州） | G65: 10,000.00 | H65: 10,000.00 | J65: 梁玉兰 | K65: 13702228136 | L65: 中国工商银行股份有限公司 | M65: 开平欧玛莎卫浴实业有限公司 | N65: 2012008119024286662
A66: 62 | B66: 开平市广盛卫浴有限公司 | C66: 914407836665486031 | D66: 开拓市场 | E66: 境内参展 | F66: CCEE全球跨境电商展览会(广州) | G66: 20,000.00 | H66: 20,000.00 | J66: 张敏仪 | K66: 18922016813 | L66: 中国工商银行股份有限公司开平市水口科技支行 | M66: 开平市欧尚卫浴实业有限公司 | N66: 2012008109024831364
A67: 63 | B67: 广东粤轻卫浴科技有限公司 | C67: 91440783194282164T | D67: 开拓市场 | E67: 境内参展 | F67: 第27届中国国际厨房、卫浴设施展览会 | G67: 40,000.00 | H67: 40,000.00 | J67: 周卫明 | K67: 13652749923 | L67: 中国工商银行开平市水口科技支行 | M67: 开平正霖卫浴实业有限公司 | N67: 2012008109024201872
A68: 64 | B68: 江门锦鼎金属制品实业有限公司 | C68: 91440783304216126P | D68: 开拓市场 | E68: 境内参展 | F68: 2023年6月07日-6月10日上海中国(上海)国际厨房、卫浴设施展览会 | G68: 40,000.00 | H68: 40,000.00 | J68: 余晓霞 | K68: 13422529920 | L68: 中国工商银行开平市水口支行 | M68: 开平诺迪水暖器材有限公司 | N68: 2012008109002428828
A69: 65 | B69: 开平市旭特五金实业有限公司 | C69: 91440783MA54Q0NQ06 | D69: 开拓市场 | E69: 境内参展 | F69: 第27届中国国际厨房、卫浴设施展览会 | G69: 20,000.00 | H69: 20,000.00 | J69: 古地珍 | K69: 13824029866 | L69: 中国建设银行股份有限公司开平水口支行 | M69: 广东高盛卫浴科技有限公司 | N69: 44050167994500000069
A70: 66 | B70: 开平市澳佳卫浴有限公司 | C70: 91440783699772695A | D70: 开拓市场 | E70: 境内参展 | F70: 第27届中国国际厨房、卫浴设施展览会 | G70: 40,000.00 | H70: 40,000.00 | J70: 黎雁欢 | K70: 13750308364 | L70: 中国建设银行股份有限公司开平水口支行 | M70: 开平市蓝凯卫浴实业有限公司 | N70: 44050167994500000037
A71: 67 | B71: 开平市奇迪科压铸卫浴有限公司 | C71: 914407006981443122 | D71: 开拓市场 | E71: 境内参展 | F71: 第27届中国国际厨房、卫浴设施展览会 | G71: 40,000.00 | H71: 40,000.00 | J71: 谭强新 | K71: 13902554002 | L71: 广东开平农村商业银行股份有限公司 | M71: 开平市迪恩卫浴实业有限公司 | N71: 80020000000456327
A72: 68 | B72: 开平市健派卫浴有限公司 | C72: 91440783MA4X3WFF6R | D72: 开拓市场 | E72: 境内参展 | F72: 第27届中国国际厨房、卫浴设施展览会 | G72: 20,000.00 | H72: 20,000.00 | J72: 梁杰民 | K72: 15820296494 | L72: 中国农业银行 | M72: 开平市达豪日化科技有限公司 | N72: 44403401040002233
A73: 69 | B73: 广东伟祥卫浴实业有限公司 | C73: 914407007701550250 | D73: 开拓市场 | E73: 境内参展 | F73: 第27届中国国际厨房、卫浴设施展览会 | G73: 40,000.00 | H73: 40,000.00 | J73: 梁杰民 | K73: 15820296494 | L73: 中国农业银行 | M73: 开平市达豪日化科技有限公司 | N73: 44403401040002233
A74: 70 | B74: 开平欧玛莎卫浴实业有限公司 | C74: 9144070068445634XU | D74: 开拓市场 | E74: 境内参展 | F74: 第27届中国(上海)国际厨房、卫浴设施展览会 | G74: 40,000.00 | H74: 40,000.00 | J74: 梁杰民 | K74: 15820296494 | L74: 中国农业银行 | M74: 开平市达豪日化科技有限公司 | N74: 44403401040002233
A75: 71 | B75: 开平市欧尚卫浴实业有限公司 | C75: 914407837962772311 | D75: 开拓市场 | E75: 境内参展 | F75: 第27届中国国际厨房、卫浴设施展览会 | G75: 40,000.00 | H75: 40,000.00 | J75: 黄敏慧 | K75: 13426749239 | L75: 开平市农村商业银行股份有限公司 | M75: 开平市本铃机车密封垫有限公司 | N75: 80020000000467099
A76: 72 | B76: 开平正霖卫浴实业有限公司 | C76: 91440700792997282T | D76: 开拓市场 | E76: 境内参展 | F76: 2022中国国际厨房、卫浴设施展览会（第27届） | G76: 40,000.00 | H76: 40,000.00 | J76: 刘晓晨 | K76: 19868585419 | L76: 中国工商银行股份有限公司 | M76: 开平市雨派卫浴科技有限公司 | N76: 2012008109248093907
A77: 73 | B77: 开平诺迪水暖器材有限公司 | C77: 91440700758326063G | D77: 开拓市场 | E77: 境内参展 | F77: 第27届中国国际厨房、卫浴设施展览会 | G77: 40,000.00 | H77: 40,000.00 | J77: 张丽瑜 | K77: 13750361486 | L77: 中国银行 | M77: 广东好事多卫浴科技有限公司 | N77: 682170030229
A78: 74 | B78: 开平市蓝凯卫浴实业有限公司 | C78: 91440783MA4UR25L8M | D78: 开拓市场 | E78: 境内参展 | F78: 第 27 届中国国际厨房、卫浴设施展览会 | G78: 40,000.00 | H78: 40,000.00 | J78: 杨小姐 | K78: 13717253049 | L78: 中国农业银行股份有限公司 | M78: 开平市汉顺洁具实业有限公司 | N78: 44402601040009887
A79: 75 | B79: 开平市迪恩卫浴实业有限公司 | C79: 9144078368445298XC | D79: 开拓市场 | E79: 境内参展 | F79: 第27届中国国际厨房、卫浴设施展览会 | G79: 40,000.00 | H79: 40,000.00 | J79: 邝杏柔 | K79: 13828063616 | L79: 中国工商银行股份有限公司开平水口科技支行 | M79: 开平柏斯高卫浴有限公司 | N79: 2012008109024213981
A80: 76 | B80: 开平市达豪日化科技有限公司 | C80: 914407836615297294 | D80: 开拓市场 | E80: 境内参展 | F80: 2023年7月20-22日-上海-第116届中国日用百货商品交易会 | G80: 40,000.00 | H80: 40,000.00 | J80: 李蔼玲 | K80: 13702210009 | L80: 中国银行 | M80: 开平太平洋卫浴实业有限公司 | N80: 893858455018091001
A81: 77 | B81: 开平市雨派卫浴科技有限公司 | C81: 91440783MA4W3HW69H | D81: 开拓市场 | E81: 境内参展 | F81: 第27届中国国际厨房、卫浴设施展览会 | G81: 40,000.00 | H81: 40,000.00 | J81: 卢一妍 | K81: 13702223375 | L81: 中国工商银行股份有限公司开平 | M81: 开平市迪朗五金塑料制品有限公司 | N81: 102589400819
A82: 78 | B82: 广东好事多卫浴科技有限公司 | C82: 91440783MA51EJ5QXC | D82: 开拓市场 | E82: 境内参展 | F82: 第27届中国国际厨房、卫浴设施展览会 | G82: 40,000.00 | H82: 40,000.00 | J82: 关嘉明 | K82: 18128297907 | L82: 中国银行股份有限公司 | M82: 江门市镇坚五金科技有限公司 | N82: 726365676557
A83: 79 | B83: 开平市汉顺洁具实业有限公司 | C83: 914407836947598970 | D83: 开拓市场 | E83: 境内参展 | F83: 2023中国国际厨房、卫浴设施展览会(第27届) | G83: 40,000.00 | H83: 40,000.00 | J83: 关嘉明 | K83: 18128297907 | L83: 中国银行股份有限公司 | M83: 江门市镇坚五金科技有限公司 | N83: 726365676557
A84: 80 | B84: 开平太平洋卫浴实业有限公司 | C84: 91440700799316187B | D84: 开拓市场 | E84: 境内参展 | F84: 第27届中国国际厨房、卫浴设施展览会 | G84: 20,000.00 | H84: 20,000.00 | J84: 谈金爱 | K84: 18026769356 | L84: 中国农业银行股份有限公司开平中兴支行 | M84: 江门市蓝森卫浴科技有限公司 | N84: 44402701040006212
A85: 81 | B85: 开平市迪朗五金塑料制品有限公司 | C85: 9144078378794053X5 | D85: 开拓市场 | E85: 境内参展 | F85: 第27届中国国际厨房 、卫浴设施展览会 | G85: 30,000.00 | H85: 30,000.00 | J85: 罗林玉 | K85: 13822362786 | L85: 中国工商银行股份有限公司 | M85: 开平市澳林卫浴有限公司 | N85: 2012008109248013834
A86: 开拓市场境内参展项目小计 | G86: =SUM(G40:G85) -> 1,590,000.00 | H86: =SUM(H40:H85) -> 1,590,000.00 | J86: 余泽南 | K86: 18929089170 | L86: 广东开平农村商业银行股份有限公司苍城支行 | M86: 联冠（开平）胶粘制品有限公司 | N86: 80020000000484638
A87: =ROW()-5 -> 82 | B87: 广东华艺卫浴实业有限公司 | C87: 914407837192225016 | D87: 防范国际贸易风险 | E87: 进出口信用保险 | F87: 2023年1月至12月短期进出口信用保险项目 | G87: 149,473.61 | H87: 149,473.61
A88: =ROW()-5 -> 83 | B88: 广东可味巧克力食品有限公司 | C88: 91440700747099934F | D88: 防范国际贸易风险 | E88: 进出口信用保险 | F88: 2023年1月至12月短期进出口信用保险项目 | G88: 26,064.10 | H88: 26,064.10 | J88: 梁丽莹 | K88: 13428286143 | L88: 中国工商银行股份有限公司开平水口科技支行 | M88: 广东华艺卫浴实业有限公司 | N88: 2012008109024805928
A89: 84 | B89: 广东泰宝聚合物有限公司 | C89: 914407005666122250 | D89: 防范国际贸易风险 | E89: 进出口信用保险 | F89: 2023年1月至12月短期进出口信用保险项目 | G89: 342,852.06 | H89: 342,852.06 | J89: 谭喜莲 | K89: 15875070881 | L89: 中国银行股份有限公司江门开平支行 | M89: 广东可味巧克力食品有限公司 | N89: 702957748789
A90: 85 | B90: 广东伟祥卫浴实业有限公司 | C90: 914407007701550250 | D90: 防范国际贸易风险 | E90: 进出口信用保险 | F90: 2023年1月至12月短期进出口信用保险项目 | G90: 32,984.00 | H90: 32,984.00 | J90: 梁晓恒 | K90: 15819723031 | L90: 中国银行股份有限公司江门开平支行 | M90: 广东泰宝聚合物有限公司 | N90: 650957748826
A91: 86 | B91: 江门市德美佳厨具有限公司 | C91: 9144078334540051X5 | D91: 防范国际贸易风险 | E91: 进出口信用保险 | F91: 2023年1月至12月短期进出口信用保险项目 | G91: 6,960.00 | H91: 6,960.00 | J91: 林春瑶 | K91: 13630473743 | L91: 中国工商银行股份有限公司开平水口科技支行 | M91: 广东伟祥卫浴实业有限公司 | N91: 2012008109024209638
A92: 87 | B92: 江门雅固卫浴实业有限公司 | C92: 9144078474803151XP | D92: 防范国际贸易风险 | E92: 进出口信用保险 | F92: 2023年1月至12月短期进出口信用保险项目 | G92: 6,960.00 | H92: 6,960.00 | J92: 李荫锦 | K92: 18038755388 | L92: 中国银行股份有限公司江门开平支行 | M92: 江门市德美佳厨具有限公司 | N92: 723769315152
A93: 88 | B93: 开平柏斯高卫浴有限公司 | C93: 91440700763809166M | D93: 防范国际贸易风险 | E93: 进出口信用保险 | F93: 2023年1月至12月短期进出口信用保险项目 | G93: 5,987.95 | H93: 5,987.95 | J93: 张玲 | K93: 13827019966 | L93: 广东开平农村商业银行股份限公司水口支行 | M93: 江门雅固卫浴实业有限公司 | N93: 80020000017123708
A94: 89 | B94: 开平凯德家用电器有限公司 | C94: 91440700617737715Q | D94: 防范国际贸易风险 | E94: 进出口信用保险 | F94: 2023年1月至12月短期进出口信用保险项目 | G94: 15,952.00 | H94: 15,952.00 | J94: 周洋 | K94: 18824193010 | L94: 中国工商银行 | M94: 开平市卓阳卫浴实业有限公司 | N94: 2012008109024869371
A95: 90 | B95: 开平美迪晨卫浴有限公司 | C95: 91440700760642073C | D95: 防范国际贸易风险 | E95: 进出口信用保险 | F95: 2023年1月至12月短期进出口信用保险项目 | G95: 21,500.00 | H95: 21,500.00 | J95: 何彩红 | K95: 18929082210 | L95: 中国银行股份有限公司江门开平支行 | M95: 开平凯德家用电器有限公司 | N95: 661357748779
A96: 91 | B96: 开平市安迪卫浴实业有限公司 | C96: 914407007977567955 | D96: 防范国际贸易风险 | E96: 进出口信用保险 | F96: 2023年1月至12月短期进出口信用保险项目 | G96: 14,139.68 | H96: 14,139.68 | J96: 陆富球 | K96: 13929083017 | L96: 广东开平农村商业银行股份有限公司水口支行 | M96: 开平美迪晨卫浴有限公司 | N96: 80020000000454647
A97: 92 | B97: 开平市宝来塑胶制品有限公司 | C97: 9144078374709798XT | D97: 防范国际贸易风险 | E97: 进出口信用保险 | F97: 2023年1月至12月短期进出口信用保险项目 | G97: 5,346.00 | H97: 5,346.00 | J97: 李少芬 | K97: 13544955180 | L97: 广东开平农村商业银行股份有限公司水口支行 | M97: 开平市安迪卫浴实业有限公司 | N97: 80020000000456123
A98: 93 | B98: 开平市博美卫浴有限公司 | C98: 91440783673054871T | D98: 防范国际贸易风险 | E98: 进出口信用保险 | F98: 2023年1月至12月短期进出口信用保险项目 | G98: 13,800.00 | H98: 13,800.00 | J98: 张伟鑫 | K98: 13427176217 | L98: 中国建设银行股份有限公司开平支行 | M98: 开平市宝来塑胶制品有限公司 | N98: 44001670901051286933
A99: 94 | B99: 开平市富丽雅实业有限公司 | C99: 91440783052408286B | D99: 防范国际贸易风险 | E99: 进出口信用保险 | F99: 2023年1月至12月短期进出口信用保险项目 | G99: 6,800.00 | H99: 6,800.00 | J99: 黄淑媛 | K99: 13824076299 | L99: 中国建设银行股份有限公司江门开平水口支行 | M99: 开平市博美卫浴有限公司 | N99: 44001670905059778095
A100: 95 | B100: 开平市汉玛克卫浴有限公司 | C100: 91440783675229508N | D100: 防范国际贸易风险 | E100: 进出口信用保险 | F100: 2023年1月至12月短期进出口信用保险项目 | G100: 7,000.00 | H100: 7,000.00 | J100: 黄业嫦 | K100: 13414167081 | L100: 广东开平农村商业银行股份有限公司百合支行 | M100: 开平市富丽雅实业有限公司 | N100: 80020000004570524
A101: 96 | B101: 开平市和洋洁具有限公司 | C101: 91440783MA529L282H | D101: 防范国际贸易风险 | E101: 进出口信用保险 | F101: 2023年1月至12月短期进出口信用保险项目 | G101: 7,697.80 | H101: 7,697.80 | J101: 吴雪君 | K101: 13929081601 | L101: 中国建设银行江门开平水口支行 | M101: 开平市汉玛克卫浴有限公司 | N101: 44001670905059001688
A102: 97 | B102: 开平市骏源进出口贸易有限公司 | C102: 91440783792961431J | D102: 防范国际贸易风险 | E102: 进出口信用保险 | F102: 2023年1月至12月短期进出口信用保险项目 | G102: 3,126.11 | H102: 3,126.11 | J102: 黄秀云 | K102: 13422641961 | L102: 中国工商银行股份有限公司江门开平水口科技支行 | M102: 开平市和洋洁具有限公司 | N102: 2012008109200064945
A103: 98 | B103: 开平市凯赛德水暖配件有限公司 | C103: 914407005682141675 | D103: 防范国际贸易风险 | E103: 进出口信用保险 | F103: 2023年1月至12月短期进出口信用保险项目 | G103: 8,112.48 | H103: 8,112.48 | J103: 敖健秀 | K103: 13556909011 | L103: 中国农业银行股份有限公司开平市支行 | M103: 开平市骏源进出口贸易有限公司 | N103: 44400001040019238
A104: 99 | B104: 开平市蓝凯卫浴实业有限公司 | C104: 91440783MA4UR25L8M | D104: 防范国际贸易风险 | E104: 进出口信用保险 | F104: 2023年1月至12月短期进出口信用保险项目 | G104: 4,997.00 | H104: 4,997.00 | J104: 劳美仪 | K104: 13427300043 | L104: 中国建设银行股份有限公司开平支行 | M104: 开平市凯赛德水暖配件有限公司 | N104: 44001670901053004626
A105: 100 | B105: 开平市美年华服装有限公司 | C105: 91440783334738574E | D105: 防范国际贸易风险 | E105: 进出口信用保险 | F105: 2023年1月至12月短期进出口信用保险项目 | G105: 7,180.00 | H105: 7,180.00 | J105: 黎雁欢 | K105: 13750308364 | L105: 中国建设银行股份有限公司开平水口支行 | M105: 开平市蓝凯卫浴实业有限公司 | N105: 44050167994500000037
A106: 101 | B106: 开平市奇迪科压铸卫浴有限公司 | C106: 914407006981443122 | D106: 防范国际贸易风险 | E106: 进出口信用保险 | F106: 2023年1月至12月短期进出口信用保险项目 | G106: 5,500.00 | H106: 5,500.00 | J106: 薛冬梅 | K106: 13822361802 | L106: 中国农业银行股份有限公司开平花园支行 | M106: 开平市美年华服装有限公司 | N106: 44401301040003102
A107: 102 | B107: 开平市天雅塑料实业有限公司 | C107: 91440783MA54CTN274 | D107: 防范国际贸易风险 | E107: 进出口信用保险 | F107: 2023年1月至12月短期进出口信用保险项目 | G107: 7,082.10 | H107: 7,082.10 | J107: 许旭春 | K107: 13632082737 | L107: 中国银行股份有限公司江门开平支行 | M107: 开平市奇迪科压铸卫浴有限公司 | N107: 649657748815
A108: 103 | B108: 开平威技电器有限公司 | C108: 91440700734114330W | D108: 防范国际贸易风险 | E108: 进出口信用保险 | F108: 2023年1月至12月短期进出口信用保险项目 | G108: 26,766.00 | H108: 26,766.00 | J108: 张玉清 | K108: 13664938088 | L108: 中国银行股份有限公司江门开平水口科技支行 | M108: 开平市天雅塑料实业有限公司 | N108: 671772908646
A109: 104 | B109: 开平依利安达电子第三有限公司 | C109: 91440700721154755F | D109: 防范国际贸易风险 | E109: 进出口信用保险 | F109: 2023年1月至12月短期进出口信用保险项目 | G109: 218,886.20 | H109: 218,886.20 | J109: 严晓敏 | K109: 15994886708 | L109: 中国建设银行股份有限公司 | M109: 开平威技电器有限公司 | N109: 44001670901051288940
A110: 105 | B110: 联冠（开平）胶粘制品有限公司 | C110: 91440700661489720W | D110: 防范国际贸易风险 | E110: 进出口信用保险 | F110: 2023年1月至12月短期进出口信用保险项目 | G110: 4,500.00 | H110: 4,500.00 | J110: 汤翠映 | K110: 13630416287 | L110: 中国银行股份有限公司江门开平支行 | M110: 开平依利安达电子第三有限公司 | N110: 669157758550
A111: 106 | B111: 银都拉玛（开平）高性能纤维有限公司 | C111: 914407006177552515 | D111: 防范国际贸易风险 | E111: 进出口信用保险 | F111: 2023年1月至12月短期进出口信用保险项目 | G111: 28,800.00 | H111: 28,800.00 | J111: 余泽南 | K111: 18929089170 | L111: 广东开平农村商业银行股份有限公司苍城支行 | M111: 联冠（开平）胶粘制品有限公司 | N111: 80020000000484638
A112: 107 | B112: 银都拉玛（开平）高性能纤维有限公司 | C112: 914407006177552515 | D112: 防范国际贸易风险 | E112: 进出口信用保险 | F112: 2023年1月至12月短期进出口信用保险项目 | G112: 3,440.00 | H112: 3,440.00 | J112: 张学妹 | K112: 18029652152 | L112: 中国银行股份有限公司江门开平支行 | M112: 银都拉玛（开平）高性能纤维有限公司 | N112: 700357748774
A113: 108 | B113: 开平施特珑卫浴产品有限公司 | C113: 914407007750974429 | D113: 防范国际贸易风险 | E113: 进出口信用保险 | F113: 2023年出口贸易信用险 | G113: 3,571.00 | H113: 3,571.00 | J113: 张学妹 | K113: 18029652152 | L113: 中国银行股份有限公司江门开平支行 | M113: 银都拉玛（开平）高性能纤维有限公司 | N113: 700357748774
A114: 进出口信用保险项目小计 | G114: =SUM(G87:G113) -> 985,478.09 | H114: =SUM(H87:H113) -> 985,478.09 | J114: 张学妹 | K114: 18029652152 | L114: 中国银行股份有限公司江门开平支行 | M114: 银都拉玛（开平）高性能纤维有限公司 | N114: 700357748774
A115: =ROW()-6 -> 109 | B115: 广东华艺卫浴实业有限公司 | C115: 914407837192225016 | D115: 防范国际贸易风险 | E115: 中国出口信用保险公司资信服务 | F115: 2023年1月至12月中国出口信用保险公司资信服务 | G115: 19,200.00 | H115: 19,200.00 | J115: 徐华娣 | K115: 13430366850 | L115: 中国工商银行 | M115: 开平施特珑卫浴产品有限公司 | N115: 2012008119024211861
A116: =ROW()-6 -> 110 | B116: 广东科仕特精密机械有限公司 | C116: 9144078358468373X4 | D116: 防范国际贸易风险 | E116: 中国出口信用保险公司资信服务 | F116: 2023年1月至12月中国出口信用保险公司资信服务 | G116: 2,700.00 | H116: 2,700.00
A117: 111 | B117: 广东可味巧克力食品有限公司 | C117: 91440700747099934F | D117: 防范国际贸易风险 | E117: 中国出口信用保险公司资信服务 | F117: 2023年1月至12月中国出口信用保险公司资信服务 | G117: 2,700.00 | H117: 2,700.00 | J117: 钟宏瑜 | K117: 13929085984 | L117: 中国银行 | M117: 广东粤轻卫浴科技有限公司 | N117: 634057749151
A118: 112 | B118: 广东泰宝聚合物有限公司 | C118: 914407005666122250 | D118: 防范国际贸易风险 | E118: 中国出口信用保险公司资信服务 | F118: 2023年1月至12月中国出口信用保险公司资信服务 | G118: 20,000.00 | H118: 20,000.00 | J118: 许丽贤 | K118: 18128203209 | L118: 广东开平农村商业银行股份有限公司 | M118: 广东科仕特精密机械有限公司 | N118: 80020000003465385
A119: 113 | B119: 广东伟祥卫浴实业有限公司 | C119: 914407007701550250 | D119: 防范国际贸易风险 | E119: 中国出口信用保险公司资信服务 | F119: 2023年1月至12月中国出口信用保险公司资信服务 | G119: 10,500.00 | H119: 10,500.00 | J119: 谭喜莲 | K119: 15875070881 | L119: 中国银行股份有限公司江门开平支行 | M119: 广东可味巧克力食品有限公司 | N119: 702957748789
A120: 114 | B120: 广东意希诺科技有限公司 | C120: 91440783338143172E | D120: 防范国际贸易风险 | E120: 中国出口信用保险公司资信服务 | F120: 2023年1月至12月中国出口信用保险公司资信服务 | G120: 300.00 | H120: 300.00 | J120: 梁晓恒 | K120: 15819723031 | L120: 中国银行股份有限公司江门开平支行 | M120: 广东泰宝聚合物有限公司 | N120: 650957748826
A121: 115 | B121: 江门雅固卫浴实业有限公司 | C121: 9144078474803151XP | D121: 防范国际贸易风险 | E121: 中国出口信用保险公司资信服务 | F121: 2023年1月至12月中国出口信用保险公司资信服务 | G121: 800.00 | H121: 800.00 | J121: 林春瑶 | K121: 13630473743 | L121: 中国工商银行股份有限公司开平水口科技支行 | M121: 广东伟祥卫浴实业有限公司 | N121: 2012008109024209638
A122: 116 | B122: 开平柏斯高卫浴有限公司 | C122: 91440700763809166M | D122: 防范国际贸易风险 | E122: 中国出口信用保险公司资信服务 | F122: 2023年1月至12月中国出口信用保险公司资信服务 | G122: 1,200.00 | H122: 1,200.00 | J122: 袁淑雯 | K122: 18138994378 | L122: 中国建设银行股份有限公司江门开平支行 | M122: 广东意希诺科技有限公司 | N122: 44001670901053011545
A123: 117 | B123: 开平凯德家用电器有限公司 | C123: 91440700617737715Q | D123: 防范国际贸易风险 | E123: 中国出口信用保险公司资信服务 | F123: 2023年1月至12月中国出口信用保险公司资信服务 | G123: 1,200.00 | H123: 1,200.00 | J123: 张玲 | K123: 13827019966 | L123: 广东开平农村商业银行股份限公司水口支行 | M123: 江门雅固卫浴实业有限公司 | N123: 80020000017123708
A124: 118 | B124: 开平美迪晨卫浴有限公司 | C124: 91440700760642073C | D124: 防范国际贸易风险 | E124: 中国出口信用保险公司资信服务 | F124: 2023年1月至12月中国出口信用保险公司资信服务 | G124: 3,300.00 | H124: 3,300.00 | J124: 邝杏柔 | K124: 13828063616 | L124: 中国工商银行股份有限公司开平水口科技支行 | M124: 开平柏斯高卫浴有限公司 | N124: 2012008109024213981
A125: 119 | B125: 开平市安迪卫浴实业有限公司 | C125: 914407007977567955 | D125: 防范国际贸易风险 | E125: 中国出口信用保险公司资信服务 | F125: 2023年1月至12月中国出口信用保险公司资信服务 | G125: 2,100.00 | H125: 2,100.00 | J125: 何彩红 | K125: 18929082210 | L125: 中国银行股份有限公司江门开平支行 | M125: 开平凯德家用电器有限公司 | N125: 661357748779
A126: 120 | B126: 开平市宝来塑胶制品有限公司 | C126: 9144078374709798XT | D126: 防范国际贸易风险 | E126: 中国出口信用保险公司资信服务 | F126: 2023年1月至12月中国出口信用保险公司资信服务 | G126: 1,200.00 | H126: 1,200.00 | J126: 陆富球 | K126: 13929083017 | L126: 广东开平农村商业银行股份有限公司水口支行 | M126: 开平美迪晨卫浴有限公司 | N126: 80020000000454647
A127: 121 | B127: 开平市博美卫浴有限公司 | C127: 91440783673054871T | D127: 防范国际贸易风险 | E127: 中国出口信用保险公司资信服务 | F127: 2023年1月至12月中国出口信用保险公司资信服务 | G127: 5,100.00 | H127: 5,100.00 | J127: 李少芬 | K127: 13544955180 | L127: 广东开平农村商业银行股份有限公司水口支行 | M127: 开平市安迪卫浴实业有限公司 | N127: 80020000000456123
A128: 122 | B128: 开平市富丽雅实业有限公司 | C128: 91440783052408286B | D128: 防范国际贸易风险 | E128: 中国出口信用保险公司资信服务 | F128: 2023年1月至12月中国出口信用保险公司资信服务 | G128: 400.00 | H128: 400.00 | J128: 张伟鑫 | K128: 13427176217 | L128: 中国建设银行股份有限公司开平支行 | M128: 开平市宝来塑胶制品有限公司 | N128: 44001670901051286933
A129: 123 | B129: 开平市汉玛克卫浴有限公司 | C129: 91440783675229508N | D129: 防范国际贸易风险 | E129: 中国出口信用保险公司资信服务 | F129: 2023年1月至12月中国出口信用保险公司资信服务 | G129: 900.00 | H129: 900.00 | J129: 黄淑媛 | K129: 13824076299 | L129: 中国建设银行股份有限公司江门开平水口支行 | M129: 开平市博美卫浴有限公司 | N129: 44001670905059778095
A130: 124 | B130: 开平市和洋洁具有限公司 | C130: 91440783MA529L282H | D130: 防范国际贸易风险 | E130: 中国出口信用保险公司资信服务 | F130: 2023年1月至12月中国出口信用保险公司资信服务 | G130: 800.00 | H130: 800.00 | J130: 黄业嫦 | K130: 13414167081 | L130: 广东开平农村商业银行股份有限公司百合支行 | M130: 开平市富丽雅实业有限公司 | N130: 80020000004570524
A131: 125 | B131: 开平市红日制衣有限公司 | C131: 91440783733104923G | D131: 防范国际贸易风险 | E131: 中国出口信用保险公司资信服务 | F131: 2023年1月至12月中国出口信用保险公司资信服务 | G131: 400.00 | H131: 400.00 | J131: 吴雪君 | K131: 13929081601 | L131: 中国建设银行江门开平水口支行 | M131: 开平市汉玛克卫浴有限公司 | N131: 44001670905059001688
A132: 126 | B132: 开平市骏源进出口贸易有限公司 | C132: 91440783792961431J | D132: 防范国际贸易风险 | E132: 中国出口信用保险公司资信服务 | F132: 2023年1月至12月中国出口信用保险公司资信服务 | G132: 400.00 | H132: 400.00 | J132: 黄秀云 | K132: 13422641961 | L132: 中国工商银行股份有限公司江门开平水口科技支行 | M132: 开平市和洋洁具有限公司 | N132: 2012008109200064945
A133: 127 | B133: 开平市凯赛德水暖配件有限公司 | C133: 914407005682141675 | D133: 防范国际贸易风险 | E133: 中国出口信用保险公司资信服务 | F133: 2023年1月至12月中国出口信用保险公司资信服务 | G133: 4,200.00 | H133: 4,200.00 | J133: 黄小姐 | K133: 13536044800 | L133: 中国银行股份有限公司江门开平支行 | M133: 开平市红日制衣有限公司 | N133: 667857748788
A134: 128 | B134: 开平市蓝凯卫浴实业有限公司 | C134: 91440783MA4UR25L8M | D134: 防范国际贸易风险 | E134: 中国出口信用保险公司资信服务 | F134: 2023年1月至12月中国出口信用保险公司资信服务 | G134: 2,100.00 | H134: 2,100.00 | J134: 敖健秀 | K134: 13556909011 | L134: 中国农业银行股份有限公司开平市支行 | M134: 开平市骏源进出口贸易有限公司 | N134: 44400001040019238
A135: 129 | B135: 开平市奇迪科压铸卫浴有限公司 | C135: 914407006981443122 | D135: 防范国际贸易风险 | E135: 中国出口信用保险公司资信服务 | F135: 2023年1月至12月中国出口信用保险公司资信服务 | G135: 1,200.00 | H135: 1,200.00 | J135: 劳美仪 | K135: 13427300043 | L135: 中国建设银行股份有限公司开平支行 | M135: 开平市凯赛德水暖配件有限公司 | N135: 44001670901053004626
A136: 130 | B136: 开平市天雅塑料实业有限公司 | C136: 91440783MA54CTN274 | D136: 防范国际贸易风险 | E136: 中国出口信用保险公司资信服务 | F136: 2023年1月至12月中国出口信用保险公司资信服务 | G136: 400.00 | H136: 400.00 | J136: 黎雁欢 | K136: 13750308364 | L136: 中国建设银行股份有限公司开平水口支行 | M136: 开平市蓝凯卫浴实业有限公司 | N136: 44050167994500000037
A137: 131 | B137: 开平市炜华制衣有限公司 | C137: 91440783MA55DMYLXE | D137: 防范国际贸易风险 | E137: 中国出口信用保险公司资信服务 | F137: 2023年1月至12月中国出口信用保险公司资信服务 | G137: 400.00 | H137: 400.00 | J137: 许旭春 | K137: 13632082737 | L137: 中国银行股份有限公司江门开平支行 | M137: 开平市奇迪科压铸卫浴有限公司 | N137: 649657748815
A138: 132 | B138: 开平市中贸进出口有限公司 | C138: 91440783789481613X | D138: 防范国际贸易风险 | E138: 中国出口信用保险公司资信服务 | F138: 2023年1月至12月中国出口信用保险公司资信服务 | G138: 400.00 | H138: 400.00 | J138: 张玉清 | K138: 13664938088 | L138: 中国银行股份有限公司江门开平水口科技支行 | M138: 开平市天雅塑料实业有限公司 | N138: 671772908646
A139: 133 | B139: 开平依利安达电子第三有限公司 | C139: 91440700721154755F | D139: 防范国际贸易风险 | E139: 中国出口信用保险公司资信服务 | F139: 2023年1月至12月中国出口信用保险公司资信服务 | G139: 20,000.00 | H139: 20,000.00 | J139: 黄翠芳 | K139: 13535380730 | L139: 中国农业银行股份有限公司开平东兴支行 | M139: 开平市炜华制衣有限公司 | N139: 44402301040005908
A140: 134 | B140: 联冠（开平）胶粘制品有限公司 | C140: 91440700661489720W | D140: 防范国际贸易风险 | E140: 中国出口信用保险公司资信服务 | F140: 2023年1月至12月中国出口信用保险公司资信服务 | G140: 4,200.00 | H140: 4,200.00 | J140: 司徒巧华 | K140: 18026781107 | L140: 中国建设银行股份有限公司江门开平长沙支行 | M140: 开平市中贸进出口有限公司 | N140: 44001670919059066688
A141: 135 | B141: 银都拉玛（开平）高性能纤维有限公司 | C141: 914407006177552515 | D141: 防范国际贸易风险 | E141: 中国出口信用保险公司资信服务 | F141: 2023年1月至12月中国出口信用保险公司资信服务 | G141: 900.00 | H141: 900.00 | J141: 汤翠映 | K141: 13630416287 | L141: 中国银行股份有限公司江门开平支行 | M141: 开平依利安达电子第三有限公司 | N141: 669157758550
A142: 支持企业购买中国出口信用保险公司资信服务项目小计 | G142: =SUM(G115:G141) -> 107,000.00 | H142: =SUM(H115:H141) -> 107,000.00
A143: 项目合计 | G143: =G142+G114+G86+G39 -> 3,480,384.09 | H143: =H142+H114+H86+H39 -> 3,480,384.09

Sheet 核准项目 (2) (hidden)
B1: 附件
A2: 【开平市】2024年江门市外贸高质量创新发展资金申报情况汇总表
B3: 序号 | C3: 企业名称 | D3: 统一社会信用代码 | E3: 支持方向 | F3: 项目类别 | G3: 项目名称 | H3: 申请支持金额（元） | I3: 核准可申请支持金额（元） | J3: 备注 | K3: 项目申报人 | L3: 手机号 | M3: 开户银行 | N3: 开户户名 | O3: 银行账号
A4: =ROW()-3 -> 1 | B4: =ROW()-3 -> 1 | C4: 开平市锦强五金制品有限公司 | D4: 91440783MA53EQM9X8 | E4: 开拓市场 | F4: 境外参展 | G4: 2024年6月13日-6月15日 迪拜世贸中心 2023年第十四届中国（阿联酋）贸易博览会 | H4: 17,906.00 | I4: 17,906.00 | K4: 邝锦源 | L4: 18824076668 | M4: 广东开平农村商业银行股份有限公司水口支行 | N4: 开平市锦强五金制品有限公司 | O4: 80020000013805231
A5: =ROW()-3 -> 2 | B5: =ROW()-3 -> 2 | C5: 开平市朝升卫浴有限公司 | D5: 91440783741747873R | E5: 开拓市场 | F5: 境外参展 | G5: 2023年第十五届中国（阿联酋）贸易博览会 | H5: 20,000.00 | I5: 20,000.00 | K5: 梁丽莹 | L5: 13428286143 | M5: 中国工商银行股份有限公司开平水口科技支行 | N5: 广东华艺卫浴实业有限公司 | O5: 2012008109024805928
A6: 3 | B6: 3 | C6: 开平市诺曼卫浴有限公司 | D6: 914407837912243684 | E6: 开拓市场 | F6: 境外参展 | G6: 2023年09月20日-09月22日南非（约翰内斯堡）2023年第七届中国（南非）贸易博览会 | H6: 20,000.00 | I6: 20,000.00 | K6: 邝群仙 | L6: 13809605529 | M6: 中国银行 | N6: 开平市朝升卫浴有限公司 | O6: 630171951180
A7: 4 | B7: 4 | C7: 开平市新明光五金制品有限公司 | D7: 9144078374917810XU | E7: 开拓市场 | F7: 境外参展 | G7: 2023年第四届中国（印尼）贸易博览会 | H7: 20,000.00 | I7: 20,000.00 | K7: 岑彩婷 | L7: 18933158882 | M7: 广东开平农村商业银行股份有限公司翠山湖科技支行 | N7: 开平市亿展阀芯有限公司 | O7: 80020000009698007
A8: 5 | B8: 5 | C8: 开平市智康卫浴有限公司 | D8: 914407830568482469 | E8: 开拓市场 | F8: 境外参展 | G8: 2023年第五届中国（印尼）贸易博览会 | H8: 20,000.00 | I8: 20,000.00 | K8: 邝锦豪 | L8: 15907506208 | M8: 中国建设银行股份有限公司江门开平水口支行 | N8: 开平市诺曼卫浴有限公司 | O8: 44001670905053000484
A9: 6 | B9: 6 | C9: 开平市谛玛卫浴有限公司 | D9: 91440783304208484F | E9: 开拓市场 | F9: 境外参展 | G9: 2023年12月19日-12月21日-阿联酋（迪拜）2023年第十五届中国（阿联酋）贸易博览会 | H9: 20,000.00 | I9: 20,000.00 | K9: 黄远健 | L9: 19107506507 | M9: 广东开平农村商业银行股份有限公司 | N9: 开平市新明光五金制品有限公司 | O9: 80020000000463129
A10: 7 | B10: 7 | C10: 开平市谛玛卫浴有限公司 | D10: 91440783304208484F | E10: 开拓市场 | F10: 境外参展 | G10: 2023年12月5日-12月7日-墨西哥（墨西哥城）2023年第八届中国（墨西哥）贸易博览会 | H10: 20,000.00 | I10: 20,000.00 | K10: 黄先生 | L10: 19107506507 | M10: 广东开平农村商业银行股份有限公司 | N10: 开平市新明光五金制品有限公司 | O10: 80020000000463129
A11: 8 | B11: 8 | C11: 开平市领雅厨卫有限公司 | D11: 91440784314926199J | E11: 开拓市场 | F11: 境外参展 | G11: 2023年第十届中国（巴西）贸易博览会（秋季展） | H11: 20,000.00 | I11: 20,000.00 | K11: 黄秀云 | L11: 13422641961 | M11: 中国工商银行股份有限公司江门开平水口科技支行 | N11: 开平市和洋洁具有限公司 | O11: 2012008109200064945
A12: 9 | B12: 9 | C12: 开平市伯源卫浴有限公司 | D12: 91440783MA51M77439 | E12: 开拓市场 | F12: 境外参展 | G12: 2023年第十五届中国（阿联酋）贸易博览会 | H12: 20,000.00 | I12: 20,000.00 | K12: 区金容 | L12: 13822369233 | M12: 中国工商银行股份有限公司 | N12: 开平力蒲卫浴有限公司 | O12: 2012008109024216838
A13: 10 | B13: 10 | C13: 江门市凯逸卫浴有限公司 | D13: 91440783MABULGW9XP | E13: 开拓市场 | F13: 境外参展 | G13: 2023年第十五届中国（阿联酋）贸易博览会 | H13: 20,000.00 | I13: 20,000.00 | K13: 徐艺文 | L13: 13725999568 | M13: 中国工商银行 | N13: 开平市金特卫浴有限公司 | O13: 2012032409024810913
A14: 11 | B14: 11 | C14: 江门市凯逸卫浴有限公司 | D14: 91440783MABULGW9XP | E14: 开拓市场 | F14: 境外参展 | G14: 2023年越南胡志明市国际建材展览会 | H14: 20,000.00 | I14: 20,000.00 | K14: 邓小姐 | L14: 13427165755 | M14: 广东开平农村商业银行股份有限公司 | N14: 开平市惠普卫浴实业有限公司 | O14: 80020000000463243
A15: 12 | B15: 12 | C15: 江门市凯逸卫浴有限公司 | D15: 91440783MABULGW9XP | E15: 开拓市场 | F15: 境外参展 | G15: 2023年第四届中国（印尼）贸易展览会 | H15: 20,000.00 | I15: 20,000.00 | K15: 何惠芳 | L15: 13555681163 | M15: 中国农业银行 | N15: 开平市力泰五金制品有限公司 | O15: 44402601040007006
A16: 13 | B16: 13 | C16: 开平市宝来塑胶制品有限公司 | D16: 9144078374709798XT | E16: 开拓市场 | F16: 境外参展 | G16: 2023年12月7日-12月9日越南国际贸易展览会 | H16: 20,000.00 | I16: 20,000.00 | K16: 关颖莹 | L16: 18802550728 | M16: 中国工商银行 | N16: 广东顶尖管业科技有限公司 | O16: 2012008109024857785
A17: 14 | B17: 14 | C17: 开平市宝来塑胶制品有限公司 | D17: 9144078374709798XT | E17: 开拓市场 | F17: 境外参展 | G17: 2023年6月18日—6月20日 德国科隆园艺展览会 -SPOGA+GAFA 2023 | H17: 20,000.00 | I17: 20,000.00 | K17: 甄劲云 | L17: 13426729221 | M17: 广东开平农村商业银行股份有限公司 | N17: 开平市东陶压铸卫浴有限公司 | O17: 80020000000456600
A18: 15 | B18: 15 | C18: 开平市易洁卫浴有限公司 | D18: 914407833232734337 | E18: 开拓市场 | F18: 境外参展 | G18: 2023年12月19日-12月21日阿联酋（迪拜）2023年第十五届中国（阿联酋）贸易博览会 | H18: 20,000.00 | I18: 20,000.00 | K18: 李建海 | L18: 13902551679 | M18: 中国建设银行江门开平水口支行 | N18: 开平市汉玛克卫浴有限公司 | O18: 44001670905059001688
A19: 16 | B19: 16 | C19: 开平市鸿士达卫浴实业有限公司 | D19: 91440783724392193T | E19: 开拓市场 | F19: 境外参展 | G19: 第27届中国国际厨房、卫浴设施展览会 | H19: 40,000.00 | I19: 40,000.00 | K19: 孔飞球 | L19: 13926932069 | M19: 中国建设银行股份有限公司开平支行 | N19: 开平市智康卫浴有限公司 | O19: 44001670905053004442
A20: 17 | B20: 17 | C20: 开平市叁拾玖度卫浴有限公司 | D20: 91440783MA555MJ76P | E20: 开拓市场 | F20: 境外参展 | G20: 2023 年第十五届中国(阿联酋)贸易博览会 | H20: 40,000.00 | I20: 40,000.00 | K20: 张卉 | L20: 13828056883 | M20: 中国银行 | N20: 开平市谛玛卫浴有限公司 | O20: 660063953302
A21: 18 | B21: 18 | C21: 开平市思华卫浴有限公司 | D21: 91440783066682040U | E21: 开拓市场 | F21: 境外参展 | G21: 2023 年第十四届中国（阿联酋）贸易博览会 | H21: 20,000.00 | I21: 20,000.00 | K21: 张卉 | L21: 13828056883 | M21: 中国银行 | N21: 开平市谛玛卫浴有限公司 | O21: 660063953302
A22: 19 | B22: 19 | C22: 开平市广盛卫浴有限公司 | D22: 914407836665486031 | E22: 开拓市场 | F22: 境外参展 | G22: 2023年12月19日-12月21日-阿联酋（迪拜）-2023年第十五届中国（阿联酋）贸易博览会 | H22: 20,000.00 | I22: 20,000.00 | K22: 孙群爱 | L22: 13824023268 | M22: 中国农业银行开平水口支行 | N22: 开平市嘉恩卫浴有限公司 | O22: 44402601040007139
A23: 20 | B23: 20 | C23: 广东粤轻卫浴科技有限公司 | D23: 91440783194282164T | E23: 开拓市场 | F23: 境外参展 | G23: 2023年第十五届中国(阿联酋)贸易博览会 | H23: 40,000.00 | I23: 40,000.00 | K23: 吴永稳 | L23: 13672991196 | M23: 开平农商行 | N23: 开平市领雅厨卫有限公司 | O23: 80020000019411922
A24: 21 | B24: 21 | C24: 江门市一六八卫浴科技有限公司 | D24: 91440783MA4UKH0U2U | E24: 开拓市场 | F24: 境外参展 | G24: 12月19日-12月21日-阿联酋- 2023年第十五届中国（阿联酋）贸易展览会 | H24: 40,000.00 | I24: 40,000.00 | K24: 吴永稳 | L24: 13672991196 | M24: 开平农商行 | N24: 开平市领雅厨卫有限公司 | O24: 80020000019411922
A25: 22 | B25: 22 | C25: 江门市一六八卫浴科技有限公司 | D25: 91440783MA4UKH0U2U | E25: 开拓市场 | F25: 境外参展 | G25: 6月13日-6月15日-阿联酋-2023年第十四届中国（阿联酋）贸易博览会 | H25: 40,000.00 | I25: 40,000.00 | K25: 刘欣 | L25: 13923067077 | M25: 中国农业银行股份有限公司 | N25: 开平市伯源卫浴有限公司 | O25: 44400801040004795
A26: 23 | B26: 23 | C26: 江门锦鼎金属制品实业有限公司 | D26: 91440783304216126P | E26: 开拓市场 | F26: 境外参展 | G26: 2023年6月13日-6月15日迪拜2023年第十四届中国（阿联酋）贸易博览会（春季展） | H26: 20,000.00 | I26: 20,000.00 | K26: 罗小姐 | L26: 13189879290 | M26: 中国银行 | N26: 江门市凯逸卫浴有限公司 | O26: 700376240339
A27: 24 | B27: 24 | C27: 江门市德美佳厨具有限公司 | D27: 9144078334540051X5 | E27: 开拓市场 | F27: 境外参展 | G27: 2023年09月20日-09月22日南非2023年第七届中 国（南非）贸易博览会） | H27: 20,000.00 | I27: 20,000.00 | K27: 罗小姐 | L27: 13189879290 | M27: 中国银行 | N27: 江门市凯逸卫浴有限公司 | O27: 700376240339
A28: 25 | B28: 25 | C28: 江门市德美佳厨具有限公司 | D28: 9144078334540051X5 | E28: 开拓市场 | F28: 境外参展 | G28: 2023年6月13日-6月15日-阿联酋（迪拜）-第十四届中国(阿联酋)贸易博览会 | H28: 20,000.00 | I28: 20,000.00 | K28: 罗小姐 | L28: 13189879290 | M28: 中国银行 | N28: 江门市凯逸卫浴有限公司 | O28: 700376240339
A29: 26 | B29: 26 | C29: 开平市海宏卫浴实业有限公司 | D29: 91440783MA53XGAW8N | E29: 开拓市场 | F29: 境外参展 | G29: 2023年第十五届中国（阿联酋）贸易博览会 | H29: 20,000.00 | I29: 20,000.00 | K29: 陈柳仙 | L29: 13555676812 | M29: 中国建设银行股份有限公司开平支行 | N29: 开平市宝来塑胶制品有限公司 | O29: 44001670901051286933
A30: 27 | B30: 27 | C30: 开平市奇迪科压铸卫浴有限公司 | D30: 914407006981443122 | E30: 开拓市场 | F30: 境外参展 | G30: 2023年第十届中国（巴西）贸易博览会 | H30: 20,000.00 | I30: 20,000.00 | K30: 陈柳仙 | L30: 13555676812 | M30: 中国建设银行股份有限公司开平支行 | N30: 开平市宝来塑胶制品有限公司 | O30: 44001670901051286933
A31: 28 | B31: 28 | C31: 开平市奇迪科压铸卫浴有限公司 | D31: 914407006981443122 | E31: 开拓市场 | F31: 境外参展 | G31: 2023年第十五届中国（阿联酋）贸易博览会 | H31: 20,000.00 | I31: 20,000.00 | K31: 邝杏柔 | L31: 13828063616 | M31: 中国工商银行股份有限公司开平水口科技支行 | N31: 开平柏斯高卫浴有限公司 | O31: 2012008109024213981
A32: 29 | B32: 29 | C32: 开平市洁士五金科技有限公司 | D32: 91440783MA55Y6YRXT | E32: 开拓市场 | F32: 境外参展 | G32: 2023年第十五届中国（阿联酋）贸易博览会 | H32: 20,000.00 | I32: 20,000.00 | K32: 张健民 | L32: 13528315982 | M32: 中国建设银行股份有限公司开平支行 | N32: 开平市凯赛德水暖配件有限公司 | O32: 44001670901053004626
A33: 30 | B33: 30 | C33: 江门市诺基山厨卫科技有限公司 | D33: 91440784MA4WCEB31K | E33: 开拓市场 | F33: 境外参展 | G33: 2023年第十五届中国（阿联酋）贸易博览会 | H33: 20,000.00 | I33: 20,000.00 | K33: 涂方建 | L33: 13970375943 | M33: 中国工商银行股份有限公司 | N33: 开平市方剑卫浴有限公司 | O33: 2012008109200045113
A34: 31 | B34: 31 | C34: 广东高盛卫浴科技有限公司 | D34: 91440783MA4W64E14N | E34: 开拓市场 | F34: 境外参展 | G34: 2023年12月11日到13日年第十届中国（巴西）外贸博览会 | H34: 20,000.00 | I34: 20,000.00 | K34: 黎德荣 | L34: 13809605850 | M34: 中国建设银行 | N34: 开平市图恩卫浴有限公司 | O34: 44001670905053004257
A35: 32 | B35: 32 | C35: 开平市达豪日化科技有限公司 | D35: 914407836615297294 | E35: 开拓市场 | F35: 境外参展 | G35: 2023年11月23-25日-雅加达-第五届中国(印尼)贸易博览会 | H35: 20,000.00 | I35: 20,000.00 | K35: 陈贤香 | L35: 13630469717 | M35: 中国农业银行 | N35: 开平市佳力五金制品有限公司 | O35: 44-402601040009226
A36: 33 | B36: 33 | C36: 开平市达豪日化科技有限公司 | D36: 914407836615297294 | E36: 开拓市场 | F36: 境外参展 | G36: 2023年12月19-21日-迪拜-第十五届中国(阿联酋)贸易博览会 | H36: 20,000.00 | I36: 20,000.00 | K36: 谈烈钦 | L36: 13902551635 | M36: 工商银行 | N36: 开平市伊丹卫浴实业有限公司 | O36: 2012008109024811552
A37: 34 | B37: 34 | C37: 开平市本铃机车密封垫有限公司 | D37: 914407837350253646 | E37: 开拓市场 | F37: 境外参展 | G37: 2023年8月21日-8月24日俄罗斯（莫斯科）国际汽车零配件及售后服务展览会 | H37: 20,000.00 | I37: 20,000.00 | K37: 刘巧 | L37: 13827061657 | M37: 中国银行股份有限公司 | N37: 开平市易洁卫浴有限公司 | O37: 632764632236
A38: 35 | B38: 35 | C38: 开平市卓阳卫浴实业有限公司 | D38: 9144078355557864X9 | E38: 开拓市场 | F38: 境外参展 | G38: 2023年第十五届中国（阿联酋）贸易博览会 | H38: 20,000.00 | I38: 20,000.00 | K38: 李嘉威 | L38: 13902241704 | M38: 广东开平农村商业银行股份有限公司 | N38: 开平金牌洁具有限公司 | O38: 80020000000443352
A39: 开拓市场境外参展项目小计 | B39: 开拓市场境内参展项目小计 | H39: =SUM(H4:H38) -> 797,906.00 | I39: =SUM(I4:I38) -> 797,906.00 | K39: 余泽南 | L39: 18929089170 | M39: 广东开平农村商业银行股份有限公司苍城支行 | N39: 联冠（开平）胶粘制品有限公司 | O39: 80020000000484638
A40: =ROW()-3 -> 37 | B40: =ROW()-4 -> 36 | C40: 开平市预发卫浴有限公司 | D40: 914407836649671859 | E40: 开拓市场 | F40: 境内参展 | G40: 第27届中国国际厨房、卫浴设施展览会 | H40: 40,000.00 | I40: 40,000.00 | K40: 陈炜 | L40: 13809607974 | M40: 中国工商银行 | N40: 开平市联洋卫浴配件有限公司 | O40: 2012008109248035450
A41: 38 | B41: =ROW()-4 -> 37 | C41: 开平市亿展阀芯有限公司 | D41: 91440783568210545X | E41: 开拓市场 | F41: 境内参展 | G41: 第27届中国国际厨房、卫浴设施展览会 | H41: 40,000.00 | I41: 40,000.00 | K41: 邝雪珠 | L41: 13431783592 | M41: 广东开平农村商业银行股份有限公司 | N41: 开平市汉朗莎卫浴实业有限公司 | O41: 80020000000456394
A42: 39 | B42: 38 | C42: 开平市新明光五金制品有限公司 | D42: 9144078374917810XU | E42: 开拓市场 | F42: 境内参展 | G42: 第 27 届中国国际厨房、卫浴设施展览会 | H42: 20,000.00 | I42: 20,000.00 | K42: 谭润馀 | L42: 18219110681 | M42: 中国银行 | N42: 开平市利德信进出口贸易有限公司 | O42: 654857748808
A43: 40 | B43: 39 | C43: 开平市和洋洁具有限公司 | D43: 91440783MA529L282H | E43: 开拓市场 | F43: 境内参展 | G43: 第 27 届中国国际厨房、卫浴设施展览会 | H43: 30,000.00 | I43: 30,000.00 | K43: 李志刚 | L43: 13926825717 | M43: 中国建设银行股份有限公司江门开平水口支行 | N43: 开平赛道龙头配件有限公司 | O43: 44001670905051300833
A44: 41 | B44: 40 | C44: 开平力蒲卫浴有限公司 | D44: 91440700766592951G | E44: 开拓市场 | F44: 境内参展 | G44: 第27届中国国际厨房、卫浴设施展览会 | H44: 40,000.00 | I44: 40,000.00 | K44: 袁佩怡 | L44: 13760517615 | M44: 中国农业银行 | N44: 开平市思华卫浴有限公司 | O44: 4440801040002757
A45: 42 | B45: 41 | C45: 开平市金特卫浴有限公司 | D45: 91440783076659370D | E45: 开拓市场 | F45: 境内参展 | G45: 第27届中国国际厨房、卫浴设施展览会 | H45: 40,000.00 | I45: 40,000.00 | K45: 张艳娟 | L45: 15015010948 | M45: 中国工商银行 | N45: 开平市广盛卫浴有限公司 | O45: 2012008109024837175
A46: 43 | B46: 42 | C46: 开平赛道龙头配件有限公司 | D46: 91440700753696495F | E46: 开拓市场 | F46: 境内参展 | G46: 第27届中国国际厨房、卫浴设施展览会 | H46: 40,000.00 | I46: 40,000.00 | K46: 张艳娟 | L46: 15015010948 | M46: 中国工商银行 | N46: 开平市广盛卫浴有限公司 | O46: 2012008109024837175
A47: 44 | B47: 43 | C47: 开平市惠普卫浴实业有限公司 | D47: 91440783663327434D | E47: 开拓市场 | F47: 境内参展 | G47: 第 27 届中国国际厨房、卫浴设施展览会 | H47: 20,000.00 | I47: 20,000.00 | K47: 陈信剑 | L47: 13528328016 | M47: 中国银行 | N47: 广东粤轻卫浴科技有限公司 | O47: 634057749151
A48: 45 | B48: 44 | C48: 开平市力泰五金制品有限公司 | D48: 9144078377923263XR | E48: 开拓市场 | F48: 境内参展 | G48: 第27届中国国际厨房、卫浴设施展览会 | H48: 20,000.00 | I48: 20,000.00 | K48: 钱超 | L48: 13726157852 | M48: 中国农业银行开平水口支行 | N48: 开平市预发卫浴有限公司 | O48: 44402601040008509
A49: 46 | B49: 45 | C49: 广东顶尖管业科技有限公司 | D49: 914407836947263826 | E49: 开拓市场 | F49: 境内参展 | G49: 第27届中国国际厨房、卫浴设施展览会 | H49: 40,000.00 | I49: 40,000.00 | K49: 周蒲香 | L49: 13794206031 | M49: 广东开平农村商业银行股份有限公司 | N49: 江门市一六八卫浴科技有限公司 | O49: 80020000008227639
A50: 47 | B50: 46 | C50: 开平市东陶压铸卫浴有限公司 | D50: 91440783694709478K | E50: 开拓市场 | F50: 境内参展 | G50: (第27届）中国(上海)国际厨房、卫浴设施展览会 | H50: 20,000.00 | I50: 20,000.00 | K50: 周蒲香 | L50: 13794206031 | M50: 广东开平农村商业银行股份有限公司 | N50: 江门市一六八卫浴科技有限公司 | O50: 80020000008227639
A51: 48 | B51: 47 | C51: 开平市汉玛克卫浴有限公司 | D51: 91440783675229508N | E51: 开拓市场 | F51: 境内参展 | G51: 第27届中国国际厨房、卫浴设施展览会 | H51: 40,000.00 | I51: 40,000.00 | K51: 陈娃妮 | L51: 13828071218 | M51: 中国工商银行股份有限公司 | N51: 江门锦鼎金属制品实业有限公司 | O51: 2012008119200047771
A52: 49 | B52: 48 | C52: 开平市嘉恩卫浴有限公司 | D52: 914407837879034561 | E52: 开拓市场 | F52: 境内参展 | G52: 第27届中国国际厨房、卫浴设施展览会 | H52: 40,000.00 | I52: 40,000.00 | K52: 陈娃妮 | L52: 13828071218 | M52: 中国工商银行股份有限公司 | N52: 江门锦鼎金属制品实业有限公司 | O52: 2012008119200047771
A53: 50 | B53: 49 | C53: 开平市领雅厨卫有限公司 | D53: 91440784314926199J | E53: 开拓市场 | F53: 境内参展 | G53: 2023年8月18日-8月20日-中国（广州）-中国跨境电商交易会（秋季） | H53: 10,000.00 | I53: 10,000.00 | K53: 梁丽晶 | L53: 13672869553 | M53: 中国建设银行股份有限公司 | N53: 开平市旭特五金实业有限公司 | O53: 44050167090500000646
A54: 51 | B54: 50 | C54: 开平柏斯高卫浴有限公司 | D54: 91440700763809166M | E54: 开拓市场 | F54: 境内参展 | G54: 第27届中国国际厨房、卫浴设施展览会 | H54: 40,000.00 | I54: 40,000.00 | K54: 司徒锦雅 | L54: 13431791034 | M54: 中国工商银行开平市水口支行 | N54: 开平市澳佳卫浴有限公司 | O54: 2012008109024863711
A55: 52 | B55: 51 | C55: 开平市凯赛德水暖配件有限公司 | D55: 914407005682141675 | E55: 开拓市场 | F55: 境内参展 | G55: 第27届中国国际厨房、卫浴设施展览会 | H55: 40,000.00 | I55: 40,000.00 | K55: 李荫锦 | L55: 18038755388 | M55: 中国银行股份有限公司江门开平支行 | N55: 江门市德美佳厨具有限公司 | O55: 723769315152
A56: 53 | B56: 52 | C56: 开平市方剑卫浴有限公司 | D56: 91440783MA53LETQ9C | E56: 开拓市场 | F56: 境内参展 | G56: CCEE全球跨境电商展览会（广州） | H56: 40,000.00 | I56: 40,000.00 | K56: 李荫锦 | L56: 18038755388 | M56: 中国银行股份有限公司江门开平支行 | N56: 江门市德美佳厨具有限公司 | O56: 723769315152
A57: 54 | B57: 53 | C57: 开平市图恩卫浴有限公司 | D57: 91440700597424948G | E57: 开拓市场 | F57: 境内参展 | G57: 第27届中国国际厨房、卫浴设施展览会 | H57: 40,000.00 | I57: 40,000.00 | K57: 洪小姬 | L57: 13555652140 | M57: 中国工商银行 | N57: 开平市海宏卫浴实业有限公司 | O57: 2012032409100020152
A58: 55 | B58: 54 | C58: 开平市佳力五金制品有限公司 | D58: 914407836886221659 | E58: 开拓市场 | F58: 境内参展 | G58: 第27届中国国际厨房、卫浴设施展览会 | H58: 30,000.00 | I58: 30,000.00 | K58: 许旭春 | L58: 13632082737 | M58: 中国银行股份有限公司江门开平支行 | N58: 开平市奇迪科压铸卫浴有限公司 | O58: 649657748815
A59: 56 | B59: 55 | C59: 开平市伊丹卫浴实业有限公司 | D59: 91440783748026892B | E59: 开拓市场 | F59: 境内参展 | G59: 第27届中国国际厨房、卫浴设施展览会 | H59: 40,000.00 | I59: 40,000.00 | K59: 许旭春 | L59: 13632082737 | M59: 中国银行股份有限公司江门开平支行 | N59: 开平市奇迪科压铸卫浴有限公司 | O59: 649657748815
A60: 57 | B60: 56 | C60: 开平金牌洁具有限公司 | D60: 914407007993288071 | E60: 开拓市场 | F60: 境内参展 | G60: 第27届中国国际厨房、卫浴设施展览会 | H60: 40,000.00 | I60: 40,000.00 | K60: 许旭春 | L60: 13632082737 | M60: 中国银行股份有限公司江门开平支行 | N60: 开平市奇迪科压铸卫浴有限公司 | O60: 649657748815
A61: 58 | B61: 57 | C61: 开平市联洋卫浴配件有限公司 | D61: 91440700MA4UWUD51J | E61: 开拓市场 | F61: 境内参展 | G61: 第27届中国国际厨房、卫浴设施展览会 | H61: 40,000.00 | I61: 40,000.00 | K61: 麦翠萍 | L61: 18929081412 | M61: 中国建设银行股份有限公司江门开平卫东支行 | N61: 开平市健派卫浴有限公司 | O61: 44050167092100000375
A62: 59 | B62: 58 | C62: 开平达威尔厨卫有限公司 | D62: 91440700792902861X | E62: 开拓市场 | F62: 境内参展 | G62: 第27届中国国际厨房、卫浴设施展览会 | H62: 40,000.00 | I62: 40,000.00 | K62: 谭艳芳 | L62: 13809606127 | M62: 广东开平农村商业银行股份有限公司 | N62: 开平市洁士五金科技有限公司 | O62: 80020000016163152
A63: 60 | B63: 59 | C63: 开平市汉朗莎卫浴实业有限公司 | D63: 91440783686418486H | E63: 开拓市场 | F63: 境内参展 | G63: 第27届中国国际厨房、卫浴设施展览会 | H63: 40,000.00 | I63: 40,000.00 | K63: 李群仲 | L63: 15913683023 | M63: 广东鹤山农村商业银行股份有限公司 | N63: 江门市诺基山厨卫科技有限公司 | O63: 80020000010584370
A64: 61 | B64: 60 | C64: 广东华艺卫浴实业有限公司 | D64: 914407837192225016 | E64: 开拓市场 | F64: 境内参展 | G64: 第27届中国国际厨房、卫浴设施展览会 | H64: 40,000.00 | I64: 40,000.00 | K64: 林春瑶 | L64: 13630473743 | M64: 中国工商银行股份有限公司开平水口科技支行 | N64: 广东伟祥卫浴实业有限公司 | O64: 2012008109024209638
A65: 62 | B65: 61 | C65: 开平市利德信进出口贸易有限公司 | D65: 91440783797790408Y | E65: 开拓市场 | F65: 境内参展 | G65: 2023年4月12日-14日-中国（广州）-CCEE全球跨境电商展览会（广州） | H65: 10,000.00 | I65: 10,000.00 | K65: 梁玉兰 | L65: 13702228136 | M65: 中国工商银行股份有限公司 | N65: 开平欧玛莎卫浴实业有限公司 | O65: 2012008119024286662
A66: 63 | B66: 62 | C66: 开平市广盛卫浴有限公司 | D66: 914407836665486031 | E66: 开拓市场 | F66: 境内参展 | G66: CCEE全球跨境电商展览会(广州) | H66: 20,000.00 | I66: 20,000.00 | K66: 张敏仪 | L66: 18922016813 | M66: 中国工商银行股份有限公司开平市水口科技支行 | N66: 开平市欧尚卫浴实业有限公司 | O66: 2012008109024831364
A67: 64 | B67: 63 | C67: 广东粤轻卫浴科技有限公司 | D67: 91440783194282164T | E67: 开拓市场 | F67: 境内参展 | G67: 第27届中国国际厨房、卫浴设施展览会 | H67: 40,000.00 | I67: 40,000.00 | K67: 周卫明 | L67: 13652749923 | M67: 中国工商银行开平市水口科技支行 | N67: 开平正霖卫浴实业有限公司 | O67: 2012008109024201872
A68: 65 | B68: 64 | C68: 江门锦鼎金属制品实业有限公司 | D68: 91440783304216126P | E68: 开拓市场 | F68: 境内参展 | G68: 2023年6月07日-6月10日上海中国(上海)国际厨房、卫浴设施展览会 | H68: 40,000.00 | I68: 40,000.00 | K68: 余晓霞 | L68: 13422529920 | M68: 中国工商银行开平市水口支行 | N68: 开平诺迪水暖器材有限公司 | O68: 2012008109002428828
A69: 66 | B69: 65 | C69: 开平市旭特五金实业有限公司 | D69: 91440783MA54Q0NQ06 | E69: 开拓市场 | F69: 境内参展 | G69: 第27届中国国际厨房、卫浴设施展览会 | H69: 20,000.00 | I69: 20,000.00 | K69: 古地珍 | L69: 13824029866 | M69: 中国建设银行股份有限公司开平水口支行 | N69: 广东高盛卫浴科技有限公司 | O69: 44050167994500000069
A70: 67 | B70: 66 | C70: 开平市澳佳卫浴有限公司 | D70: 91440783699772695A | E70: 开拓市场 | F70: 境内参展 | G70: 第27届中国国际厨房、卫浴设施展览会 | H70: 40,000.00 | I70: 40,000.00 | K70: 黎雁欢 | L70: 13750308364 | M70: 中国建设银行股份有限公司开平水口支行 | N70: 开平市蓝凯卫浴实业有限公司 | O70: 44050167994500000037
A71: 68 | B71: 67 | C71: 开平市奇迪科压铸卫浴有限公司 | D71: 914407006981443122 | E71: 开拓市场 | F71: 境内参展 | G71: 第27届中国国际厨房、卫浴设施展览会 | H71: 40,000.00 | I71: 40,000.00 | K71: 谭强新 | L71: 13902554002 | M71: 广东开平农村商业银行股份有限公司 | N71: 开平市迪恩卫浴实业有限公司 | O71: 80020000000456327
A72: 69 | B72: 68 | C72: 开平市健派卫浴有限公司 | D72: 91440783MA4X3WFF6R | E72: 开拓市场 | F72: 境内参展 | G72: 第27届中国国际厨房、卫浴设施展览会 | H72: 20,000.00 | I72: 20,000.00 | K72: 梁杰民 | L72: 15820296494 | M72: 中国农业银行 | N72: 开平市达豪日化科技有限公司 | O72: 44403401040002233
A73: 70 | B73: 69 | C73: 广东伟祥卫浴实业有限公司 | D73: 914407007701550250 | E73: 开拓市场 | F73: 境内参展 | G73: 第27届中国国际厨房、卫浴设施展览会 | H73: 40,000.00 | I73: 40,000.00 | K73: 梁杰民 | L73: 15820296494 | M73: 中国农业银行 | N73: 开平市达豪日化科技有限公司 | O73: 44403401040002233
A74: 71 | B74: 70 | C74: 开平欧玛莎卫浴实业有限公司 | D74: 9144070068445634XU | E74: 开拓市场 | F74: 境内参展 | G74: 第27届中国(上海)国际厨房、卫浴设施展览会 | H74: 40,000.00 | I74: 40,000.00 | K74: 梁杰民 | L74: 15820296494 | M74: 中国农业银行 | N74: 开平市达豪日化科技有限公司 | O74: 44403401040002233
A75: 72 | B75: 71 | C75: 开平市欧尚卫浴实业有限公司 | D75: 914407837962772311 | E75: 开拓市场 | F75: 境内参展 | G75: 第27届中国国际厨房、卫浴设施展览会 | H75: 40,000.00 | I75: 40,000.00 | K75: 黄敏慧 | L75: 13426749239 | M75: 开平市农村商业银行股份有限公司 | N75: 开平市本铃机车密封垫有限公司 | O75: 80020000000467099
A76: 73 | B76: 72 | C76: 开平正霖卫浴实业有限公司 | D76: 91440700792997282T | E76: 开拓市场 | F76: 境内参展 | G76: 2022中国国际厨房、卫浴设施展览会（第27届） | H76: 40,000.00 | I76: 40,000.00 | K76: 刘晓晨 | L76: 19868585419 | M76: 中国工商银行股份有限公司 | N76: 开平市雨派卫浴科技有限公司 | O76: 2012008109248093907
A77: 74 | B77: 73 | C77: 开平诺迪水暖器材有限公司 | D77: 91440700758326063G | E77: 开拓市场 | F77: 境内参展 | G77: 第27届中国国际厨房、卫浴设施展览会 | H77: 40,000.00 | I77: 40,000.00 | K77: 张丽瑜 | L77: 13750361486 | M77: 中国银行 | N77: 广东好事多卫浴科技有限公司 | O77: 682170030229
A78: 75 | B78: 74 | C78: 开平市蓝凯卫浴实业有限公司 | D78: 91440783MA4UR25L8M | E78: 开拓市场 | F78: 境内参展 | G78: 第 27 届中国国际厨房、卫浴设施展览会 | H78: 40,000.00 | I78: 40,000.00 | K78: 杨小姐 | L78: 13717253049 | M78: 中国农业银行股份有限公司 | N78: 开平市汉顺洁具实业有限公司 | O78: 44402601040009887
A79: 76 | B79: 75 | C79: 开平市迪恩卫浴实业有限公司 | D79: 9144078368445298XC | E79: 开拓市场 | F79: 境内参展 | G79: 第27届中国国际厨房、卫浴设施展览会 | H79: 40,000.00 | I79: 40,000.00 | K79: 邝杏柔 | L79: 13828063616 | M79: 中国工商银行股份有限公司开平水口科技支行 | N79: 开平柏斯高卫浴有限公司 | O79: 2012008109024213981
A80: 77 | B80: 76 | C80: 开平市达豪日化科技有限公司 | D80: 914407836615297294 | E80: 开拓市场 | F80: 境内参展 | G80: 2023年7月20-22日-上海-第116届中国日用百货商品交易会 | H80: 40,000.00 | I80: 40,000.00 | K80: 李蔼玲 | L80: 13702210009 | M80: 中国银行 | N80: 开平太平洋卫浴实业有限公司 | O80: 893858455018091001
A81: 78 | B81: 77 | C81: 开平市雨派卫浴科技有限公司 | D81: 91440783MA4W3HW69H | E81: 开拓市场 | F81: 境内参展 | G81: 第27届中国国际厨房、卫浴设施展览会 | H81: 40,000.00 | I81: 40,000.00 | K81: 卢一妍 | L81: 13702223375 | M81: 中国工商银行股份有限公司开平 | N81: 开平市迪朗五金塑料制品有限公司 | O81: 102589400819
A82: 79 | B82: 78 | C82: 广东好事多卫浴科技有限公司 | D82: 91440783MA51EJ5QXC | E82: 开拓市场 | F82: 境内参展 | G82: 第27届中国国际厨房、卫浴设施展览会 | H82: 40,000.00 | I82: 40,000.00 | K82: 关嘉明 | L82: 18128297907 | M82: 中国银行股份有限公司 | N82: 江门市镇坚五金科技有限公司 | O82: 726365676557
A83: 80 | B83: 79 | C83: 开平市汉顺洁具实业有限公司 | D83: 914407836947598970 | E83: 开拓市场 | F83: 境内参展 | G83: 2023中国国际厨房、卫浴设施展览会(第27届) | H83: 40,000.00 | I83: 40,000.00 | K83: 关嘉明 | L83: 18128297907 | M83: 中国银行股份有限公司 | N83: 江门市镇坚五金科技有限公司 | O83: 726365676557
A84: 81 | B84: 80 | C84: 开平太平洋卫浴实业有限公司 | D84: 91440700799316187B | E84: 开拓市场 | F84: 境内参展 | G84: 第27届中国国际厨房、卫浴设施展览会 | H84: 20,000.00 | I84: 20,000.00 | K84: 谈金爱 | L84: 18026769356 | M84: 中国农业银行股份有限公司开平中兴支行 | N84: 江门市蓝森卫浴科技有限公司 | O84: 44402701040006212
A85: 82 | B85: 81 | C85: 开平市迪朗五金塑料制品有限公司 | D85: 9144078378794053X5 | E85: 开拓市场 | F85: 境内参展 | G85: 第27届中国国际厨房 、卫浴设施展览会 | H85: 30,000.00 | I85: 30,000.00 | K85: 罗林玉 | L85: 13822362786 | M85: 中国工商银行股份有限公司 | N85: 开平市澳林卫浴有限公司 | O85: 2012008109248013834
A86: 开拓市场境内参展项目小计 | B86: 开拓市场境内参展项目小计 | H86: =SUM(H40:H85) -> 1,590,000.00 | I86: =SUM(I40:I85) -> 1,590,000.00 | K86: 余泽南 | L86: 18929089170 | M86: 广东开平农村商业银行股份有限公司苍城支行 | N86: 联冠（开平）胶粘制品有限公司 | O86: 80020000000484638
A87: =ROW()-4 -> 83 | B87: =ROW()-5 -> 82 | C87: 广东华艺卫浴实业有限公司 | D87: 914407837192225016 | E87: 防范国际贸易风险 | F87: 进出口信用保险 | G87: 2023年1月至12月短期进出口信用保险项目 | H87: 149,473.61 | I87: 149,473.61
A88: 84 | B88: =ROW()-5 -> 83 | C88: 广东可味巧克力食品有限公司 | D88: 91440700747099934F | E88: 防范国际贸易风险 | F88: 进出口信用保险 | G88: 2023年1月至12月短期进出口信用保险项目 | H88: 26,064.10 | I88: 26,064.10 | K88: 梁丽莹 | L88: 13428286143 | M88: 中国工商银行股份有限公司开平水口科技支行 | N88: 广东华艺卫浴实业有限公司 | O88: 2012008109024805928
A89: 85 | B89: 84 | C89: 广东泰宝聚合物有限公司 | D89: 914407005666122250 | E89: 防范国际贸易风险 | F89: 进出口信用保险 | G89: 2023年1月至12月短期进出口信用保险项目 | H89: 342,852.06 | I89: 342,852.06 | K89: 谭喜莲 | L89: 15875070881 | M89: 中国银行股份有限公司江门开平支行 | N89: 广东可味巧克力食品有限公司 | O89: 702957748789
A90: 86 | B90: 85 | C90: 广东伟祥卫浴实业有限公司 | D90: 914407007701550250 | E90: 防范国际贸易风险 | F90: 进出口信用保险 | G90: 2023年1月至12月短期进出口信用保险项目 | H90: 32,984.00 | I90: 32,984.00 | K90: 梁晓恒 | L90: 15819723031 | M90: 中国银行股份有限公司江门开平支行 | N90: 广东泰宝聚合物有限公司 | O90: 650957748826
A91: 87 | B91: 86 | C91: 江门市德美佳厨具有限公司 | D91: 9144078334540051X5 | E91: 防范国际贸易风险 | F91: 进出口信用保险 | G91: 2023年1月至12月短期进出口信用保险项目 | H91: 6,960.00 | I91: 6,960.00 | K91: 林春瑶 | L91: 13630473743 | M91: 中国工商银行股份有限公司开平水口科技支行 | N91: 广东伟祥卫浴实业有限公司 | O91: 2012008109024209638
A92: 88 | B92: 87 | C92: 江门雅固卫浴实业有限公司 | D92: 9144078474803151XP | E92: 防范国际贸易风险 | F92: 进出口信用保险 | G92: 2023年1月至12月短期进出口信用保险项目 | H92: 6,960.00 | I92: 6,960.00 | K92: 李荫锦 | L92: 18038755388 | M92: 中国银行股份有限公司江门开平支行 | N92: 江门市德美佳厨具有限公司 | O92: 723769315152
A93: 89 | B93: 88 | C93: 开平柏斯高卫浴有限公司 | D93: 91440700763809166M | E93: 防范国际贸易风险 | F93: 进出口信用保险 | G93: 2023年1月至12月短期进出口信用保险项目 | H93: 5,987.95 | I93: 5,987.95 | K93: 张玲 | L93: 13827019966 | M93: 广东开平农村商业银行股份限公司水口支行 | N93: 江门雅固卫浴实业有限公司 | O93: 80020000017123708
A94: 90 | B94: 89 | C94: 开平凯德家用电器有限公司 | D94: 91440700617737715Q | E94: 防范国际贸易风险 | F94: 进出口信用保险 | G94: 2023年1月至12月短期进出口信用保险项目 | H94: 15,952.00 | I94: 15,952.00 | K94: 周洋 | L94: 18824193010 | M94: 中国工商银行 | N94: 开平市卓阳卫浴实业有限公司 | O94: 2012008109024869371
A95: 91 | B95: 90 | C95: 开平美迪晨卫浴有限公司 | D95: 91440700760642073C | E95: 防范国际贸易风险 | F95: 进出口信用保险 | G95: 2023年1月至12月短期进出口信用保险项目 | H95: 21,500.00 | I95: 21,500.00 | K95: 何彩红 | L95: 18929082210 | M95: 中国银行股份有限公司江门开平支行 | N95: 开平凯德家用电器有限公司 | O95: 661357748779
A96: 92 | B96: 91 | C96: 开平市安迪卫浴实业有限公司 | D96: 914407007977567955 | E96: 防范国际贸易风险 | F96: 进出口信用保险 | G96: 2023年1月至12月短期进出口信用保险项目 | H96: 14,139.68 | I96: 14,139.68 | K96: 陆富球 | L96: 13929083017 | M96: 广东开平农村商业银行股份有限公司水口支行 | N96: 开平美迪晨卫浴有限公司 | O96: 80020000000454647
A97: 93 | B97: 92 | C97: 开平市宝来塑胶制品有限公司 | D97: 9144078374709798XT | E97: 防范国际贸易风险 | F97: 进出口信用保险 | G97: 2023年1月至12月短期进出口信用保险项目 | H97: 5,346.00 | I97: 5,346.00 | K97: 李少芬 | L97: 13544955180 | M97: 广东开平农村商业银行股份有限公司水口支行 | N97: 开平市安迪卫浴实业有限公司 | O97: 80020000000456123
A98: 94 | B98: 93 | C98: 开平市博美卫浴有限公司 | D98: 91440783673054871T | E98: 防范国际贸易风险 | F98: 进出口信用保险 | G98: 2023年1月至12月短期进出口信用保险项目 | H98: 13,800.00 | I98: 13,800.00 | K98: 张伟鑫 | L98: 13427176217 | M98: 中国建设银行股份有限公司开平支行 | N98: 开平市宝来塑胶制品有限公司 | O98: 44001670901051286933
A99: 95 | B99: 94 | C99: 开平市富丽雅实业有限公司 | D99: 91440783052408286B | E99: 防范国际贸易风险 | F99: 进出口信用保险 | G99: 2023年1月至12月短期进出口信用保险项目 | H99: 6,800.00 | I99: 6,800.00 | K99: 黄淑媛 | L99: 13824076299 | M99: 中国建设银行股份有限公司江门开平水口支行 | N99: 开平市博美卫浴有限公司 | O99: 44001670905059778095
A100: 96 | B100: 95 | C100: 开平市汉玛克卫浴有限公司 | D100: 91440783675229508N | E100: 防范国际贸易风险 | F100: 进出口信用保险 | G100: 2023年1月至12月短期进出口信用保险项目 | H100: 7,000.00 | I100: 7,000.00 | K100: 黄业嫦 | L100: 13414167081 | M100: 广东开平农村商业银行股份有限公司百合支行 | N100: 开平市富丽雅实业有限公司 | O100: 80020000004570524
A101: 97 | B101: 96 | C101: 开平市和洋洁具有限公司 | D101: 91440783MA529L282H | E101: 防范国际贸易风险 | F101: 进出口信用保险 | G101: 2023年1月至12月短期进出口信用保险项目 | H101: 7,697.80 | I101: 7,697.80 | K101: 吴雪君 | L101: 13929081601 | M101: 中国建设银行江门开平水口支行 | N101: 开平市汉玛克卫浴有限公司 | O101: 44001670905059001688
A102: 98 | B102: 97 | C102: 开平市骏源进出口贸易有限公司 | D102: 91440783792961431J | E102: 防范国际贸易风险 | F102: 进出口信用保险 | G102: 2023年1月至12月短期进出口信用保险项目 | H102: 3,126.11 | I102: 3,126.11 | K102: 黄秀云 | L102: 13422641961 | M102: 中国工商银行股份有限公司江门开平水口科技支行 | N102: 开平市和洋洁具有限公司 | O102: 2012008109200064945
A103: 99 | B103: 98 | C103: 开平市凯赛德水暖配件有限公司 | D103: 914407005682141675 | E103: 防范国际贸易风险 | F103: 进出口信用保险 | G103: 2023年1月至12月短期进出口信用保险项目 | H103: 8,112.48 | I103: 8,112.48 | K103: 敖健秀 | L103: 13556909011 | M103: 中国农业银行股份有限公司开平市支行 | N103: 开平市骏源进出口贸易有限公司 | O103: 44400001040019238
A104: 100 | B104: 99 | C104: 开平市蓝凯卫浴实业有限公司 | D104: 91440783MA4UR25L8M | E104: 防范国际贸易风险 | F104: 进出口信用保险 | G104: 2023年1月至12月短期进出口信用保险项目 | H104: 4,997.00 | I104: 4,997.00 | K104: 劳美仪 | L104: 13427300043 | M104: 中国建设银行股份有限公司开平支行 | N104: 开平市凯赛德水暖配件有限公司 | O104: 44001670901053004626
A105: 101 | B105: 100 | C105: 开平市美年华服装有限公司 | D105: 91440783334738574E | E105: 防范国际贸易风险 | F105: 进出口信用保险 | G105: 2023年1月至12月短期进出口信用保险项目 | H105: 7,180.00 | I105: 7,180.00 | K105: 黎雁欢 | L105: 13750308364 | M105: 中国建设银行股份有限公司开平水口支行 | N105: 开平市蓝凯卫浴实业有限公司 | O105: 44050167994500000037
A106: 102 | B106: 101 | C106: 开平市奇迪科压铸卫浴有限公司 | D106: 914407006981443122 | E106: 防范国际贸易风险 | F106: 进出口信用保险 | G106: 2023年1月至12月短期进出口信用保险项目 | H106: 5,500.00 | I106: 5,500.00 | K106: 薛冬梅 | L106: 13822361802 | M106: 中国农业银行股份有限公司开平花园支行 | N106: 开平市美年华服装有限公司 | O106: 44401301040003102
A107: 103 | B107: 102 | C107: 开平市天雅塑料实业有限公司 | D107: 91440783MA54CTN274 | E107: 防范国际贸易风险 | F107: 进出口信用保险 | G107: 2023年1月至12月短期进出口信用保险项目 | H107: 7,082.10 | I107: 7,082.10 | K107: 许旭春 | L107: 13632082737 | M107: 中国银行股份有限公司江门开平支行 | N107: 开平市奇迪科压铸卫浴有限公司 | O107: 649657748815
A108: 104 | B108: 103 | C108: 开平威技电器有限公司 | D108: 91440700734114330W | E108: 防范国际贸易风险 | F108: 进出口信用保险 | G108: 2023年1月至12月短期进出口信用保险项目 | H108: 26,766.00 | I108: 26,766.00 | K108: 张玉清 | L108: 13664938088 | M108: 中国银行股份有限公司江门开平水口科技支行 | N108: 开平市天雅塑料实业有限公司 | O108: 671772908646
A109: 105 | B109: 104 | C109: 开平依利安达电子第三有限公司 | D109: 91440700721154755F | E109: 防范国际贸易风险 | F109: 进出口信用保险 | G109: 2023年1月至12月短期进出口信用保险项目 | H109: 218,886.20 | I109: 218,886.20 | K109: 严晓敏 | L109: 15994886708 | M109: 中国建设银行股份有限公司 | N109: 开平威技电器有限公司 | O109: 44001670901051288940
A110: 106 | B110: 105 | C110: 联冠（开平）胶粘制品有限公司 | D110: 91440700661489720W | E110: 防范国际贸易风险 | F110: 进出口信用保险 | G110: 2023年1月至12月短期进出口信用保险项目 | H110: 4,500.00 | I110: 4,500.00 | K110: 汤翠映 | L110: 13630416287 | M110: 中国银行股份有限公司江门开平支行 | N110: 开平依利安达电子第三有限公司 | O110: 669157758550
A111: 107 | B111: 106 | C111: 银都拉玛（开平）高性能纤维有限公司 | D111: 914407006177552515 | E111: 防范国际贸易风险 | F111: 进出口信用保险 | G111: 2023年1月至12月短期进出口信用保险项目 | H111: 28,800.00 | I111: 28,800.00 | K111: 余泽南 | L111: 18929089170 | M111: 广东开平农村商业银行股份有限公司苍城支行 | N111: 联冠（开平）胶粘制品有限公司 | O111: 80020000000484638
A112: 108 | B112: 107 | C112: 银都拉玛（开平）高性能纤维有限公司 | D112: 914407006177552515 | E112: 防范国际贸易风险 | F112: 进出口信用保险 | G112: 2023年1月至12月短期进出口信用保险项目 | H112: 3,440.00 | I112: 3,440.00 | K112: 张学妹 | L112: 18029652152 | M112: 中国银行股份有限公司江门开平支行 | N112: 银都拉玛（开平）高性能纤维有限公司 | O112: 700357748774
A113: 109 | B113: 108 | C113: 开平施特珑卫浴产品有限公司 | D113: 914407007750974429 | E113: 防范国际贸易风险 | F113: 进出口信用保险 | G113: 2023年出口贸易信用险 | H113: 3,571.00 | I113: 3,571.00 | K113: 张学妹 | L113: 18029652152 | M113: 中国银行股份有限公司江门开平支行 | N113: 银都拉玛（开平）高性能纤维有限公司 | O113: 700357748774
A114: 进出口信用保险项目小计 | B114: 进出口信用保险项目小计 | H114: =SUM(H87:H113) -> 985,478.09 | I114: =SUM(I87:I113) -> 985,478.09 | K114: 张学妹 | L114: 18029652152 | M114: 中国银行股份有限公司江门开平支行 | N114: 银都拉玛（开平）高性能纤维有限公司 | O114: 700357748774
A115: =ROW()-5 -> 110 | B115: =ROW()-6 -> 109 | C115: 广东华艺卫浴实业有限公司 | D115: 914407837192225016 | E115: 防范国际贸易风险 | F115: 中国出口信用保险公司资信服务 | G115: 2023年1月至12月中国出口信用保险公司资信服务 | H115: 19,200.00 | I115: 19,200.00 | K115: 徐华娣 | L115: 13430366850 | M115: 中国工商银行 | N115: 开平施特珑卫浴产品有限公司 | O115: 2012008119024211861
A116: 111 | B116: =ROW()-6 -> 110 | C116: 广东科仕特精密机械有限公司 | D116: 9144078358468373X4 | E116: 防范国际贸易风险 | F116: 中国出口信用保险公司资信服务 | G116: 2023年1月至12月中国出口信用保险公司资信服务 | H116: 2,700.00 | I116: 2,700.00
A117: 112 | B117: 111 | C117: 广东可味巧克力食品有限公司 | D117: 91440700747099934F | E117: 防范国际贸易风险 | F117: 中国出口信用保险公司资信服务 | G117: 2023年1月至12月中国出口信用保险公司资信服务 | H117: 2,700.00 | I117: 2,700.00 | K117: 钟宏瑜 | L117: 13929085984 | M117: 中国银行 | N117: 广东粤轻卫浴科技有限公司 | O117: 634057749151
A118: 113 | B118: 112 | C118: 广东泰宝聚合物有限公司 | D118: 914407005666122250 | E118: 防范国际贸易风险 | F118: 中国出口信用保险公司资信服务 | G118: 2023年1月至12月中国出口信用保险公司资信服务 | H118: 20,000.00 | I118: 20,000.00 | K118: 许丽贤 | L118: 18128203209 | M118: 广东开平农村商业银行股份有限公司 | N118: 广东科仕特精密机械有限公司 | O118: 80020000003465385
A119: 114 | B119: 113 | C119: 广东伟祥卫浴实业有限公司 | D119: 914407007701550250 | E119: 防范国际贸易风险 | F119: 中国出口信用保险公司资信服务 | G119: 2023年1月至12月中国出口信用保险公司资信服务 | H119: 10,500.00 | I119: 10,500.00 | K119: 谭喜莲 | L119: 15875070881 | M119: 中国银行股份有限公司江门开平支行 | N119: 广东可味巧克力食品有限公司 | O119: 702957748789
A120: 115 | B120: 114 | C120: 广东意希诺科技有限公司 | D120: 91440783338143172E | E120: 防范国际贸易风险 | F120: 中国出口信用保险公司资信服务 | G120: 2023年1月至12月中国出口信用保险公司资信服务 | H120: 300.00 | I120: 300.00 | K120: 梁晓恒 | L120: 15819723031 | M120: 中国银行股份有限公司江门开平支行 | N120: 广东泰宝聚合物有限公司 | O120: 650957748826
A121: 116 | B121: 115 | C121: 江门雅固卫浴实业有限公司 | D121: 9144078474803151XP | E121: 防范国际贸易风险 | F121: 中国出口信用保险公司资信服务 | G121: 2023年1月至12月中国出口信用保险公司资信服务 | H121: 800.00 | I121: 800.00 | K121: 林春瑶 | L121: 13630473743 | M121: 中国工商银行股份有限公司开平水口科技支行 | N121: 广东伟祥卫浴实业有限公司 | O121: 2012008109024209638
A122: 117 | B122: 116 | C122: 开平柏斯高卫浴有限公司 | D122: 91440700763809166M | E122: 防范国际贸易风险 | F122: 中国出口信用保险公司资信服务 | G122: 2023年1月至12月中国出口信用保险公司资信服务 | H122: 1,200.00 | I122: 1,200.00 | K122: 袁淑雯 | L122: 18138994378 | M122: 中国建设银行股份有限公司江门开平支行 | N122: 广东意希诺科技有限公司 | O122: 44001670901053011545
A123: 118 | B123: 117 | C123: 开平凯德家用电器有限公司 | D123: 91440700617737715Q | E123: 防范国际贸易风险 | F123: 中国出口信用保险公司资信服务 | G123: 2023年1月至12月中国出口信用保险公司资信服务 | H123: 1,200.00 | I123: 1,200.00 | K123: 张玲 | L123: 13827019966 | M123: 广东开平农村商业银行股份限公司水口支行 | N123: 江门雅固卫浴实业有限公司 | O123: 80020000017123708
A124: 119 | B124: 118 | C124: 开平美迪晨卫浴有限公司 | D124: 91440700760642073C | E124: 防范国际贸易风险 | F124: 中国出口信用保险公司资信服务 | G124: 2023年1月至12月中国出口信用保险公司资信服务 | H124: 3,300.00 | I124: 3,300.00 | K124: 邝杏柔 | L124: 13828063616 | M124: 中国工商银行股份有限公司开平水口科技支行 | N124: 开平柏斯高卫浴有限公司 | O124: 2012008109024213981
A125: 120 | B125: 119 | C125: 开平市安迪卫浴实业有限公司 | D125: 914407007977567955 | E125: 防范国际贸易风险 | F125: 中国出口信用保险公司资信服务 | G125: 2023年1月至12月中国出口信用保险公司资信服务 | H125: 2,100.00 | I125: 2,100.00 | K125: 何彩红 | L125: 18929082210 | M125: 中国银行股份有限公司江门开平支行 | N125: 开平凯德家用电器有限公司 | O125: 661357748779
A126: 121 | B126: 120 | C126: 开平市宝来塑胶制品有限公司 | D126: 9144078374709798XT | E126: 防范国际贸易风险 | F126: 中国出口信用保险公司资信服务 | G126: 2023年1月至12月中国出口信用保险公司资信服务 | H126: 1,200.00 | I126: 1,200.00 | K126: 陆富球 | L126: 13929083017 | M126: 广东开平农村商业银行股份有限公司水口支行 | N126: 开平美迪晨卫浴有限公司 | O126: 80020000000454647
A127: 122 | B127: 121 | C127: 开平市博美卫浴有限公司 | D127: 91440783673054871T | E127: 防范国际贸易风险 | F127: 中国出口信用保险公司资信服务 | G127: 2023年1月至12月中国出口信用保险公司资信服务 | H127: 5,100.00 | I127: 5,100.00 | K127: 李少芬 | L127: 13544955180 | M127: 广东开平农村商业银行股份有限公司水口支行 | N127: 开平市安迪卫浴实业有限公司 | O127: 80020000000456123
A128: 123 | B128: 122 | C128: 开平市富丽雅实业有限公司 | D128: 91440783052408286B | E128: 防范国际贸易风险 | F128: 中国出口信用保险公司资信服务 | G128: 2023年1月至12月中国出口信用保险公司资信服务 | H128: 400.00 | I128: 400.00 | K128: 张伟鑫 | L128: 13427176217 | M128: 中国建设银行股份有限公司开平支行 | N128: 开平市宝来塑胶制品有限公司 | O128: 44001670901051286933
A129: 124 | B129: 123 | C129: 开平市汉玛克卫浴有限公司 | D129: 91440783675229508N | E129: 防范国际贸易风险 | F129: 中国出口信用保险公司资信服务 | G129: 2023年1月至12月中国出口信用保险公司资信服务 | H129: 900.00 | I129: 900.00 | K129: 黄淑媛 | L129: 13824076299 | M129: 中国建设银行股份有限公司江门开平水口支行 | N129: 开平市博美卫浴有限公司 | O129: 44001670905059778095
A130: 125 | B130: 124 | C130: 开平市和洋洁具有限公司 | D130: 91440783MA529L282H | E130: 防范国际贸易风险 | F130: 中国出口信用保险公司资信服务 | G130: 2023年1月至12月中国出口信用保险公司资信服务 | H130: 800.00 | I130: 800.00 | K130: 黄业嫦 | L130: 13414167081 | M130: 广东开平农村商业银行股份有限公司百合支行 | N130: 开平市富丽雅实业有限公司 | O130: 80020000004570524
A131: 126 | B131: 125 | C131: 开平市红日制衣有限公司 | D131: 91440783733104923G | E131: 防范国际贸易风险 | F131: 中国出口信用保险公司资信服务 | G131: 2023年1月至12月中国出口信用保险公司资信服务 | H131: 400.00 | I131: 400.00 | K131: 吴雪君 | L131: 13929081601 | M131: 中国建设银行江门开平水口支行 | N131: 开平市汉玛克卫浴有限公司 | O131: 44001670905059001688
A132: 127 | B132: 126 | C132: 开平市骏源进出口贸易有限公司 | D132: 91440783792961431J | E132: 防范国际贸易风险 | F132: 中国出口信用保险公司资信服务 | G132: 2023年1月至12月中国出口信用保险公司资信服务 | H132: 400.00 | I132: 400.00 | K132: 黄秀云 | L132: 13422641961 | M132: 中国工商银行股份有限公司江门开平水口科技支行 | N132: 开平市和洋洁具有限公司 | O132: 2012008109200064945
A133: 128 | B133: 127 | C133: 开平市凯赛德水暖配件有限公司 | D133: 914407005682141675 | E133: 防范国际贸易风险 | F133: 中国出口信用保险公司资信服务 | G133: 2023年1月至12月中国出口信用保险公司资信服务 | H133: 4,200.00 | I133: 4,200.00 | K133: 黄小姐 | L133: 13536044800 | M133: 中国银行股份有限公司江门开平支行 | N133: 开平市红日制衣有限公司 | O133: 667857748788
A134: 129 | B134: 128 | C134: 开平市蓝凯卫浴实业有限公司 | D134: 91440783MA4UR25L8M | E134: 防范国际贸易风险 | F134: 中国出口信用保险公司资信服务 | G134: 2023年1月至12月中国出口信用保险公司资信服务 | H134: 2,100.00 | I134: 2,100.00 | K134: 敖健秀 | L134: 13556909011 | M134: 中国农业银行股份有限公司开平市支行 | N134: 开平市骏源进出口贸易有限公司 | O134: 44400001040019238
A135: 130 | B135: 129 | C135: 开平市奇迪科压铸卫浴有限公司 | D135: 914407006981443122 | E135: 防范国际贸易风险 | F135: 中国出口信用保险公司资信服务 | G135: 2023年1月至12月中国出口信用保险公司资信服务 | H135: 1,200.00 | I135: 1,200.00 | K135: 劳美仪 | L135: 13427300043 | M135: 中国建设银行股份有限公司开平支行 | N135: 开平市凯赛德水暖配件有限公司 | O135: 44001670901053004626
A136: 131 | B136: 130 | C136: 开平市天雅塑料实业有限公司 | D136: 91440783MA54CTN274 | E136: 防范国际贸易风险 | F136: 中国出口信用保险公司资信服务 | G136: 2023年1月至12月中国出口信用保险公司资信服务 | H136: 400.00 | I136: 400.00 | K136: 黎雁欢 | L136: 13750308364 | M136: 中国建设银行股份有限公司开平水口支行 | N136: 开平市蓝凯卫浴实业有限公司 | O136: 44050167994500000037
A137: 132 | B137: 131 | C137: 开平市炜华制衣有限公司 | D137: 91440783MA55DMYLXE | E137: 防范国际贸易风险 | F137: 中国出口信用保险公司资信服务 | G137: 2023年1月至12月中国出口信用保险公司资信服务 | H137: 400.00 | I137: 400.00 | K137: 许旭春 | L137: 13632082737 | M137: 中国银行股份有限公司江门开平支行 | N137: 开平市奇迪科压铸卫浴有限公司 | O137: 649657748815
A138: 133 | B138: 132 | C138: 开平市中贸进出口有限公司 | D138: 91440783789481613X | E138: 防范国际贸易风险 | F138: 中国出口信用保险公司资信服务 | G138: 2023年1月至12月中国出口信用保险公司资信服务 | H138: 400.00 | I138: 400.00 | K138: 张玉清 | L138: 13664938088 | M138: 中国银行股份有限公司江门开平水口科技支行 | N138: 开平市天雅塑料实业有限公司 | O138: 671772908646
A139: 134 | B139: 133 | C139: 开平依利安达电子第三有限公司 | D139: 91440700721154755F | E139: 防范国际贸易风险 | F139: 中国出口信用保险公司资信服务 | G139: 2023年1月至12月中国出口信用保险公司资信服务 | H139: 20,000.00 | I139: 20,000.00 | K139: 黄翠芳 | L139: 13535380730 | M139: 中国农业银行股份有限公司开平东兴支行 | N139: 开平市炜华制衣有限公司 | O139: 44402301040005908
A140: 135 | B140: 134 | C140: 联冠（开平）胶粘制品有限公司 | D140: 91440700661489720W | E140: 防范国际贸易风险 | F140: 中国出口信用保险公司资信服务 | G140: 2023年1月至12月中国出口信用保险公司资信服务 | H140: 4,200.00 | I140: 4,200.00 | K140: 司徒巧华 | L140: 18026781107 | M140: 中国建设银行股份有限公司江门开平长沙支行 | N140: 开平市中贸进出口有限公司 | O140: 44001670919059066688
A141: 136 | B141: 135 | C141: 银都拉玛（开平）高性能纤维有限公司 | D141: 914407006177552515 | E141: 防范国际贸易风险 | F141: 中国出口信用保险公司资信服务 | G141: 2023年1月至12月中国出口信用保险公司资信服务 | H141: 900.00 | I141: 900.00 | K141: 汤翠映 | L141: 13630416287 | M141: 中国银行股份有限公司江门开平支行 | N141: 开平依利安达电子第三有限公司 | O141: 669157758550
A142: 支持企业购买中国出口信用保险公司资信服务项目小计 | B142: 支持企业购买中国出口信用保险公司资信服务项目小计 | H142: =SUM(H115:H141) -> 107,000.00 | I142: =SUM(I115:I141) -> 107,000.00
A143: 项目合计 | B143: 项目合计 | H143: =H142+H114+H86+H39 -> 3,480,384.09 | I143: =I142+I114+I86+I39 -> 3,480,384.09

Sheet Sheet2 (hidden)
A1: 开平市锦强五金制品有限公司 | B1: 开平市锦强五金制品有限公司 | E1: 广东华艺卫浴实业有限公司 | F1: 广东华艺卫浴实业有限公司 | I1: 广东华艺卫浴实业有限公司 | J1: 广东华艺卫浴实业有限公司 | L1: 广东华艺卫浴实业有限公司 | M1: 广东华艺卫浴实业有限公司
A2: 开平市预发卫浴有限公司 | B2: 开平市预发卫浴有限公司 | E2: 广东可味巧克力食品有限公司 | F2: 广东可味巧克力食品有限公司 | I2: 广东科仕特精密机械有限公司 | J2: 广东科仕特精密机械有限公司 | L2: 广东可味巧克力食品有限公司 | M2: 广东可味巧克力食品有限公司
A3: 开平市朝升卫浴有限公司 | B3: 开平市朝升卫浴有限公司 | E3: 广东泰宝聚合物有限公司 | F3: 广东泰宝聚合物有限公司 | I3: 广东可味巧克力食品有限公司 | J3: 广东可味巧克力食品有限公司 | L3: 广东泰宝聚合物有限公司 | M3: 广东泰宝聚合物有限公司
A4: 开平市亿展阀芯有限公司 | B4: 开平市亿展阀芯有限公司 | E4: 广东伟祥卫浴实业有限公司 | F4: 广东伟祥卫浴实业有限公司 | I4: 广东泰宝聚合物有限公司 | J4: 广东泰宝聚合物有限公司 | L4: 广东伟祥卫浴实业有限公司 | M4: 广东伟祥卫浴实业有限公司
A5: 开平市诺曼卫浴有限公司 | B5: 开平市诺曼卫浴有限公司 | E5: 江门市德美佳厨具有限公司 | F5: 江门市德美佳厨具有限公司 | I5: 广东伟祥卫浴实业有限公司 | J5: 广东伟祥卫浴实业有限公司 | L5: 江门市德美佳厨具有限公司 | M5: 江门市德美佳厨具有限公司
A6: 开平市新明光五金制品有限公司 | B6: 开平市新明光五金制品有限公司 | E6: 江门雅固卫浴实业有限公司 | F6: 江门雅固卫浴实业有限公司 | I6: 广东意希诺科技有限公司 | J6: 广东意希诺科技有限公司 | L6: 江门雅固卫浴实业有限公司 | M6: 江门雅固卫浴实业有限公司
A7: 开平市新明光五金制品有限公司 | B7: 开平市和洋洁具有限公司 | E7: 开平柏斯高卫浴有限公司 | F7: 开平柏斯高卫浴有限公司 | I7: 江门雅固卫浴实业有限公司 | J7: 江门雅固卫浴实业有限公司 | L7: 开平柏斯高卫浴有限公司 | M7: 开平柏斯高卫浴有限公司
A8: 开平市和洋洁具有限公司 | B8: 开平力蒲卫浴有限公司 | E8: 开平凯德家用电器有限公司 | F8: 开平凯德家用电器有限公司 | I8: 开平柏斯高卫浴有限公司 | J8: 开平柏斯高卫浴有限公司 | L8: 开平凯德家用电器有限公司 | M8: 开平凯德家用电器有限公司
A9: 开平力蒲卫浴有限公司 | B9: 开平市金特卫浴有限公司 | E9: 开平美迪晨卫浴有限公司 | F9: 开平美迪晨卫浴有限公司 | I9: 开平凯德家用电器有限公司 | J9: 开平凯德家用电器有限公司 | L9: 开平美迪晨卫浴有限公司 | M9: 开平美迪晨卫浴有限公司
A10: 开平市金特卫浴有限公司 | B10: 开平市惠普卫浴实业有限公司 | E10: 开平市安迪卫浴实业有限公司 | F10: 开平市安迪卫浴实业有限公司 | I10: 开平美迪晨卫浴有限公司 | J10: 开平美迪晨卫浴有限公司 | L10: 开平市安迪卫浴实业有限公司 | M10: 开平市安迪卫浴实业有限公司
A11: 开平市惠普卫浴实业有限公司 | B11: 开平市力泰五金制品有限公司 | E11: 开平市宝来塑胶制品有限公司 | F11: 开平市宝来塑胶制品有限公司 | I11: 开平市安迪卫浴实业有限公司 | J11: 开平市安迪卫浴实业有限公司 | L11: 开平市宝来塑胶制品有限公司 | M11: 开平市宝来塑胶制品有限公司
A12: 开平市力泰五金制品有限公司 | B12: 广东顶尖管业科技有限公司 | E12: 开平市博美卫浴有限公司 | F12: 开平市博美卫浴有限公司 | I12: 开平市宝来塑胶制品有限公司 | J12: 开平市宝来塑胶制品有限公司 | L12: 开平市博美卫浴有限公司 | M12: 开平市博美卫浴有限公司
A13: 广东顶尖管业科技有限公司 | B13: 开平市东陶压铸卫浴有限公司 | E13: 开平市富丽雅实业有限公司 | F13: 开平市富丽雅实业有限公司 | I13: 开平市博美卫浴有限公司 | J13: 开平市博美卫浴有限公司 | L13: 开平市富丽雅实业有限公司 | M13: 开平市富丽雅实业有限公司
A14: 开平市东陶压铸卫浴有限公司 | B14: 开平市汉玛克卫浴有限公司 | E14: 开平市汉玛克卫浴有限公司 | F14: 开平市汉玛克卫浴有限公司 | I14: 开平市富丽雅实业有限公司 | J14: 开平市富丽雅实业有限公司 | L14: 开平市汉玛克卫浴有限公司 | M14: 开平市汉玛克卫浴有限公司
A15: 开平市汉玛克卫浴有限公司 | B15: 开平市智康卫浴有限公司 | E15: 开平市和洋洁具有限公司 | F15: 开平市和洋洁具有限公司 | I15: 开平市汉玛克卫浴有限公司 | J15: 开平市汉玛克卫浴有限公司 | L15: 开平市和洋洁具有限公司 | M15: 开平市和洋洁具有限公司
A16: 开平市智康卫浴有限公司 | B16: 开平市谛玛卫浴有限公司 | E16: 开平市骏源进出口贸易有限公司 | F16: 开平市骏源进出口贸易有限公司 | I16: 开平市和洋洁具有限公司 | J16: 开平市和洋洁具有限公司 | L16: 开平市骏源进出口贸易有限公司 | M16: 开平市骏源进出口贸易有限公司
A17: 开平市谛玛卫浴有限公司 | B17: 开平市嘉恩卫浴有限公司 | E17: 开平市凯赛德水暖配件有限公司 | F17: 开平市凯赛德水暖配件有限公司 | I17: 开平市红日制衣有限公司 | J17: 开平市红日制衣有限公司 | L17: 开平市凯赛德水暖配件有限公司 | M17: 开平市凯赛德水暖配件有限公司
A18: 开平市谛玛卫浴有限公司 | B18: 开平市领雅厨卫有限公司 | E18: 开平市蓝凯卫浴实业有限公司 | F18: 开平市蓝凯卫浴实业有限公司 | I18: 开平市骏源进出口贸易有限公司 | J18: 开平市骏源进出口贸易有限公司 | L18: 开平市蓝凯卫浴实业有限公司 | M18: 开平市蓝凯卫浴实业有限公司
A19: 开平市嘉恩卫浴有限公司 | B19: 开平市伯源卫浴有限公司 | E19: 开平市美年华服装有限公司 | F19: 开平市美年华服装有限公司 | I19: 开平市凯赛德水暖配件有限公司 | J19: 开平市凯赛德水暖配件有限公司 | L19: 开平市美年华服装有限公司 | M19: 开平市美年华服装有限公司
A20: 开平市领雅厨卫有限公司 | B20: 江门市凯逸卫浴有限公司 | E20: 开平市奇迪科压铸卫浴有限公司 | F20: 开平市奇迪科压铸卫浴有限公司 | I20: 开平市蓝凯卫浴实业有限公司 | J20: 开平市蓝凯卫浴实业有限公司 | L20: 开平市奇迪科压铸卫浴有限公司 | M20: 开平市奇迪科压铸卫浴有限公司
A21: 开平市领雅厨卫有限公司 | B21: 开平市宝来塑胶制品有限公司 | E21: 开平市天雅塑料实业有限公司 | F21: 开平市天雅塑料实业有限公司 | I21: 开平市奇迪科压铸卫浴有限公司 | J21: 开平市奇迪科压铸卫浴有限公司 | L21: 开平市天雅塑料实业有限公司 | M21: 开平市天雅塑料实业有限公司
A22: 开平市伯源卫浴有限公司 | B22: 开平柏斯高卫浴有限公司 | E22: 开平威技电器有限公司 | F22: 开平威技电器有限公司 | I22: 开平市天雅塑料实业有限公司 | J22: 开平市天雅塑料实业有限公司 | L22: 开平威技电器有限公司 | M22: 开平威技电器有限公司
A23: 江门市凯逸卫浴有限公司 | B23: 开平市凯赛德水暖配件有限公司 | E23: 开平依利安达电子第三有限公司 | F23: 开平依利安达电子第三有限公司 | I23: 开平市炜华制衣有限公司 | J23: 开平市炜华制衣有限公司 | L23: 开平依利安达电子第三有限公司 | M23: 开平依利安达电子第三有限公司
A24: 江门市凯逸卫浴有限公司 | B24: 开平市方剑卫浴有限公司 | E24: 联冠（开平）胶粘制品有限公司 | F24: 联冠（开平）胶粘制品有限公司 | I24: 开平市中贸进出口有限公司 | J24: 开平市中贸进出口有限公司 | L24: 联冠（开平）胶粘制品有限公司 | M24: 联冠（开平）胶粘制品有限公司
A25: 江门市凯逸卫浴有限公司 | B25: 开平市图恩卫浴有限公司 | E25: 银都拉玛（开平）高性能纤维有限公司 | F25: 银都拉玛（开平）高性能纤维有限公司 | I25: 开平依利安达电子第三有限公司 | J25: 开平依利安达电子第三有限公司 | L25: 银都拉玛（开平）高性能纤维有限公司 | M25: 银都拉玛（开平）高性能纤维有限公司
A26: 开平市宝来塑胶制品有限公司 | B26: 开平市佳力五金制品有限公司 | E26: 银都拉玛（开平）高性能纤维有限公司 | F26: 开平施特珑卫浴产品有限公司 | I26: 联冠（开平）胶粘制品有限公司 | J26: 联冠（开平）胶粘制品有限公司 | L26: 银都拉玛（开平）高性能纤维有限公司 | M26: 开平施特珑卫浴产品有限公司
A27: 开平市宝来塑胶制品有限公司 | B27: 开平市伊丹卫浴实业有限公司 | E27: 开平施特珑卫浴产品有限公司 | I27: 银都拉玛（开平）高性能纤维有限公司 | J27: 银都拉玛（开平）高性能纤维有限公司 | L27: 开平施特珑卫浴产品有限公司 | M27: 广东华艺卫浴实业有限公司
A28: 开平柏斯高卫浴有限公司 | B28: 开平市易洁卫浴有限公司 | L28: 广东华艺卫浴实业有限公司 | M28: 广东科仕特精密机械有限公司
A29: 开平市凯赛德水暖配件有限公司 | B29: 开平金牌洁具有限公司 | L29: 广东科仕特精密机械有限公司 | M29: 广东意希诺科技有限公司
A30: 开平市方剑卫浴有限公司 | B30: 开平市联洋卫浴配件有限公司 | L30: 广东可味巧克力食品有限公司 | M30: 开平市红日制衣有限公司
A31: 开平市图恩卫浴有限公司 | B31: 开平达威尔厨卫有限公司 | L31: 广东泰宝聚合物有限公司 | M31: 开平市炜华制衣有限公司
A32: 开平市佳力五金制品有限公司 | B32: 开平市汉朗莎卫浴实业有限公司 | L32: 广东伟祥卫浴实业有限公司 | M32: 开平市中贸进出口有限公司
A33: 开平市伊丹卫浴实业有限公司 | B33: 广东华艺卫浴实业有限公司 | L33: 广东意希诺科技有限公司
A34: 开平市易洁卫浴有限公司 | B34: 开平市利德信进出口贸易有限公司 | L34: 江门雅固卫浴实业有限公司
A35: 开平金牌洁具有限公司 | B35: 开平市鸿士达卫浴实业有限公司 | L35: 开平柏斯高卫浴有限公司
A36: 开平市联洋卫浴配件有限公司 | B36: 开平赛道龙头配件有限公司 | L36: 开平凯德家用电器有限公司
A37: 开平达威尔厨卫有限公司 | B37: 开平市叁拾玖度卫浴有限公司 | L37: 开平美迪晨卫浴有限公司
A38: 开平市汉朗莎卫浴实业有限公司 | B38: 开平市思华卫浴有限公司 | L38: 开平市安迪卫浴实业有限公司
A39: 广东华艺卫浴实业有限公司 | B39: 开平市广盛卫浴有限公司 | L39: 开平市宝来塑胶制品有限公司
A40: 开平市利德信进出口贸易有限公司 | B40: 广东粤轻卫浴科技有限公司 | L40: 开平市博美卫浴有限公司
A41: 开平市鸿士达卫浴实业有限公司 | B41: 江门市一六八卫浴科技有限公司 | L41: 开平市富丽雅实业有限公司
A42: 开平赛道龙头配件有限公司 | B42: 江门锦鼎金属制品实业有限公司 | L42: 开平市汉玛克卫浴有限公司
A43: 开平市叁拾玖度卫浴有限公司 | B43: 开平市旭特五金实业有限公司 | L43: 开平市和洋洁具有限公司
A44: 开平市思华卫浴有限公司 | B44: 开平市澳佳卫浴有限公司 | L44: 开平市红日制衣有限公司
A45: 开平市广盛卫浴有限公司 | B45: 江门市德美佳厨具有限公司 | L45: 开平市骏源进出口贸易有限公司
A46: 开平市广盛卫浴有限公司 | B46: 开平市海宏卫浴实业有限公司 | L46: 开平市凯赛德水暖配件有限公司
A47: 广东粤轻卫浴科技有限公司 | B47: 开平市奇迪科压铸卫浴有限公司 | L47: 开平市蓝凯卫浴实业有限公司
A48: 广东粤轻卫浴科技有限公司 | B48: 开平市健派卫浴有限公司 | L48: 开平市奇迪科压铸卫浴有限公司
A49: 江门市一六八卫浴科技有限公司 | B49: 开平市洁士五金科技有限公司 | L49: 开平市天雅塑料实业有限公司
A50: 江门市一六八卫浴科技有限公司 | B50: 江门市诺基山厨卫科技有限公司 | L50: 开平市炜华制衣有限公司
A51: 江门锦鼎金属制品实业有限公司 | B51: 广东伟祥卫浴实业有限公司 | L51: 开平市中贸进出口有限公司
A52: 江门锦鼎金属制品实业有限公司 | B52: 开平欧玛莎卫浴实业有限公司 | L52: 开平依利安达电子第三有限公司
A53: 开平市旭特五金实业有限公司 | B53: 开平市欧尚卫浴实业有限公司 | L53: 联冠（开平）胶粘制品有限公司
A54: 开平市澳佳卫浴有限公司 | B54: 开平正霖卫浴实业有限公司 | L54: 银都拉玛（开平）高性能纤维有限公司
A55: 江门市德美佳厨具有限公司 | B55: 开平诺迪水暖器材有限公司
A56: 江门市德美佳厨具有限公司 | B56: 广东高盛卫浴科技有限公司
A57: 开平市海宏卫浴实业有限公司 | B57: 开平市蓝凯卫浴实业有限公司
A58: 开平市奇迪科压铸卫浴有限公司 | B58: 开平市迪恩卫浴实业有限公司
A59: 开平市奇迪科压铸卫浴有限公司 | B59: 开平市达豪日化科技有限公司
A60: 开平市奇迪科压铸卫浴有限公司 | B60: 开平市本铃机车密封垫有限公司
A61: 开平市健派卫浴有限公司 | B61: 开平市雨派卫浴科技有限公司
A62: 开平市洁士五金科技有限公司 | B62: 广东好事多卫浴科技有限公司
A63: 江门市诺基山厨卫科技有限公司 | B63: 开平市汉顺洁具实业有限公司
A64: 广东伟祥卫浴实业有限公司 | B64: 开平市卓阳卫浴实业有限公司
A65: 开平欧玛莎卫浴实业有限公司 | B65: 开平太平洋卫浴实业有限公司
A66: 开平市欧尚卫浴实业有限公司 | B66: 开平市迪朗五金塑料制品有限公司
A67: 开平正霖卫浴实业有限公司 | B67: 江门市镇坚五金科技有限公司
A68: 开平诺迪水暖器材有限公司 | B68: 江门市蓝森卫浴科技有限公司
A69: 广东高盛卫浴科技有限公司 | B69: 开平市澳林卫浴有限公司
A70: 开平市蓝凯卫浴实业有限公司
A71: 开平市迪恩卫浴实业有限公司
A72: 开平市达豪日化科技有限公司
A73: 开平市达豪日化科技有限公司
A74: 开平市达豪日化科技有限公司
A75: 开平市本铃机车密封垫有限公司
A76: 开平市雨派卫浴科技有限公司
A77: 广东好事多卫浴科技有限公司
A78: 开平市汉顺洁具实业有限公司
A79: 开平市卓阳卫浴实业有限公司
A80: 开平太平洋卫浴实业有限公司
A81: 开平市迪朗五金塑料制品有限公司
A82: 江门市镇坚五金科技有限公司
A83: 江门市镇坚五金科技有限公司
A84: 江门市蓝森卫浴科技有限公司
A85: 开平市澳林卫浴有限公司

Sheet Sheet5 (hidden)
A1: =VLOOKUP(H1,Sheet6!$D:$E,2,FALSE) -> 114 | B1: 114 | C1: 1 | D1: 广东科仕特精密机械有限公司 | E1: 2023年1月至12月中国出口信用保险公司资信服务 | F1: 2,700.00 | G1: 2,700.00 | H1: =D1&E1&F1 -> 广东科仕特精密机械有限公司2023年1月至12月中国出口信用保险公司资信服务2700
A2: =VLOOKUP(H2,Sheet6!$D:$E,2,FALSE) -> 65 | B2: 65 | C2: 2 | D2: 开平欧玛莎卫浴实业有限公司 | E2: 第27届中国(上海)国际厨房、卫浴设施展览会 | F2: 40,000.00 | G2: 40,000.00 | H2: 开平欧玛莎卫浴实业有限公司第27届中国(上海)国际厨房、卫浴设施展览会40000
A3: =VLOOKUP(H3,Sheet6!$D:$E,2,FALSE) -> 67 | B3: 67 | C3: 3 | D3: 开平正霖卫浴实业有限公司 | E3: 2022中国国际厨房、卫浴设施展览会（第27届） | F3: 40,000.00 | G3: 40,000.00 | H3: 开平正霖卫浴实业有限公司2022中国国际厨房、卫浴设施展览会（第27届）40000
A4: =VLOOKUP(H4,Sheet6!$D:$E,2,FALSE) -> 103 | B4: 103 | C4: 4 | D4: 开平市蓝凯卫浴实业有限公司 | E4: 2023年1月至12月短期进出口信用保险项目 | F4: 4,997.00 | G4: 4,997.00 | H4: 开平市蓝凯卫浴实业有限公司2023年1月至12月短期进出口信用保险项目4997
A5: =VLOOKUP(H5,Sheet6!$D:$E,2,FALSE) -> 132 | B5: 132 | C5: 5 | D5: 开平市蓝凯卫浴实业有限公司 | E5: 2023年1月至12月中国出口信用保险公司资信服务 | F5: 2,100.00 | G5: 2,100.00 | H5: 开平市蓝凯卫浴实业有限公司2023年1月至12月中国出口信用保险公司资信服务2100
A6: =VLOOKUP(H6,Sheet6!$D:$E,2,FALSE) -> 75 | B6: 75 | C6: 6 | D6: 开平市本铃机车密封垫有限公司 | E6: 2023年8月21日-8月24日俄罗斯（莫斯科）国际汽车零配件及售后服务展览会 | F6: 20,000.00 | G6: 20,000.00 | H6: 开平市本铃机车密封垫有限公司2023年8月21日-8月24日俄罗斯（莫斯科）国际汽车零配件及售后服务展览会20000
A7: =VLOOKUP(H7,Sheet6!$D:$E,2,FALSE) -> 116 | B7: 116 | C7: 7 | D7: 广东泰宝聚合物有限公司 | E7: 2023年1月至12月中国出口信用保险公司资信服务 | F7: 20,000.00 | G7: 20,000.00 | H7: 广东泰宝聚合物有限公司2023年1月至12月中国出口信用保险公司资信服务20000
A8: =VLOOKUP(H8,Sheet6!$D:$E,2,FALSE) -> 88 | B8: 88 | C8: 8 | D8: 广东泰宝聚合物有限公司 | E8: 2023年1月至12月短期进出口信用保险项目 | F8: 342,852.06 | G8: 342,852.06 | H8: 广东泰宝聚合物有限公司2023年1月至12月短期进出口信用保险项目342852.06
A9: =VLOOKUP(H9,Sheet6!$D:$E,2,FALSE) -> 94 | B9: 94 | C9: 9 | D9: 开平美迪晨卫浴有限公司 | E9: 2023年1月至12月短期进出口信用保险项目 | F9: 21,500.00 | G9: 21,500.00 | H9: 开平美迪晨卫浴有限公司2023年1月至12月短期进出口信用保险项目21500
A10: =VLOOKUP(H10,Sheet6!$D:$E,2,FALSE) -> 122 | B10: 122 | C10: 10 | D10: 开平美迪晨卫浴有限公司 | E10: 2023年1月至12月中国出口信用保险公司资信服务 | F10: 3,300.00 | G10: 3,300.00 | H10: 开平美迪晨卫浴有限公司2023年1月至12月中国出口信用保险公司资信服务3300
A11: =VLOOKUP(H11,Sheet6!$D:$E,2,FALSE) -> 128 | B11: 128 | C11: 11 | D11: 开平市和洋洁具有限公司 | E11: 2023年1月至12月中国出口信用保险公司资信服务 | F11: 800.00 | G11: 800.00 | H11: 开平市和洋洁具有限公司2023年1月至12月中国出口信用保险公司资信服务800
A12: =VLOOKUP(H12,Sheet6!$D:$E,2,FALSE) -> 100 | B12: 100 | C12: 12 | D12: 开平市和洋洁具有限公司 | E12: 2023年1月至12月短期进出口信用保险项目 | F12: 7,697.80 | G12: 7,697.80 | H12: 开平市和洋洁具有限公司2023年1月至12月短期进出口信用保险项目7697.8
A13: =VLOOKUP(H13,Sheet6!$D:$E,2,FALSE) -> 125 | B13: 125 | C13: 13 | D13: 开平市博美卫浴有限公司 | E13: 2023年1月至12月中国出口信用保险公司资信服务 | F13: 5,100.00 | G13: 5,100.00 | H13: 开平市博美卫浴有限公司2023年1月至12月中国出口信用保险公司资信服务5100
A14: =VLOOKUP(H14,Sheet6!$D:$E,2,FALSE) -> 97 | B14: 97 | C14: 14 | D14: 开平市博美卫浴有限公司 | E14: 2023年1月至12月短期进出口信用保险项目 | F14: 13,800.00 | G14: 13,800.00 | H14: 开平市博美卫浴有限公司2023年1月至12月短期进出口信用保险项目13800
A15: =VLOOKUP(H15,Sheet6!$D:$E,2,FALSE) -> 106 | B15: 106 | C15: 15 | D15: 开平市天雅塑料实业有限公司 | E15: 2023年1月至12月短期进出口信用保险项目 | F15: 7,082.10 | G15: 7,082.10 | H15: 开平市天雅塑料实业有限公司2023年1月至12月短期进出口信用保险项目7082.1
A16: =VLOOKUP(H16,Sheet6!$D:$E,2,FALSE) -> 133 | B16: 133 | C16: 16 | D16: 开平市奇迪科压铸卫浴有限公司 | E16: 2023年1月至12月中国出口信用保险公司资信服务 | F16: 1,200.00 | G16: 1,200.00 | H16: 开平市奇迪科压铸卫浴有限公司2023年1月至12月中国出口信用保险公司资信服务1200
A17: =VLOOKUP(H17,Sheet6!$D:$E,2,FALSE) -> 105 | B17: 105 | C17: 17 | D17: 开平市奇迪科压铸卫浴有限公司 | E17: 2023年1月至12月短期进出口信用保险项目 | F17: 5,500.00 | G17: 5,500.00 | H17: 开平市奇迪科压铸卫浴有限公司2023年1月至12月短期进出口信用保险项目5500
A18: =VLOOKUP(H18,Sheet6!$D:$E,2,FALSE) -> 60 | B18: 60 | C18: 18 | D18: 开平市奇迪科压铸卫浴有限公司 | E18: 第27届中国国际厨房、卫浴设施展览会 | F18: 40,000.00 | G18: 40,000.00 | H18: 开平市奇迪科压铸卫浴有限公司第27届中国国际厨房、卫浴设施展览会40000
A19: =VLOOKUP(H19,Sheet6!$D:$E,2,FALSE) -> 98 | B19: 98 | C19: 19 | D19: 开平市富丽雅实业有限公司 | E19: 2023年1月至12月短期进出口信用保险项目 | F19: 6,800.00 | G19: 6,800.00 | H19: 开平市富丽雅实业有限公司2023年1月至12月短期进出口信用保险项目6800
A20: =VLOOKUP(H20,Sheet6!$D:$E,2,FALSE) -> 126 | B20: 126 | C20: 20 | D20: 开平市富丽雅实业有限公司 | E20: 2023年1月至12月中国出口信用保险公司资信服务 | F20: 400.00 | G20: 400.00 | H20: 开平市富丽雅实业有限公司2023年1月至12月中国出口信用保险公司资信服务400
A21: =VLOOKUP(H21,Sheet6!$D:$E,2,FALSE) -> 77 | B21: 77 | C21: 21 | D21: 广东好事多卫浴科技有限公司 | E21: 第27届中国国际厨房、卫浴设施展览会 | F21: 40,000.00 | G21: 40,000.00 | H21: 广东好事多卫浴科技有限公司第27届中国国际厨房、卫浴设施展览会40000
A22: =VLOOKUP(H22,Sheet6!$D:$E,2,FALSE) -> 93 | B22: 93 | C22: 22 | D22: 开平凯德家用电器有限公司 | E22: 2023年1月至12月短期进出口信用保险项目 | F22: 15,952.00 | G22: 15,952.00 | H22: 开平凯德家用电器有限公司2023年1月至12月短期进出口信用保险项目15952
A23: =VLOOKUP(H23,Sheet6!$D:$E,2,FALSE) -> 121 | B23: 121 | C23: 23 | D23: 开平凯德家用电器有限公司 | E23: 2023年1月至12月中国出口信用保险公司资信服务 | F23: 1,200.00 | G23: 1,200.00 | H23: 开平凯德家用电器有限公司2023年1月至12月中国出口信用保险公司资信服务1200
A24: =VLOOKUP(H24,Sheet6!$D:$E,2,FALSE) -> 107 | B24: 107 | C24: 24 | D24: 开平威技电器有限公司 | E24: 2023年1月至12月短期进出口信用保险项目 | F24: 26,766.00 | G24: 26,766.00 | H24: 开平威技电器有限公司2023年1月至12月短期进出口信用保险项目26766
A25: =VLOOKUP(H25,Sheet6!$D:$E,2,FALSE) -> 139 | B25: 139 | C25: 25 | D25: 银都拉玛（开平）高性能纤维有限公司 | E25: 2023年1月至12月中国出口信用保险公司资信服务 | F25: 900.00 | G25: 900.00 | H25: 银都拉玛（开平）高性能纤维有限公司2023年1月至12月中国出口信用保险公司资信服务900
A26: =VLOOKUP(H26,Sheet6!$D:$E,2,FALSE) -> 110 | B26: 110 | C26: 26 | D26: 银都拉玛（开平）高性能纤维有限公司 | E26: 2023年1月至12月短期进出口信用保险项目 | F26: 28,800.00 | G26: 28,800.00 | H26: 银都拉玛（开平）高性能纤维有限公司2023年1月至12月短期进出口信用保险项目28800
A27: =VLOOKUP(H27,Sheet6!$D:$E,2,FALSE) -> 137 | B27: 137 | C27: 27 | D27: 开平依利安达电子第三有限公司 | E27: 2023年1月至12月中国出口信用保险公司资信服务 | F27: 20,000.00 | G27: 20,000.00 | H27: 开平依利安达电子第三有限公司2023年1月至12月中国出口信用保险公司资信服务20000
A28: =VLOOKUP(H28,Sheet6!$D:$E,2,FALSE) -> 108 | B28: 108 | C28: 28 | D28: 开平依利安达电子第三有限公司 | E28: 2023年1月至12月短期进出口信用保险项目 | F28: 218,886.20 | G28: 218,886.20 | H28: 开平依利安达电子第三有限公司2023年1月至12月短期进出口信用保险项目218886.2
A29: =VLOOKUP(H29,Sheet6!$D:$E,2,FALSE) -> 102 | B29: 102 | C29: 29 | D29: 开平市凯赛德水暖配件有限公司 | E29: 2023年1月至12月短期进出口信用保险项目 | F29: 8,112.48 | G29: 8,112.48 | H29: 开平市凯赛德水暖配件有限公司2023年1月至12月短期进出口信用保险项目8112.48
A30: =VLOOKUP(H30,Sheet6!$D:$E,2,FALSE) -> 131 | B30: 131 | C30: 30 | D30: 开平市凯赛德水暖配件有限公司 | E30: 2023年1月至12月中国出口信用保险公司资信服务 | F30: 4,200.00 | G30: 4,200.00 | H30: 开平市凯赛德水暖配件有限公司2023年1月至12月中国出口信用保险公司资信服务4200
A31: =VLOOKUP(H31,Sheet6!$D:$E,2,FALSE) -> 120 | B31: 120 | C31: 31 | D31: 开平柏斯高卫浴有限公司 | E31: 2023年1月至12月中国出口信用保险公司资信服务 | F31: 1,200.00 | G31: 1,200.00 | H31: 开平柏斯高卫浴有限公司2023年1月至12月中国出口信用保险公司资信服务1200
A32: =VLOOKUP(H32,Sheet6!$D:$E,2,FALSE) -> 82 | B32: 82 | C32: 32 | D32: 江门市镇坚五金科技有限公司 | E32: 5月24日-5月26日-印尼- 2023 年第四届中国（印尼）贸易博览会 | F32: 40,000.00 | G32: 非江门代理出口，不通过 | H32: 江门市镇坚五金科技有限公司5月24日-5月26日-印尼- 2023 年第四届中国（印尼）贸易博览会40000
A33: =VLOOKUP(H33,Sheet6!$D:$E,2,FALSE) -> 104 | B33: 104 | C33: 33 | D33: 开平市美年华服装有限公司 | E33: 2023年1月至12月短期进出口信用保险项目 | F33: 7,180.00 | G33: 7,180.00 | H33: =D33&E33&F33 -> 开平市美年华服装有限公司2023年1月至12月短期进出口信用保险项目7180
A34: =VLOOKUP(H34,Sheet6!$D:$E,2,FALSE) -> 46 | B34: 46 | C34: 34 | D34: 开平市广盛卫浴有限公司 | E34: CCEE全球跨境电商展览会(广州) | F34: 20,000.00 | G34: 20,000.00 | H34: 开平市广盛卫浴有限公司CCEE全球跨境电商展览会(广州)20000
A35: =VLOOKUP(H35,Sheet6!$D:$E,2,FALSE) -> 91 | B35: 91 | C35: 35 | D35: 江门雅固卫浴实业有限公司 | E35: 2023年1月至12月短期进出口信用保险项目 | F35: 6,960.00 | G35: 6,960.00 | H35: 江门雅固卫浴实业有限公司2023年1月至12月短期进出口信用保险项目6960
A36: =VLOOKUP(H36,Sheet6!$D:$E,2,FALSE) -> 119 | B36: 119 | C36: 36 | D36: 江门雅固卫浴实业有限公司 | E36: 2023年1月至12月中国出口信用保险公司资信服务 | F36: 800.00 | G36: 800.00 | H36: 江门雅固卫浴实业有限公司2023年1月至12月中国出口信用保险公司资信服务800
A37: =VLOOKUP(H37,Sheet6!$D:$E,2,FALSE) -> 115 | B37: 115 | C37: 37 | D37: 广东可味巧克力食品有限公司 | E37: 2023年1月至12月中国出口信用保险公司资信服务 | F37: 2,700.00 | G37: 2,700.00 | H37: 广东可味巧克力食品有限公司2023年1月至12月中国出口信用保险公司资信服务2700
A38: =VLOOKUP(H38,Sheet6!$D:$E,2,FALSE) -> 87 | B38: 87 | C38: 38 | D38: 广东可味巧克力食品有限公司 | E38: 2023年1月至12月短期进出口信用保险项目 | F38: 26,064.10 | G38: 26,064.10 | H38: 广东可味巧克力食品有限公司2023年1月至12月短期进出口信用保险项目26064.1
A39: =VLOOKUP(H39,Sheet6!$D:$E,2,FALSE) -> 83 | B39: 83 | C39: 39 | D39: 江门市镇坚五金科技有限公司 | E39: 6月13日-6月15日-阿联酋- 2023年第十四届中国（阿联酋）贸易博览会 | F39: 40,000.00 | G39: 0.00 | H39: 江门市镇坚五金科技有限公司6月13日-6月15日-阿联酋- 2023年第十四届中国（阿联酋）贸易博览会40000
A40: =VLOOKUP(H40,Sheet6!$D:$E,2,FALSE) -> 45 | B40: 45 | C40: 40 | D40: 开平市广盛卫浴有限公司 | E40: 2023年12月19日-12月21日-阿联酋（迪拜）-2023年第十五届中国（阿联酋）贸易博览会 | F40: 20,000.00 | G40: 20,000.00 | H40: 开平市广盛卫浴有限公司2023年12月19日-12月21日-阿联酋（迪拜）-2023年第十五届中国（阿联酋）贸易博览会20000
A41: =VLOOKUP(H41,Sheet6!$D:$E,2,FALSE) -> 61 | B41: 61 | C41: 41 | D41: 开平市健派卫浴有限公司 | E41: 第27届中国国际厨房、卫浴设施展览会 | F41: 20,000.00 | G41: 20,000.00 | H41: 开平市健派卫浴有限公司第27届中国国际厨房、卫浴设施展览会20000
A42: =VLOOKUP(H42,Sheet6!$D:$E,2,FALSE) -> 70 | B42: 70 | C42: 42 | D42: 开平市蓝凯卫浴实业有限公司 | E42: 第 27 届中国国际厨房、卫浴设施展览会 | F42: 40,000.00 | G42: 40,000.00 | H42: 开平市蓝凯卫浴实业有限公司第 27 届中国国际厨房、卫浴设施展览会40000
A43: =VLOOKUP(H43,Sheet6!$D:$E,2,FALSE) -> 51 | B43: 51 | C43: 43 | D43: 江门锦鼎金属制品实业有限公司 | E43: 2023年6月07日-6月10日上海中国(上海)国际厨房、卫浴设施展览会 | F43: 40,000.00 | G43: 40,000.00 | H43: 江门锦鼎金属制品实业有限公司2023年6月07日-6月10日上海中国(上海)国际厨房、卫浴设施展览会40000
A44: =VLOOKUP(H44,Sheet6!$D:$E,2,FALSE) -> 40 | B44: 40 | C44: 44 | D44: 开平市利德信进出口贸易有限公司 | E44: 2023年4月12日-14日-中国（广州）-CCEE全球跨境电商展览会（广州） | F44: 10,000.00 | G44: 10,000.00 | H44: 开平市利德信进出口贸易有限公司2023年4月12日-14日-中国（广州）-CCEE全球跨境电商展览会（广州）10000
A45: =VLOOKUP(H45,Sheet6!$D:$E,2,FALSE) -> 66 | B45: 66 | C45: 45 | D45: 开平市欧尚卫浴实业有限公司 | E45: 第27届中国国际厨房、卫浴设施展览会 | F45: 40,000.00 | G45: 40,000.00 | H45: 开平市欧尚卫浴实业有限公司第27届中国国际厨房、卫浴设施展览会40000
A46: =VLOOKUP(H46,Sheet6!$D:$E,2,FALSE) -> 38 | B46: 38 | C46: 46 | D46: 开平市汉朗莎卫浴实业有限公司 | E46: 第27届中国国际厨房、卫浴设施展览会 | F46: 40,000.00 | G46: 40,000.00 | H46: 开平市汉朗莎卫浴实业有限公司第27届中国国际厨房、卫浴设施展览会40000
A47: =VLOOKUP(H47,Sheet6!$D:$E,2,FALSE) -> 129 | B47: 129 | C47: 47 | D47: 开平市红日制衣有限公司 | E47: 2023年1月至12月中国出口信用保险公司资信服务 | F47: 400.00 | G47: 400.00 | H47: 开平市红日制衣有限公司2023年1月至12月中国出口信用保险公司资信服务400
A48: =VLOOKUP(H48,Sheet6!$D:$E,2,FALSE) -> 36 | B48: 36 | C48: 48 | D48: 开平市联洋卫浴配件有限公司 | E48: 第27届中国国际厨房、卫浴设施展览会 | F48: 40,000.00 | G48: 40,000.00 | H48: 开平市联洋卫浴配件有限公司第27届中国国际厨房、卫浴设施展览会40000
A49: =VLOOKUP(H49,Sheet6!$D:$E,2,FALSE) -> 138 | B49: 138 | C49: 49 | D49: 联冠（开平）胶粘制品有限公司 | E49: 2023年1月至12月中国出口信用保险公司资信服务 | F49: 4,200.00 | G49: 4,200.00 | H49: 联冠（开平）胶粘制品有限公司2023年1月至12月中国出口信用保险公司资信服务4200
A50: =VLOOKUP(H50,Sheet6!$D:$E,2,FALSE) -> 109 | B50: 109 | C50: 50 | D50: 联冠（开平）胶粘制品有限公司 | E50: 2023年1月至12月短期进出口信用保险项目 | F50: 4,500.00 | G50: 4,500.00 | H50: 联冠（开平）胶粘制品有限公司2023年1月至12月短期进出口信用保险项目4500
A51: =VLOOKUP(H51,Sheet6!$D:$E,2,FALSE) -> 117 | B51: 117 | C51: 51 | D51: 广东伟祥卫浴实业有限公司 | E51: 2023年1月至12月中国出口信用保险公司资信服务 | F51: 10,500.00 | G51: 10,500.00 | H51: 广东伟祥卫浴实业有限公司2023年1月至12月中国出口信用保险公司资信服务10500
A52: =VLOOKUP(H52,Sheet6!$D:$E,2,FALSE) -> 89 | B52: 89 | C52: 52 | D52: 广东伟祥卫浴实业有限公司 | E52: 2023年1月至12月短期进出口信用保险项目 | F52: 32,984.00 | G52: 32,984.00 | H52: 广东伟祥卫浴实业有限公司2023年1月至12月短期进出口信用保险项目32984
A53: =VLOOKUP(H53,Sheet6!$D:$E,2,FALSE) -> 35 | B53: 35 | C53: 53 | D53: 开平金牌洁具有限公司 | E53: 第27届中国国际厨房、卫浴设施展览会 | F53: 40,000.00 | G53: 40,000.00 | H53: 开平金牌洁具有限公司第27届中国国际厨房、卫浴设施展览会40000
A54: =VLOOKUP(H54,Sheet6!$D:$E,2,FALSE) -> 72 | B54: 72 | C54: 54 | D54: 开平市达豪日化科技有限公司 | E54: 2023年11月23-25日-雅加达-第五届中国(印尼)贸易博览会 | F54: 20,000.00 | G54: 20,000.00 | H54: 开平市达豪日化科技有限公司2023年11月23-25日-雅加达-第五届中国(印尼)贸易博览会20000
A55: =VLOOKUP(H55,Sheet6!$D:$E,2,FALSE) -> 41 | B55: 41 | C55: 55 | D55: 开平市鸿士达卫浴实业有限公司 | E55: 第27届中国国际厨房、卫浴设施展览会 | F55: 40,000.00 | G55: 40,000.00 | H55: 开平市鸿士达卫浴实业有限公司第27届中国国际厨房、卫浴设施展览会40000
A56: =VLOOKUP(H56,Sheet6!$D:$E,2,FALSE) -> 32 | B56: 32 | C56: 56 | D56: 开平市佳力五金制品有限公司 | E56: 第27届中国国际厨房、卫浴设施展览会 | F56: 30,000.00 | G56: 30,000.00 | H56: 开平市佳力五金制品有限公司第27届中国国际厨房、卫浴设施展览会30000
A57: =VLOOKUP(H57,Sheet6!$D:$E,2,FALSE) -> 53 | B57: 53 | C57: 57 | D57: 开平市旭特五金实业有限公司 | E57: 第27届中国国际厨房、卫浴设施展览会 | F57: 20,000.00 | G57: 20,000.00 | H57: 开平市旭特五金实业有限公司第27届中国国际厨房、卫浴设施展览会20000
A58: =VLOOKUP(H58,Sheet6!$D:$E,2,FALSE) -> 64 | B58: 64 | C58: 58 | D58: 广东伟祥卫浴实业有限公司 | E58: 第27届中国国际厨房、卫浴设施展览会 | F58: 40,000.00 | G58: 40,000.00 | H58: 广东伟祥卫浴实业有限公司第27届中国国际厨房、卫浴设施展览会40000
A59: =VLOOKUP(H59,Sheet6!$D:$E,2,FALSE) -> 22 | B59: 22 | C59: 59 | D59: 开平市伯源卫浴有限公司 | E59: 2023年第十五届中国（阿联酋）贸易博览会 | F59: 20,000.00 | G59: 20,000.00 | H59: 开平市伯源卫浴有限公司2023年第十五届中国（阿联酋）贸易博览会20000
A60: =VLOOKUP(H60,Sheet6!$D:$E,2,FALSE) -> 118 | B60: 118 | C60: 60 | D60: 广东意希诺科技有限公司 | E60: 2023年1月至12月中国出口信用保险公司资信服务 | F60: 300.00 | G60: 300.00 | H60: 广东意希诺科技有限公司2023年1月至12月中国出口信用保险公司资信服务300
A61: =VLOOKUP(H61,Sheet6!$D:$E,2,FALSE) -> 95 | B61: 95 | C61: 61 | D61: 开平市安迪卫浴实业有限公司 | E61: 2023年1月至12月短期进出口信用保险项目 | F61: 14,139.68 | G61: 14,139.68 | H61: 开平市安迪卫浴实业有限公司2023年1月至12月短期进出口信用保险项目14139.68
A62: =VLOOKUP(H62,Sheet6!$D:$E,2,FALSE) -> 37 | B62: 37 | C62: 62 | D62: 开平达威尔厨卫有限公司 | E62: 第27届中国国际厨房、卫浴设施展览会 | F62: 40,000.00 | G62: 40,000.00 | H62: 开平达威尔厨卫有限公司第27届中国国际厨房、卫浴设施展览会40000
A63: =VLOOKUP(H63,Sheet6!$D:$E,2,FALSE) -> 90 | B63: 90 | C63: 63 | D63: 江门市德美佳厨具有限公司 | E63: 2023年1月至12月短期进出口信用保险项目 | F63: 6,960.00 | G63: 6,960.00 | H63: 江门市德美佳厨具有限公司2023年1月至12月短期进出口信用保险项目6960
A64: =VLOOKUP(H64,Sheet6!$D:$E,2,FALSE) -> 96 | B64: 96 | C64: 64 | D64: 开平市宝来塑胶制品有限公司 | E64: 2023年1月至12月短期进出口信用保险项目 | F64: 5,346.00 | G64: 5,346.00 | H64: 开平市宝来塑胶制品有限公司2023年1月至12月短期进出口信用保险项目5346
A65: =VLOOKUP(H65,Sheet6!$D:$E,2,FALSE) -> 124 | B65: 124 | C65: 65 | D65: 开平市宝来塑胶制品有限公司 | E65: 2023年1月至12月中国出口信用保险公司资信服务 | F65: 1,200.00 | G65: 1,200.00 | H65: =D65&E65&F65 -> 开平市宝来塑胶制品有限公司2023年1月至12月中国出口信用保险公司资信服务1200
A66: =VLOOKUP(H66,Sheet6!$D:$E,2,FALSE) -> 84 | B66: 84 | C66: 66 | D66: 江门市蓝森卫浴科技有限公司 | E66: 2023年第十五届中国（阿联酋）贸易博览会 | F66: 20,000.00 | G66: 0.00 | H66: 江门市蓝森卫浴科技有限公司2023年第十五届中国（阿联酋）贸易博览会20000
A67: =VLOOKUP(H67,Sheet6!$D:$E,2,FALSE) -> 136 | B67: 136 | C67: 67 | D67: 开平市中贸进出口有限公司 | E67: 2023年1月至12月中国出口信用保险公司资信服务 | F67: 400.00 | G67: 400.00 | H67: 开平市中贸进出口有限公司2023年1月至12月中国出口信用保险公司资信服务400
A68: =VLOOKUP(H68,Sheet6!$D:$E,2,FALSE) -> 71 | B68: 71 | C68: 68 | D68: 开平市迪恩卫浴实业有限公司 | E68: 第27届中国国际厨房、卫浴设施展览会 | F68: 40,000.00 | G68: 40,000.00 | H68: 开平市迪恩卫浴实业有限公司第27届中国国际厨房、卫浴设施展览会40000
A69: =VLOOKUP(H69,Sheet6!$D:$E,2,FALSE) -> 20 | B69: 20 | C69: 69 | D69: 开平市领雅厨卫有限公司 | E69: 2023年8月18日-8月20日-中国（广州）-中国跨境电商交易会（秋季） | F69: 10,000.00 | G69: 10,000.00 | H69: 开平市领雅厨卫有限公司2023年8月18日-8月20日-中国（广州）-中国跨境电商交易会（秋季）10000
A70: =VLOOKUP(H70,Sheet6!$D:$E,2,FALSE) -> 39 | B70: 39 | C70: 70 | D70: 广东华艺卫浴实业有限公司 | E70: 第27届中国国际厨房、卫浴设施展览会 | F70: 40,000.00 | G70: 40,000.00 | H70: 广东华艺卫浴实业有限公司第27届中国国际厨房、卫浴设施展览会40000
A71: =VLOOKUP(H71,Sheet6!$D:$E,2,FALSE) -> 21 | B71: 21 | C71: 71 | D71: 开平市领雅厨卫有限公司 | E71: 2023年第十届中国（巴西）贸易博览会（秋季展） | F71: 20,000.00 | G71: 20,000.00 | H71: 开平市领雅厨卫有限公司2023年第十届中国（巴西）贸易博览会（秋季展）20000
A72: =VLOOKUP(H72,Sheet6!$D:$E,2,FALSE) -> 76 | B72: 76 | C72: 72 | D72: 开平市雨派卫浴科技有限公司 | E72: 第27届中国国际厨房、卫浴设施展览会 | F72: 40,000.00 | G72: 40,000.00 | H72: 开平市雨派卫浴科技有限公司第27届中国国际厨房、卫浴设施展览会40000
A73: =VLOOKUP(H73,Sheet6!$D:$E,2,FALSE) -> 29 | B73: 29 | C73: 73 | D73: 开平市凯赛德水暖配件有限公司 | E73: 第27届中国国际厨房、卫浴设施展览会 | F73: 40,000.00 | G73: 40,000.00 | H73: 开平市凯赛德水暖配件有限公司第27届中国国际厨房、卫浴设施展览会40000
A74: =VLOOKUP(H74,Sheet6!$D:$E,2,FALSE) -> 78 | B74: 78 | C74: 74 | D74: 开平市汉顺洁具实业有限公司 | E74: 2023中国国际厨房、卫浴设施展览会(第27届) | F74: 40,000.00 | G74: 40,000.00 | H74: 开平市汉顺洁具实业有限公司2023中国国际厨房、卫浴设施展览会(第27届)40000
A75: =VLOOKUP(H75,Sheet6!$D:$E,2,FALSE) -> 15 | B75: 15 | C75: 75 | D75: 开平市汉玛克卫浴有限公司 | E75: 第27届中国国际厨房、卫浴设施展览会 | F75: 40,000.00 | G75: 40,000.00 | H75: 开平市汉玛克卫浴有限公司第27届中国国际厨房、卫浴设施展览会40000
A76: =VLOOKUP(H76,Sheet6!$D:$E,2,FALSE) -> 127 | B76: 127 | C76: 76 | D76: 开平市汉玛克卫浴有限公司 | E76: 2023年1月至12月中国出口信用保险公司资信服务 | F76: 900.00 | G76: 900.00 | H76: 开平市汉玛克卫浴有限公司2023年1月至12月中国出口信用保险公司资信服务900
A77: =VLOOKUP(H77,Sheet6!$D:$E,2,FALSE) -> 99 | B77: 99 | C77: 77 | D77: 开平市汉玛克卫浴有限公司 | E77: 2023年1月至12月短期进出口信用保险项目 | F77: 7,000.00 | G77: 7,000.00 | H77: 开平市汉玛克卫浴有限公司2023年1月至12月短期进出口信用保险项目7000
A78: =VLOOKUP(H78,Sheet6!$D:$E,2,FALSE) -> 33 | B78: 33 | C78: 78 | D78: 开平市伊丹卫浴实业有限公司 | E78: 第27届中国国际厨房、卫浴设施展览会 | F78: 40,000.00 | G78: 40,000.00 | H78: 开平市伊丹卫浴实业有限公司第27届中国国际厨房、卫浴设施展览会40000
A79: =VLOOKUP(H79,Sheet6!$D:$E,2,FALSE) -> 55 | B79: 55 | C79: 79 | D79: 江门市德美佳厨具有限公司 | E79: 2023年09月20日-09月22日南非2023年第七届中 国（南非）贸易博览会） | F79: 20,000.00 | G79: 20,000.00 | H79: 江门市德美佳厨具有限公司2023年09月20日-09月22日南非2023年第七届中 国（南非）贸易博览会）20000
A80: =VLOOKUP(H80,Sheet6!$D:$E,2,FALSE) -> 10 | B80: 10 | C80: 80 | D80: 开平市金特卫浴有限公司 | E80: 第27届中国国际厨房、卫浴设施展览会 | F80: 40,000.00 | G80: 40,000.00 | H80: 开平市金特卫浴有限公司第27届中国国际厨房、卫浴设施展览会40000
A81: =VLOOKUP(H81,Sheet6!$D:$E,2,FALSE) -> 112 | B81: 112 | C81: 81 | D81: 开平施特珑卫浴产品有限公司 | E81: 2023年出口贸易信用险 | F81: 3,571.00 | G81: 3,571.00 | H81: 开平施特珑卫浴产品有限公司2023年出口贸易信用险3571
A82: =VLOOKUP(H82,Sheet6!$D:$E,2,FALSE) -> 31 | B82: 31 | C82: 82 | D82: 开平市图恩卫浴有限公司 | E82: 第27届中国国际厨房、卫浴设施展览会 | F82: 40,000.00 | G82: 40,000.00 | H82: 开平市图恩卫浴有限公司第27届中国国际厨房、卫浴设施展览会40000
A83: =VLOOKUP(H83,Sheet6!$D:$E,2,FALSE) -> 34 | B83: 34 | C83: 83 | D83: 开平市易洁卫浴有限公司 | E83: 2023年第十五届中国（阿联酋）贸易博览会 | F83: 20,000.00 | G83: 20,000.00 | H83: 开平市易洁卫浴有限公司2023年第十五届中国（阿联酋）贸易博览会20000
A84: =VLOOKUP(H84,Sheet6!$D:$E,2,FALSE) -> 12 | B84: 12 | C84: 84 | D84: 开平市力泰五金制品有限公司 | E84: 第27届中国国际厨房、卫浴设施展览会 | F84: 20,000.00 | G84: 20,000.00 | H84: 开平市力泰五金制品有限公司第27届中国国际厨房、卫浴设施展览会20000
A85: =VLOOKUP(H85,Sheet6!$D:$E,2,FALSE) -> 42 | B85: 42 | C85: 85 | D85: 开平赛道龙头配件有限公司 | E85: 第27届中国国际厨房、卫浴设施展览会 | F85: 40,000.00 | G85: 40,000.00 | H85: 开平赛道龙头配件有限公司第27届中国国际厨房、卫浴设施展览会40000
A86: =VLOOKUP(H86,Sheet6!$D:$E,2,FALSE) -> 13 | B86: 13 | C86: 86 | D86: 广东顶尖管业科技有限公司 | E86: 第27届中国国际厨房、卫浴设施展览会 | F86: 40,000.00 | G86: 40,000.00 | H86: 广东顶尖管业科技有限公司第27届中国国际厨房、卫浴设施展览会40000
A87: =VLOOKUP(H87,Sheet6!$D:$E,2,FALSE) -> 9 | B87: 9 | C87: 87 | D87: 开平力蒲卫浴有限公司 | E87: 第27届中国国际厨房、卫浴设施展览会 | F87: 40,000.00 | G87: 40,000.00 | H87: 开平力蒲卫浴有限公司第27届中国国际厨房、卫浴设施展览会40000
A88: =VLOOKUP(H88,Sheet6!$D:$E,2,FALSE) -> 63 | B88: 63 | C88: 88 | D88: 江门市诺基山厨卫科技有限公司 | E88: 2023年第十五届中国（阿联酋）贸易博览会 | F88: 20,000.00 | G88: 20,000.00 | H88: 江门市诺基山厨卫科技有限公司2023年第十五届中国（阿联酋）贸易博览会20000
A89: =VLOOKUP(H89,Sheet6!$D:$E,2,FALSE) -> 85 | B89: 85 | C89: 89 | D89: 开平市澳林卫浴有限公司 | E89: 5月24日-5月26日-印尼- 2023年第四届中国（印尼）贸易博览会 | F89: 20,000.00 | G89: 没有提供19-23年的报关单 | H89: 开平市澳林卫浴有限公司5月24日-5月26日-印尼- 2023年第四届中国（印尼）贸易博览会20000
A90: =VLOOKUP(H90,Sheet6!$D:$E,2,FALSE) -> 62 | B90: 62 | C90: 90 | D90: 开平市洁士五金科技有限公司 | E90: 2023年第十五届中国（阿联酋）贸易博览会 | F90: 20,000.00 | G90: 20,000.00 | H90: 开平市洁士五金科技有限公司2023年第十五届中国（阿联酋）贸易博览会20000
A91: =VLOOKUP(H91,Sheet6!$D:$E,2,FALSE) -> 47 | B91: 47 | C91: 91 | D91: 广东粤轻卫浴科技有限公司 | E91: 第27届中国国际厨房、卫浴设施展览会 | F91: 40,000.00 | G91: 40,000.00 | H91: 广东粤轻卫浴科技有限公司第27届中国国际厨房、卫浴设施展览会40000
A92: =VLOOKUP(H92,Sheet6!$D:$E,2,FALSE) -> 19 | B92: 19 | C92: 92 | D92: 开平市嘉恩卫浴有限公司 | E92: 第27届中国国际厨房、卫浴设施展览会 | F92: 40,000.00 | G92: 40,000.00 | H92: 开平市嘉恩卫浴有限公司第27届中国国际厨房、卫浴设施展览会40000
A93: =VLOOKUP(H93,Sheet6!$D:$E,2,FALSE) -> 6 | B93: 6 | C93: 93 | D93: 开平市新明光五金制品有限公司 | E93: 2023年第四届中国（印尼）贸易博览会 | F93: 20,000.00 | G93: 20,000.00 | H93: 开平市新明光五金制品有限公司2023年第四届中国（印尼）贸易博览会20000
A94: =VLOOKUP(H94,Sheet6!$D:$E,2,FALSE) -> 7 | B94: 7 | C94: 94 | D94: 开平市新明光五金制品有限公司 | E94: 第27届中国国际厨房、卫浴设施展览会 | F94: 20,000.00 | G94: 20,000.00 | H94: 开平市新明光五金制品有限公司第27届中国国际厨房、卫浴设施展览会20000
A95: =VLOOKUP(H95,Sheet6!$D:$E,2,FALSE) -> 3 | B95: 3 | C95: 95 | D95: 开平市朝升卫浴有限公司 | E95: 2023年第十五届中国（阿联酋）贸易博览会 | F95: 20,000.00 | G95: 20,000.00 | H95: 开平市朝升卫浴有限公司2023年第十五届中国（阿联酋）贸易博览会20000
A96: =VLOOKUP(H96,Sheet6!$D:$E,2,FALSE) -> 14 | B96: 14 | C96: 96 | D96: 开平市东陶压铸卫浴有限公司 | E96: (第27届）中国(上海)国际厨房、卫浴设施展览会 | F96: 20,000.00 | G96: 20,000.00 | H96: 开平市东陶压铸卫浴有限公司(第27届）中国(上海)国际厨房、卫浴设施展览会20000
A97: =VLOOKUP(H97,Sheet6!$D:$E,2,FALSE) -> 26 | B97: 26 | C97: 97 | D97: 开平市宝来塑胶制品有限公司 | E97: 2023年12月7日-12月9日越南国际贸易展览会 | F97: 20,000.00 | G97: 20,000.00 | H97: =D97&E97&F97 -> 开平市宝来塑胶制品有限公司2023年12月7日-12月9日越南国际贸易展览会20000
A98: =VLOOKUP(H98,Sheet6!$D:$E,2,FALSE) -> 27 | B98: 27 | C98: 98 | D98: 开平市宝来塑胶制品有限公司 | E98: 2023年6月18日—6月20日 德国科隆园艺展览会 -SPOGA+GAFA 2023 | F98: 20,000.00 | G98: 20,000.00 | H98: 开平市宝来塑胶制品有限公司2023年6月18日—6月20日 德国科隆园艺展览会 -SPOGA+GAFA 202320000
A99: =VLOOKUP(H99,Sheet6!$D:$E,2,FALSE) -> 54 | B99: 54 | C99: 99 | D99: 开平市澳佳卫浴有限公司 | E99: 第27届中国国际厨房、卫浴设施展览会 | F99: 40,000.00 | G99: 40,000.00 | H99: 开平市澳佳卫浴有限公司第27届中国国际厨房、卫浴设施展览会40000
A100: =VLOOKUP(H100,Sheet6!$D:$E,2,FALSE) -> 50 | B100: 50 | C100: 100 | D100: 江门市一六八卫浴科技有限公司 | E100: 6月13日-6月15日-阿联酋-2023年第十四届中国（阿联酋）贸易博览会 | F100: 40,000.00 | G100: 40,000.00 | H100: 江门市一六八卫浴科技有限公司6月13日-6月15日-阿联酋-2023年第十四届中国（阿联酋）贸易博览会40000
A101: =VLOOKUP(H101,Sheet6!$D:$E,2,FALSE) -> 49 | B101: 49 | C101: 101 | D101: 江门市一六八卫浴科技有限公司 | E101: 12月19日-12月21日-阿联酋- 2023年第十五届中国（阿联酋）贸易展览会 | F101: 40,000.00 | G101: 40,000.00 | H101: 江门市一六八卫浴科技有限公司12月19日-12月21日-阿联酋- 2023年第十五届中国（阿联酋）贸易展览会40000
A102: =VLOOKUP(H102,Sheet6!$D:$E,2,FALSE) -> 30 | B102: 30 | C102: 102 | D102: 开平市方剑卫浴有限公司 | E102: CCEE全球跨境电商展览会（广州） | F102: 40,000.00 | G102: 40,000.00 | H102: 开平市方剑卫浴有限公司CCEE全球跨境电商展览会（广州）40000
A103: =VLOOKUP(H103,Sheet6!$D:$E,2,FALSE) -> 69 | B103: 69 | C103: 103 | D103: 广东高盛卫浴科技有限公司 | E103: 2023年12月11日到13日2023年第十届中国（巴西）贸易博览会 | F103: 20,000.00 | G103: 20,000.00 | H103: 广东高盛卫浴科技有限公司2023年12月11日到13日2023年第十届中国（巴西）贸易博览会20000
A104: =VLOOKUP(H104,Sheet6!$D:$E,2,FALSE) -> 5 | B104: 5 | C104: 104 | D104: 开平市诺曼卫浴有限公司 | E104: 2023年09月20日-09月22日南非（约翰内斯堡）2023年第七届中国（南非）贸易博览会 | F104: 20,000.00 | G104: 20,000.00 | H104: 开平市诺曼卫浴有限公司2023年09月20日-09月22日南非（约翰内斯堡）2023年第七届中国（南非）贸易博览会20000
A105: =VLOOKUP(H105,Sheet6!$D:$E,2,FALSE) -> 8 | B105: 8 | C105: 105 | D105: 开平市和洋洁具有限公司 | E105: 第 27 届中国国际厨房、卫浴设施展览会 | F105: 30,000.00 | G105: 30,000.00 | H105: 开平市和洋洁具有限公司第 27 届中国国际厨房、卫浴设施展览会30000
A106: =VLOOKUP(H106,Sheet6!$D:$E,2,FALSE) -> 11 | B106: 11 | C106: 106 | D106: 开平市惠普卫浴实业有限公司 | E106: 第 27 届中国国际厨房、卫浴设施展览会 | F106: 20,000.00 | G106: 20,000.00 | H106: 开平市惠普卫浴实业有限公司第 27 届中国国际厨房、卫浴设施展览会20000
A107: =VLOOKUP(H107,Sheet6!$D:$E,2,FALSE) -> 1 | B107: 1 | C107: 107 | D107: 开平市锦强五金制品有限公司 | E107: 2024年6月13日-6月15日 迪拜世贸中心 2023年第十四届中国（阿联酋）贸易博览会 | F107: 17,906.00 | G107: 17,906.00 | H107: 开平市锦强五金制品有限公司2024年6月13日-6月15日 迪拜世贸中心 2023年第十四届中国（阿联酋）贸易博览会17906
A108: =VLOOKUP(H108,Sheet6!$D:$E,2,FALSE) -> 4 | B108: 4 | C108: 108 | D108: 开平市亿展阀芯有限公司 | E108: 第27届中国国际厨房、卫浴设施展览会 | F108: 40,000.00 | G108: 40,000.00 | H108: 开平市亿展阀芯有限公司第27届中国国际厨房、卫浴设施展览会40000
A109: =VLOOKUP(H109,Sheet6!$D:$E,2,FALSE) -> 16 | B109: 16 | C109: 109 | D109: 开平市智康卫浴有限公司 | E109: 2023年11月23日-11月25日印尼（雅加达）2023年第五届中国（印尼）贸易博览会 | F109: 20,000.00 | G109: 20,000.00 | H109: 开平市智康卫浴有限公司2023年11月23日-11月25日印尼（雅加达）2023年第五届中国（印尼）贸易博览会20000
A110: =VLOOKUP(H110,Sheet6!$D:$E,2,FALSE) -> 44 | B110: 44 | C110: 110 | D110: 开平市思华卫浴有限公司 | E110: 2023 年第十四届中国（阿联酋）贸易博览会 | F110: 20,000.00 | G110: 20,000.00 | H110: 开平市思华卫浴有限公司2023 年第十四届中国（阿联酋）贸易博览会20000
A111: =VLOOKUP(H111,Sheet6!$D:$E,2,FALSE) -> 43 | B111: 43 | C111: 111 | D111: 开平市叁拾玖度卫浴有限公司 | E111: 2023 年第十五届中国(阿联酋)贸易博览会 | F111: 40,000.00 | G111: 40,000.00 | H111: 开平市叁拾玖度卫浴有限公司2023 年第十五届中国(阿联酋)贸易博览会40000
A112: =VLOOKUP(H112,Sheet6!$D:$E,2,FALSE) -> 28 | B112: 28 | C112: 112 | D112: 开平柏斯高卫浴有限公司 | E112: 第27届中国国际厨房、卫浴设施展览会 | F112: 40,000.00 | G112: 40,000.00 | H112: 开平柏斯高卫浴有限公司第27届中国国际厨房、卫浴设施展览会40000
A113: =VLOOKUP(H113,Sheet6!$D:$E,2,FALSE) -> 59 | B113: 59 | C113: 113 | D113: 开平市奇迪科压铸卫浴有限公司 | E113: 2023年第十五届中国（阿联酋）贸易博览会 | F113: 20,000.00 | G113: 20,000.00 | H113: 开平市奇迪科压铸卫浴有限公司2023年第十五届中国（阿联酋）贸易博览会20000
A114: =VLOOKUP(H114,Sheet6!$D:$E,2,FALSE) -> 58 | B114: 58 | C114: 114 | D114: 开平市奇迪科压铸卫浴有限公司 | E114: 2023年第十届中国（巴西）贸易博览会 | F114: 20,000.00 | G114: 20,000.00 | H114: 开平市奇迪科压铸卫浴有限公司2023年第十届中国（巴西）贸易博览会20000
A115: =VLOOKUP(H115,Sheet6!$D:$E,2,FALSE) -> 17 | B115: 17 | C115: 115 | D115: 开平市谛玛卫浴有限公司 | E115: 2023年12月19日-12月21日-阿联酋（迪拜）2023年第十五届中国（阿联酋）贸易博览会 | F115: 20,000.00 | G115: 20,000.00 | H115: 开平市谛玛卫浴有限公司2023年12月19日-12月21日-阿联酋（迪拜）2023年第十五届中国（阿联酋）贸易博览会20000
A116: =VLOOKUP(H116,Sheet6!$D:$E,2,FALSE) -> 18 | B116: 18 | C116: 116 | D116: 开平市谛玛卫浴有限公司 | E116: 2023年12月5日-12月7日-墨西哥（墨西哥城）2023年第八届中国（墨西哥）贸易博览会 | F116: 20,000.00 | G116: 20,000.00 | H116: 开平市谛玛卫浴有限公司2023年12月5日-12月7日-墨西哥（墨西哥城）2023年第八届中国（墨西哥）贸易博览会20000
A117: =VLOOKUP(H117,Sheet6!$D:$E,2,FALSE) -> 68 | B117: 68 | C117: 117 | D117: 开平诺迪水暖器材有限公司 | E117: 第27届中国国际厨房、卫浴设施展览会 | F117: 40,000.00 | G117: 40,000.00 | H117: 开平诺迪水暖器材有限公司第27届中国国际厨房、卫浴设施展览会40000
A118: =VLOOKUP(H118,Sheet6!$D:$E,2,FALSE) -> 25 | B118: 25 | C118: 118 | D118: 江门市凯逸卫浴有限公司 | E118: 2023年第四届中国（印尼）贸易博览会 | F118: 20,000.00 | G118: 20,000.00 | H118: 江门市凯逸卫浴有限公司2023年第四届中国（印尼）贸易博览会20000
A119: =VLOOKUP(H119,Sheet6!$D:$E,2,FALSE) -> 24 | B119: 24 | C119: 119 | D119: 江门市凯逸卫浴有限公司 | E119: 2023越南胡志明市国际建材展览会 | F119: 20,000.00 | G119: 20,000.00 | H119: 江门市凯逸卫浴有限公司2023越南胡志明市国际建材展览会20000
A120: =VLOOKUP(H120,Sheet6!$D:$E,2,FALSE) -> 73 | B120: 73 | C120: 120 | D120: 开平市达豪日化科技有限公司 | E120: 2023年7月20-22日-上海-第116届中国日用百货商品交易会 | F120: 40,000.00 | G120: 40,000.00 | H120: 开平市达豪日化科技有限公司2023年7月20-22日-上海-第116届中国日用百货商品交易会40000
A121: =VLOOKUP(H121,Sheet6!$D:$E,2,FALSE) -> 74 | B121: 74 | C121: 121 | D121: 开平市达豪日化科技有限公司 | E121: 2023年12月19-21日-迪拜-第十五届中国(阿联酋)贸易博览会 | F121: 20,000.00 | G121: 20,000.00 | H121: 开平市达豪日化科技有限公司2023年12月19-21日-迪拜-第十五届中国(阿联酋)贸易博览会20000
A122: =VLOOKUP(H122,Sheet6!$D:$E,2,FALSE) -> 80 | B122: 80 | C122: 122 | D122: 开平太平洋卫浴实业有限公司 | E122: 第27届中国国际厨房、卫浴设施展览会 | F122: 20,000.00 | G122: 20,000.00 | H122: 开平太平洋卫浴实业有限公司第27届中国国际厨房、卫浴设施展览会20000
A123: =VLOOKUP(H123,Sheet6!$D:$E,2,FALSE) -> 123 | B123: 123 | C123: 123 | D123: 开平市安迪卫浴实业有限公司 | E123: 2023年1月至12月中国出口信用保险公司资信服务 | F123: 2,100.00 | G123: 2,100.00 | H123: 开平市安迪卫浴实业有限公司2023年1月至12月中国出口信用保险公司资信服务2100
A124: =VLOOKUP(H124,Sheet6!$D:$E,2,FALSE) -> 57 | B124: 57 | C124: 124 | D124: 开平市海宏卫浴实业有限公司 | E124: 2023年第十五届中国（阿联酋）贸易博览会 | F124: 20,000.00 | G124: 20,000.00 | H124: 开平市海宏卫浴实业有限公司2023年第十五届中国（阿联酋）贸易博览会20000
A125: =VLOOKUP(H125,Sheet6!$D:$E,2,FALSE) -> 134 | B125: 134 | C125: 125 | D125: 开平市天雅塑料实业有限公司 | E125: 2023年1月至12月中国出口信用保险公司资信服务 | F125: 400.00 | G125: 400.00 | H125: 开平市天雅塑料实业有限公司2023年1月至12月中国出口信用保险公司资信服务400
A126: =VLOOKUP(H126,Sheet6!$D:$E,2,FALSE) -> 135 | B126: 135 | C126: 126 | D126: 开平市炜华制衣有限公司 | E126: 2023年1月至12月中国出口信用保险公司资信服务 | F126: 400.00 | G126: 400.00 | H126: 开平市炜华制衣有限公司2023年1月至12月中国出口信用保险公司资信服务400
A127: =VLOOKUP(H127,Sheet6!$D:$E,2,FALSE) -> 52 | B127: 52 | C127: 127 | D127: 江门锦鼎金属制品实业有限公司 | E127: 2023年6月13日-6月15日迪拜2023年第十四届中国（阿联酋）贸易博览会（春季展） | F127: 20,000.00 | G127: 20,000.00 | H127: 江门锦鼎金属制品实业有限公司2023年6月13日-6月15日迪拜2023年第十四届中国（阿联酋）贸易博览会（春季展）20000
A128: =VLOOKUP(H128,Sheet6!$D:$E,2,FALSE) -> 23 | B128: 23 | C128: 128 | D128: 江门市凯逸卫浴有限公司 | E128: 2023年第十五届中国（阿联酋）贸易博览会 | F128: 20,000.00 | G128: 20,000.00 | H128: 江门市凯逸卫浴有限公司2023年第十五届中国（阿联酋）贸易博览会20000
A129: =VLOOKUP(H129,Sheet6!$D:$E,2,FALSE) -> 101 | B129: 101 | C129: 129 | D129: 开平市骏源进出口贸易有限公司 | E129: 2023年1月至12月短期进出口信用保险项目 | F129: 3,126.11 | G129: 3,126.11 | H129: =D129&E129&F129 -> 开平市骏源进出口贸易有限公司2023年1月至12月短期进出口信用保险项目3126.11
A130: =VLOOKUP(H130,Sheet6!$D:$E,2,FALSE) -> 130 | B130: 130 | C130: 130 | D130: 开平市骏源进出口贸易有限公司 | E130: 2023年1月至12月中国出口信用保险公司资信服务 | F130: 400.00 | G130: 400.00 | H130: 开平市骏源进出口贸易有限公司2023年1月至12月中国出口信用保险公司资信服务400
A131: =VLOOKUP(H131,Sheet6!$D:$E,2,FALSE) -> 56 | B131: 56 | C131: 132 | D131: 江门市德美佳厨具有限公司 | E131: 2023年6月13日-6月15日-阿联酋（迪拜）-第十四届中国(阿联酋)贸易博览会 | F131: 20,000.00 | G131: 20,000.00 | H131: 江门市德美佳厨具有限公司2023年6月13日-6月15日-阿联酋（迪拜）-第十四届中国(阿联酋)贸易博览会20000
A132: =VLOOKUP(H132,Sheet6!$D:$E,2,FALSE) -> 92 | B132: 92 | C132: 133 | D132: 开平柏斯高卫浴有限公司 | E132: 2023年1月至12月短期进出口信用保险项目 | F132: 5,987.95 | G132: 5,987.95 | H132: 开平柏斯高卫浴有限公司2023年1月至12月短期进出口信用保险项目5987.95
A133: =VLOOKUP(H133,Sheet6!$D:$E,2,FALSE) -> 79 | B133: 79 | C133: 134 | D133: 开平市卓阳卫浴实业有限公司 | E133: 2023年12月19日-12月21日阿拉伯联合酋长国（迪拜）2023年第十五届中国（阿联酋）贸易博览会 | F133: 20,000.00 | G133: 20,000.00 | H133: 开平市卓阳卫浴实业有限公司2023年12月19日-12月21日阿拉伯联合酋长国（迪拜）2023年第十五届中国（阿联酋）贸易博览会20000
A134: =VLOOKUP(H134,Sheet6!$D:$E,2,FALSE) -> 113 | B134: 113 | C134: 135 | D134: 广东华艺卫浴实业有限公司 | E134: 2023年1月至12月中国出口信用保险公司资信服务 | F134: 19,200.00 | G134: 19,200.00 | H134: 广东华艺卫浴实业有限公司2023年1月至12月中国出口信用保险公司资信服务19200
A135: =VLOOKUP(H135,Sheet6!$D:$E,2,FALSE) -> 86 | B135: 86 | C135: 136 | D135: 广东华艺卫浴实业有限公司 | E135: 2023年1月至12月短期进出口信用保险项目 | F135: 149,473.61 | G135: 149,473.61 | H135: 广东华艺卫浴实业有限公司2023年1月至12月短期进出口信用保险项目149473.61
A136: =VLOOKUP(H136,Sheet6!$D:$E,2,FALSE) -> 2 | B136: 2 | C136: 137 | D136: 开平市预发卫浴有限公司 | E136: 第27届中国国际厨房、卫浴设施展览会 | F136: 40,000.00 | G136: 40,000.00 | H136: 开平市预发卫浴有限公司第27届中国国际厨房、卫浴设施展览会40000
A137: =VLOOKUP(H137,Sheet6!$D:$E,2,FALSE) -> 48 | B137: 48 | C137: 137 | D137: 广东粤轻卫浴科技有限公司 | E137: 2023年12月19日-12月21日阿联酋 (迪拜) 2023年第十五届中国 (阿联酋) 贸易博览会 | F137: 40,000.00 | G137: 40,000.00 | H137: 广东粤轻卫浴科技有限公司2023年12月19日-12月21日阿联酋 (迪拜) 2023年第十五届中国 (阿联酋) 贸易博览会40000
A138: =VLOOKUP(H138,Sheet6!$D:$E,2,FALSE) -> 111 | B138: 111 | C138: 138 | D138: 银都拉玛（开平）高性能纤维有限公司 | E138: 2023年1月至12月短期进出口信用保险项目 | F138: 3,440.00 | G138: 3,440.00 | H138: 银都拉玛（开平）高性能纤维有限公司2023年1月至12月短期进出口信用保险项目3440

Sheet Sheet6 (hidden)
A2: 开平市锦强五金制品有限公司 | B2: 2024年6月13日-6月15日 迪拜世贸中心 2023年第十四届中国（阿联酋）贸易博览会 | C2: 17,906.00 | D2: =A2&B2&C2 -> 开平市锦强五金制品有限公司2024年6月13日-6月15日 迪拜世贸中心 2023年第十四届中国（阿联酋）贸易博览会17906 | E2: 1
A3: 开平市预发卫浴有限公司 | B3: 第27届中国国际厨房、卫浴设施展览会 | C3: 40,000.00 | D3: =A3&B3&C3 -> 开平市预发卫浴有限公司第27届中国国际厨房、卫浴设施展览会40000 | E3: 2
A4: 开平市朝升卫浴有限公司 | B4: 2023年第十五届中国（阿联酋）贸易博览会 | C4: 20,000.00 | D4: 开平市朝升卫浴有限公司2023年第十五届中国（阿联酋）贸易博览会20000 | E4: 3
A5: 开平市亿展阀芯有限公司 | B5: 第27届中国国际厨房、卫浴设施展览会 | C5: 40,000.00 | D5: 开平市亿展阀芯有限公司第27届中国国际厨房、卫浴设施展览会40000 | E5: 4
A6: 开平市诺曼卫浴有限公司 | B6: 2023年09月20日-09月22日南非（约翰内斯堡）2023年第七届中国（南非）贸易博览会 | C6: 20,000.00 | D6: 开平市诺曼卫浴有限公司2023年09月20日-09月22日南非（约翰内斯堡）2023年第七届中国（南非）贸易博览会20000 | E6: 5
A7: 开平市新明光五金制品有限公司 | B7: 2023年第四届中国（印尼）贸易博览会 | C7: 20,000.00 | D7: 开平市新明光五金制品有限公司2023年第四届中国（印尼）贸易博览会20000 | E7: 6
A8: 开平市新明光五金制品有限公司 | B8: 第27届中国国际厨房、卫浴设施展览会 | C8: 20,000.00 | D8: 开平市新明光五金制品有限公司第27届中国国际厨房、卫浴设施展览会20000 | E8: 7
A9: 开平市和洋洁具有限公司 | B9: 第 27 届中国国际厨房、卫浴设施展览会 | C9: 30,000.00 | D9: 开平市和洋洁具有限公司第 27 届中国国际厨房、卫浴设施展览会30000 | E9: 8
A10: 开平力蒲卫浴有限公司 | B10: 第27届中国国际厨房、卫浴设施展览会 | C10: 40,000.00 | D10: 开平力蒲卫浴有限公司第27届中国国际厨房、卫浴设施展览会40000 | E10: 9
A11: 开平市金特卫浴有限公司 | B11: 第27届中国国际厨房、卫浴设施展览会 | C11: 40,000.00 | D11: 开平市金特卫浴有限公司第27届中国国际厨房、卫浴设施展览会40000 | E11: 10
A12: 开平市惠普卫浴实业有限公司 | B12: 第 27 届中国国际厨房、卫浴设施展览会 | C12: 20,000.00 | D12: 开平市惠普卫浴实业有限公司第 27 届中国国际厨房、卫浴设施展览会20000 | E12: 11
A13: 开平市力泰五金制品有限公司 | B13: 第27届中国国际厨房、卫浴设施展览会 | C13: 20,000.00 | D13: 开平市力泰五金制品有限公司第27届中国国际厨房、卫浴设施展览会20000 | E13: 12
A14: 广东顶尖管业科技有限公司 | B14: 第27届中国国际厨房、卫浴设施展览会 | C14: 40,000.00 | D14: 广东顶尖管业科技有限公司第27届中国国际厨房、卫浴设施展览会40000 | E14: 13
A15: 开平市东陶压铸卫浴有限公司 | B15: (第27届）中国(上海)国际厨房、卫浴设施展览会 | C15: 20,000.00 | D15: 开平市东陶压铸卫浴有限公司(第27届）中国(上海)国际厨房、卫浴设施展览会20000 | E15: 14
A16: 开平市汉玛克卫浴有限公司 | B16: 第27届中国国际厨房、卫浴设施展览会 | C16: 40,000.00 | D16: 开平市汉玛克卫浴有限公司第27届中国国际厨房、卫浴设施展览会40000 | E16: 15
A17: 开平市智康卫浴有限公司 | B17: 2023年11月23日-11月25日印尼（雅加达）2023年第五届中国（印尼）贸易博览会 | C17: 20,000.00 | D17: 开平市智康卫浴有限公司2023年11月23日-11月25日印尼（雅加达）2023年第五届中国（印尼）贸易博览会20000 | E17: 16
A18: 开平市谛玛卫浴有限公司 | B18: 2023年12月19日-12月21日-阿联酋（迪拜）2023年第十五届中国（阿联酋）贸易博览会 | C18: 20,000.00 | D18: 开平市谛玛卫浴有限公司2023年12月19日-12月21日-阿联酋（迪拜）2023年第十五届中国（阿联酋）贸易博览会20000 | E18: 17
A19: 开平市谛玛卫浴有限公司 | B19: 2023年12月5日-12月7日-墨西哥（墨西哥城）2023年第八届中国（墨西哥）贸易博览会 | C19: 20,000.00 | D19: 开平市谛玛卫浴有限公司2023年12月5日-12月7日-墨西哥（墨西哥城）2023年第八届中国（墨西哥）贸易博览会20000 | E19: 18
A20: 开平市嘉恩卫浴有限公司 | B20: 第27届中国国际厨房、卫浴设施展览会 | C20: 40,000.00 | D20: 开平市嘉恩卫浴有限公司第27届中国国际厨房、卫浴设施展览会40000 | E20: 19
A21: 开平市领雅厨卫有限公司 | B21: 2023年8月18日-8月20日-中国（广州）-中国跨境电商交易会（秋季） | C21: 10,000.00 | D21: 开平市领雅厨卫有限公司2023年8月18日-8月20日-中国（广州）-中国跨境电商交易会（秋季）10000 | E21: 20
A22: 开平市领雅厨卫有限公司 | B22: 2023年第十届中国（巴西）贸易博览会（秋季展） | C22: 20,000.00 | D22: 开平市领雅厨卫有限公司2023年第十届中国（巴西）贸易博览会（秋季展）20000 | E22: 21
A23: 开平市伯源卫浴有限公司 | B23: 2023年第十五届中国（阿联酋）贸易博览会 | C23: 20,000.00 | D23: 开平市伯源卫浴有限公司2023年第十五届中国（阿联酋）贸易博览会20000 | E23: 22
A24: 江门市凯逸卫浴有限公司 | B24: 2023年第十五届中国（阿联酋）贸易博览会 | C24: 20,000.00 | D24: 江门市凯逸卫浴有限公司2023年第十五届中国（阿联酋）贸易博览会20000 | E24: 23
A25: 江门市凯逸卫浴有限公司 | B25: 2023越南胡志明市国际建材展览会 | C25: 20,000.00 | D25: 江门市凯逸卫浴有限公司2023越南胡志明市国际建材展览会20000 | E25: 24
A26: 江门市凯逸卫浴有限公司 | B26: 2023年第四届中国（印尼）贸易博览会 | C26: 20,000.00 | D26: 江门市凯逸卫浴有限公司2023年第四届中国（印尼）贸易博览会20000 | E26: 25
A27: 开平市宝来塑胶制品有限公司 | B27: 2023年12月7日-12月9日越南国际贸易展览会 | C27: 20,000.00 | D27: 开平市宝来塑胶制品有限公司2023年12月7日-12月9日越南国际贸易展览会20000 | E27: 26
A28: 开平市宝来塑胶制品有限公司 | B28: 2023年6月18日—6月20日 德国科隆园艺展览会 -SPOGA+GAFA 2023 | C28: 20,000.00 | D28: 开平市宝来塑胶制品有限公司2023年6月18日—6月20日 德国科隆园艺展览会 -SPOGA+GAFA 202320000 | E28: 27
A29: 开平柏斯高卫浴有限公司 | B29: 第27届中国国际厨房、卫浴设施展览会 | C29: 40,000.00 | D29: 开平柏斯高卫浴有限公司第27届中国国际厨房、卫浴设施展览会40000 | E29: 28
A30: 开平市凯赛德水暖配件有限公司 | B30: 第27届中国国际厨房、卫浴设施展览会 | C30: 40,000.00 | D30: 开平市凯赛德水暖配件有限公司第27届中国国际厨房、卫浴设施展览会40000 | E30: 29
A31: 开平市方剑卫浴有限公司 | B31: CCEE全球跨境电商展览会（广州） | C31: 40,000.00 | D31: 开平市方剑卫浴有限公司CCEE全球跨境电商展览会（广州）40000 | E31: 30
A32: 开平市图恩卫浴有限公司 | B32: 第27届中国国际厨房、卫浴设施展览会 | C32: 40,000.00 | D32: 开平市图恩卫浴有限公司第27届中国国际厨房、卫浴设施展览会40000 | E32: 31
A33: 开平市佳力五金制品有限公司 | B33: 第27届中国国际厨房、卫浴设施展览会 | C33: 30,000.00 | D33: 开平市佳力五金制品有限公司第27届中国国际厨房、卫浴设施展览会30000 | E33: 32
A34: 开平市伊丹卫浴实业有限公司 | B34: 第27届中国国际厨房、卫浴设施展览会 | C34: 40,000.00 | D34: 开平市伊丹卫浴实业有限公司第27届中国国际厨房、卫浴设施展览会40000 | E34: 33
A35: 开平市易洁卫浴有限公司 | B35: 2023年第十五届中国（阿联酋）贸易博览会 | C35: 20,000.00 | D35: 开平市易洁卫浴有限公司2023年第十五届中国（阿联酋）贸易博览会20000 | E35: 34
A36: 开平金牌洁具有限公司 | B36: 第27届中国国际厨房、卫浴设施展览会 | C36: 40,000.00 | D36: 开平金牌洁具有限公司第27届中国国际厨房、卫浴设施展览会40000 | E36: 35
A37: 开平市联洋卫浴配件有限公司 | B37: 第27届中国国际厨房、卫浴设施展览会 | C37: 40,000.00 | D37: 开平市联洋卫浴配件有限公司第27届中国国际厨房、卫浴设施展览会40000 | E37: 36
A38: 开平达威尔厨卫有限公司 | B38: 第27届中国国际厨房、卫浴设施展览会 | C38: 40,000.00 | D38: 开平达威尔厨卫有限公司第27届中国国际厨房、卫浴设施展览会40000 | E38: 37
A39: 开平市汉朗莎卫浴实业有限公司 | B39: 第27届中国国际厨房、卫浴设施展览会 | C39: 40,000.00 | D39: 开平市汉朗莎卫浴实业有限公司第27届中国国际厨房、卫浴设施展览会40000 | E39: 38
A40: 广东华艺卫浴实业有限公司 | B40: 第27届中国国际厨房、卫浴设施展览会 | C40: 40,000.00 | D40: 广东华艺卫浴实业有限公司第27届中国国际厨房、卫浴设施展览会40000 | E40: 39
A41: 开平市利德信进出口贸易有限公司 | B41: 2023年4月12日-14日-中国（广州）-CCEE全球跨境电商展览会（广州） | C41: 10,000.00 | D41: 开平市利德信进出口贸易有限公司2023年4月12日-14日-中国（广州）-CCEE全球跨境电商展览会（广州）10000 | E41: 40
A42: 开平市鸿士达卫浴实业有限公司 | B42: 第27届中国国际厨房、卫浴设施展览会 | C42: 40,000.00 | D42: 开平市鸿士达卫浴实业有限公司第27届中国国际厨房、卫浴设施展览会40000 | E42: 41
A43: 开平赛道龙头配件有限公司 | B43: 第27届中国国际厨房、卫浴设施展览会 | C43: 40,000.00 | D43: 开平赛道龙头配件有限公司第27届中国国际厨房、卫浴设施展览会40000 | E43: 42
A44: 开平市叁拾玖度卫浴有限公司 | B44: 2023 年第十五届中国(阿联酋)贸易博览会 | C44: 40,000.00 | D44: 开平市叁拾玖度卫浴有限公司2023 年第十五届中国(阿联酋)贸易博览会40000 | E44: 43
A45: 开平市思华卫浴有限公司 | B45: 2023 年第十四届中国（阿联酋）贸易博览会 | C45: 20,000.00 | D45: 开平市思华卫浴有限公司2023 年第十四届中国（阿联酋）贸易博览会20000 | E45: 44
A46: 开平市广盛卫浴有限公司 | B46: 2023年12月19日-12月21日-阿联酋（迪拜）-2023年第十五届中国（阿联酋）贸易博览会 | C46: 20,000.00 | D46: 开平市广盛卫浴有限公司2023年12月19日-12月21日-阿联酋（迪拜）-2023年第十五届中国（阿联酋）贸易博览会20000 | E46: 45
A47: 开平市广盛卫浴有限公司 | B47: CCEE全球跨境电商展览会(广州) | C47: 20,000.00 | D47: 开平市广盛卫浴有限公司CCEE全球跨境电商展览会(广州)20000 | E47: 46
A48: 广东粤轻卫浴科技有限公司 | B48: 第27届中国国际厨房、卫浴设施展览会 | C48: 40,000.00 | D48: 广东粤轻卫浴科技有限公司第27届中国国际厨房、卫浴设施展览会40000 | E48: 47
A49: 广东粤轻卫浴科技有限公司 | B49: 2023年12月19日-12月21日阿联酋 (迪拜) 2023年第十五届中国 (阿联酋) 贸易博览会 | C49: 40,000.00 | D49: 广东粤轻卫浴科技有限公司2023年12月19日-12月21日阿联酋 (迪拜) 2023年第十五届中国 (阿联酋) 贸易博览会40000 | E49: 48
A50: 江门市一六八卫浴科技有限公司 | B50: 12月19日-12月21日-阿联酋- 2023年第十五届中国（阿联酋）贸易展览会 | C50: 40,000.00 | D50: 江门市一六八卫浴科技有限公司12月19日-12月21日-阿联酋- 2023年第十五届中国（阿联酋）贸易展览会40000 | E50: 49
A51: 江门市一六八卫浴科技有限公司 | B51: 6月13日-6月15日-阿联酋-2023年第十四届中国（阿联酋）贸易博览会 | C51: 40,000.00 | D51: 江门市一六八卫浴科技有限公司6月13日-6月15日-阿联酋-2023年第十四届中国（阿联酋）贸易博览会40000 | E51: 50
A52: 江门锦鼎金属制品实业有限公司 | B52: 2023年6月07日-6月10日上海中国(上海)国际厨房、卫浴设施展览会 | C52: 40,000.00 | D52: 江门锦鼎金属制品实业有限公司2023年6月07日-6月10日上海中国(上海)国际厨房、卫浴设施展览会40000 | E52: 51
A53: 江门锦鼎金属制品实业有限公司 | B53: 2023年6月13日-6月15日迪拜2023年第十四届中国（阿联酋）贸易博览会（春季展） | C53: 20,000.00 | D53: 江门锦鼎金属制品实业有限公司2023年6月13日-6月15日迪拜2023年第十四届中国（阿联酋）贸易博览会（春季展）20000 | E53: 52
A54: 开平市旭特五金实业有限公司 | B54: 第27届中国国际厨房、卫浴设施展览会 | C54: 20,000.00 | D54: 开平市旭特五金实业有限公司第27届中国国际厨房、卫浴设施展览会20000 | E54: 53
A55: 开平市澳佳卫浴有限公司 | B55: 第27届中国国际厨房、卫浴设施展览会 | C55: 40,000.00 | D55: 开平市澳佳卫浴有限公司第27届中国国际厨房、卫浴设施展览会40000 | E55: 54
A56: 江门市德美佳厨具有限公司 | B56: 2023年09月20日-09月22日南非2023年第七届中 国（南非）贸易博览会） | C56: 20,000.00 | D56: 江门市德美佳厨具有限公司2023年09月20日-09月22日南非2023年第七届中 国（南非）贸易博览会）20000 | E56: 55
A57: 江门市德美佳厨具有限公司 | B57: 2023年6月13日-6月15日-阿联酋（迪拜）-第十四届中国(阿联酋)贸易博览会 | C57: 20,000.00 | D57: 江门市德美佳厨具有限公司2023年6月13日-6月15日-阿联酋（迪拜）-第十四届中国(阿联酋)贸易博览会20000 | E57: 56
A58: 开平市海宏卫浴实业有限公司 | B58: 2023年第十五届中国（阿联酋）贸易博览会 | C58: 20,000.00 | D58: 开平市海宏卫浴实业有限公司2023年第十五届中国（阿联酋）贸易博览会20000 | E58: 57
A59: 开平市奇迪科压铸卫浴有限公司 | B59: 2023年第十届中国（巴西）贸易博览会 | C59: 20,000.00 | D59: 开平市奇迪科压铸卫浴有限公司2023年第十届中国（巴西）贸易博览会20000 | E59: 58
A60: 开平市奇迪科压铸卫浴有限公司 | B60: 2023年第十五届中国（阿联酋）贸易博览会 | C60: 20,000.00 | D60: 开平市奇迪科压铸卫浴有限公司2023年第十五届中国（阿联酋）贸易博览会20000 | E60: 59
A61: 开平市奇迪科压铸卫浴有限公司 | B61: 第27届中国国际厨房、卫浴设施展览会 | C61: 40,000.00 | D61: 开平市奇迪科压铸卫浴有限公司第27届中国国际厨房、卫浴设施展览会40000 | E61: 60
A62: 开平市健派卫浴有限公司 | B62: 第27届中国国际厨房、卫浴设施展览会 | C62: 20,000.00 | D62: 开平市健派卫浴有限公司第27届中国国际厨房、卫浴设施展览会20000 | E62: 61
A63: 开平市洁士五金科技有限公司 | B63: 2023年第十五届中国（阿联酋）贸易博览会 | C63: 20,000.00 | D63: 开平市洁士五金科技有限公司2023年第十五届中国（阿联酋）贸易博览会20000 | E63: 62
A64: 江门市诺基山厨卫科技有限公司 | B64: 2023年第十五届中国（阿联酋）贸易博览会 | C64: 20,000.00 | D64: 江门市诺基山厨卫科技有限公司2023年第十五届中国（阿联酋）贸易博览会20000 | E64: 63
A65: 广东伟祥卫浴实业有限公司 | B65: 第27届中国国际厨房、卫浴设施展览会 | C65: 40,000.00 | D65: 广东伟祥卫浴实业有限公司第27届中国国际厨房、卫浴设施展览会40000 | E65: 64
A66: 开平欧玛莎卫浴实业有限公司 | B66: 第27届中国(上海)国际厨房、卫浴设施展览会 | C66: 40,000.00 | D66: 开平欧玛莎卫浴实业有限公司第27届中国(上海)国际厨房、卫浴设施展览会40000 | E66: 65
A67: 开平市欧尚卫浴实业有限公司 | B67: 第27届中国国际厨房、卫浴设施展览会 | C67: 40,000.00 | D67: =A67&B67&C67 -> 开平市欧尚卫浴实业有限公司第27届中国国际厨房、卫浴设施展览会40000 | E67: 66
A68: 开平正霖卫浴实业有限公司 | B68: 2022中国国际厨房、卫浴设施展览会（第27届） | C68: 40,000.00 | D68: 开平正霖卫浴实业有限公司2022中国国际厨房、卫浴设施展览会（第27届）40000 | E68: 67
A69: 开平诺迪水暖器材有限公司 | B69: 第27届中国国际厨房、卫浴设施展览会 | C69: 40,000.00 | D69: 开平诺迪水暖器材有限公司第27届中国国际厨房、卫浴设施展览会40000 | E69: 68
A70: 广东高盛卫浴科技有限公司 | B70: 2023年12月11日到13日2023年第十届中国（巴西）贸易博览会 | C70: 20,000.00 | D70: 广东高盛卫浴科技有限公司2023年12月11日到13日2023年第十届中国（巴西）贸易博览会20000 | E70: 69
A71: 开平市蓝凯卫浴实业有限公司 | B71: 第 27 届中国国际厨房、卫浴设施展览会 | C71: 40,000.00 | D71: 开平市蓝凯卫浴实业有限公司第 27 届中国国际厨房、卫浴设施展览会40000 | E71: 70
A72: 开平市迪恩卫浴实业有限公司 | B72: 第27届中国国际厨房、卫浴设施展览会 | C72: 40,000.00 | D72: 开平市迪恩卫浴实业有限公司第27届中国国际厨房、卫浴设施展览会40000 | E72: 71
A73: 开平市达豪日化科技有限公司 | B73: 2023年11月23-25日-雅加达-第五届中国(印尼)贸易博览会 | C73: 20,000.00 | D73: 开平市达豪日化科技有限公司2023年11月23-25日-雅加达-第五届中国(印尼)贸易博览会20000 | E73: 72
A74: 开平市达豪日化科技有限公司 | B74: 2023年7月20-22日-上海-第116届中国日用百货商品交易会 | C74: 40,000.00 | D74: 开平市达豪日化科技有限公司2023年7月20-22日-上海-第116届中国日用百货商品交易会40000 | E74: 73
A75: 开平市达豪日化科技有限公司 | B75: 2023年12月19-21日-迪拜-第十五届中国(阿联酋)贸易博览会 | C75: 20,000.00 | D75: 开平市达豪日化科技有限公司2023年12月19-21日-迪拜-第十五届中国(阿联酋)贸易博览会20000 | E75: 74
A76: 开平市本铃机车密封垫有限公司 | B76: 2023年8月21日-8月24日俄罗斯（莫斯科）国际汽车零配件及售后服务展览会 | C76: 20,000.00 | D76: 开平市本铃机车密封垫有限公司2023年8月21日-8月24日俄罗斯（莫斯科）国际汽车零配件及售后服务展览会20000 | E76: 75
A77: 开平市雨派卫浴科技有限公司 | B77: 第27届中国国际厨房、卫浴设施展览会 | C77: 40,000.00 | D77: 开平市雨派卫浴科技有限公司第27届中国国际厨房、卫浴设施展览会40000 | E77: 76
A78: 广东好事多卫浴科技有限公司 | B78: 第27届中国国际厨房、卫浴设施展览会 | C78: 40,000.00 | D78: 广东好事多卫浴科技有限公司第27届中国国际厨房、卫浴设施展览会40000 | E78: 77
A79: 开平市汉顺洁具实业有限公司 | B79: 2023中国国际厨房、卫浴设施展览会(第27届) | C79: 40,000.00 | D79: 开平市汉顺洁具实业有限公司2023中国国际厨房、卫浴设施展览会(第27届)40000 | E79: 78
A80: 开平市卓阳卫浴实业有限公司 | B80: 2023年12月19日-12月21日阿拉伯联合酋长国（迪拜）2023年第十五届中国（阿联酋）贸易博览会 | C80: 20,000.00 | D80: 开平市卓阳卫浴实业有限公司2023年12月19日-12月21日阿拉伯联合酋长国（迪拜）2023年第十五届中国（阿联酋）贸易博览会20000 | E80: 79
A81: 开平太平洋卫浴实业有限公司 | B81: 第27届中国国际厨房、卫浴设施展览会 | C81: 20,000.00 | D81: 开平太平洋卫浴实业有限公司第27届中国国际厨房、卫浴设施展览会20000 | E81: 80
A82: 开平市迪朗五金塑料制品有限公司 | B82: 第27届中国国际厨房 、卫浴设施展览会 | C82: 30,000.00 | D82: 开平市迪朗五金塑料制品有限公司第27届中国国际厨房 、卫浴设施展览会30000 | E82: 81
A83: 江门市镇坚五金科技有限公司 | B83: 5月24日-5月26日-印尼- 2023 年第四届中国（印尼）贸易博览会 | C83: 40,000.00 | D83: 江门市镇坚五金科技有限公司5月24日-5月26日-印尼- 2023 年第四届中国（印尼）贸易博览会40000 | E83: 82
A84: 江门市镇坚五金科技有限公司 | B84: 6月13日-6月15日-阿联酋- 2023年第十四届中国（阿联酋）贸易博览会 | C84: 40,000.00 | D84: 江门市镇坚五金科技有限公司6月13日-6月15日-阿联酋- 2023年第十四届中国（阿联酋）贸易博览会40000 | E84: 83
A85: 江门市蓝森卫浴科技有限公司 | B85: 2023年第十五届中国（阿联酋）贸易博览会 | C85: 20,000.00 | D85: 江门市蓝森卫浴科技有限公司2023年第十五届中国（阿联酋）贸易博览会20000 | E85: 84
A86: 开平市澳林卫浴有限公司 | B86: 5月24日-5月26日-印尼- 2023年第四届中国（印尼）贸易博览会 | C86: 20,000.00 | D86: 开平市澳林卫浴有限公司5月24日-5月26日-印尼- 2023年第四届中国（印尼）贸易博览会20000 | E86: 85
A87: 广东华艺卫浴实业有限公司 | B87: 2023年1月至12月短期进出口信用保险项目 | C87: 149,473.61 | D87: 广东华艺卫浴实业有限公司2023年1月至12月短期进出口信用保险项目149473.61 | E87: 86
A88: 广东可味巧克力食品有限公司 | B88: 2023年1月至12月短期进出口信用保险项目 | C88: 26,064.10 | D88: 广东可味巧克力食品有限公司2023年1月至12月短期进出口信用保险项目26064.1 | E88: 87
A89: 广东泰宝聚合物有限公司 | B89: 2023年1月至12月短期进出口信用保险项目 | C89: 342,852.06 | D89: 广东泰宝聚合物有限公司2023年1月至12月短期进出口信用保险项目342852.06 | E89: 88
A90: 广东伟祥卫浴实业有限公司 | B90: 2023年1月至12月短期进出口信用保险项目 | C90: 32,984.00 | D90: 广东伟祥卫浴实业有限公司2023年1月至12月短期进出口信用保险项目32984 | E90: 89
A91: 江门市德美佳厨具有限公司 | B91: 2023年1月至12月短期进出口信用保险项目 | C91: 6,960.00 | D91: 江门市德美佳厨具有限公司2023年1月至12月短期进出口信用保险项目6960 | E91: 90
A92: 江门雅固卫浴实业有限公司 | B92: 2023年1月至12月短期进出口信用保险项目 | C92: 6,960.00 | D92: 江门雅固卫浴实业有限公司2023年1月至12月短期进出口信用保险项目6960 | E92: 91
A93: 开平柏斯高卫浴有限公司 | B93: 2023年1月至12月短期进出口信用保险项目 | C93: 5,987.95 | D93: 开平柏斯高卫浴有限公司2023年1月至12月短期进出口信用保险项目5987.95 | E93: 92
A94: 开平凯德家用电器有限公司 | B94: 2023年1月至12月短期进出口信用保险项目 | C94: 15,952.00 | D94: 开平凯德家用电器有限公司2023年1月至12月短期进出口信用保险项目15952 | E94: 93
A95: 开平美迪晨卫浴有限公司 | B95: 2023年1月至12月短期进出口信用保险项目 | C95: 21,500.00 | D95: 开平美迪晨卫浴有限公司2023年1月至12月短期进出口信用保险项目21500 | E95: 94
A96: 开平市安迪卫浴实业有限公司 | B96: 2023年1月至12月短期进出口信用保险项目 | C96: 14,139.68 | D96: 开平市安迪卫浴实业有限公司2023年1月至12月短期进出口信用保险项目14139.68 | E96: 95
A97: 开平市宝来塑胶制品有限公司 | B97: 2023年1月至12月短期进出口信用保险项目 | C97: 5,346.00 | D97: 开平市宝来塑胶制品有限公司2023年1月至12月短期进出口信用保险项目5346 | E97: 96
A98: 开平市博美卫浴有限公司 | B98: 2023年1月至12月短期进出口信用保险项目 | C98: 13,800.00 | D98: 开平市博美卫浴有限公司2023年1月至12月短期进出口信用保险项目13800 | E98: 97
A99: 开平市富丽雅实业有限公司 | B99: 2023年1月至12月短期进出口信用保险项目 | C99: 6,800.00 | D99: 开平市富丽雅实业有限公司2023年1月至12月短期进出口信用保险项目6800 | E99: 98
A100: 开平市汉玛克卫浴有限公司 | B100: 2023年1月至12月短期进出口信用保险项目 | C100: 7,000.00 | D100: 开平市汉玛克卫浴有限公司2023年1月至12月短期进出口信用保险项目7000 | E100: 99
A101: 开平市和洋洁具有限公司 | B101: 2023年1月至12月短期进出口信用保险项目 | C101: 7,697.80 | D101: 开平市和洋洁具有限公司2023年1月至12月短期进出口信用保险项目7697.8 | E101: 100
A102: 开平市骏源进出口贸易有限公司 | B102: 2023年1月至12月短期进出口信用保险项目 | C102: 3,126.11 | D102: 开平市骏源进出口贸易有限公司2023年1月至12月短期进出口信用保险项目3126.11 | E102: 101
A103: 开平市凯赛德水暖配件有限公司 | B103: 2023年1月至12月短期进出口信用保险项目 | C103: 8,112.48 | D103: 开平市凯赛德水暖配件有限公司2023年1月至12月短期进出口信用保险项目8112.48 | E103: 102
A104: 开平市蓝凯卫浴实业有限公司 | B104: 2023年1月至12月短期进出口信用保险项目 | C104: 4,997.00 | D104: 开平市蓝凯卫浴实业有限公司2023年1月至12月短期进出口信用保险项目4997 | E104: 103
A105: 开平市美年华服装有限公司 | B105: 2023年1月至12月短期进出口信用保险项目 | C105: 7,180.00 | D105: 开平市美年华服装有限公司2023年1月至12月短期进出口信用保险项目7180 | E105: 104
A106: 开平市奇迪科压铸卫浴有限公司 | B106: 2023年1月至12月短期进出口信用保险项目 | C106: 5,500.00 | D106: 开平市奇迪科压铸卫浴有限公司2023年1月至12月短期进出口信用保险项目5500 | E106: 105
A107: 开平市天雅塑料实业有限公司 | B107: 2023年1月至12月短期进出口信用保险项目 | C107: 7,082.10 | D107: 开平市天雅塑料实业有限公司2023年1月至12月短期进出口信用保险项目7082.1 | E107: 106
A108: 开平威技电器有限公司 | B108: 2023年1月至12月短期进出口信用保险项目 | C108: 26,766.00 | D108: 开平威技电器有限公司2023年1月至12月短期进出口信用保险项目26766 | E108: 107
A109: 开平依利安达电子第三有限公司 | B109: 2023年1月至12月短期进出口信用保险项目 | C109: 218,886.20 | D109: 开平依利安达电子第三有限公司2023年1月至12月短期进出口信用保险项目218886.2 | E109: 108
A110: 联冠（开平）胶粘制品有限公司 | B110: 2023年1月至12月短期进出口信用保险项目 | C110: 4,500.00 | D110: 联冠（开平）胶粘制品有限公司2023年1月至12月短期进出口信用保险项目4500 | E110: 109
A111: 银都拉玛（开平）高性能纤维有限公司 | B111: 2023年1月至12月短期进出口信用保险项目 | C111: 28,800.00 | D111: 银都拉玛（开平）高性能纤维有限公司2023年1月至12月短期进出口信用保险项目28800 | E111: 110
A112: 银都拉玛（开平）高性能纤维有限公司 | B112: 2023年1月至12月短期进出口信用保险项目 | C112: 3,440.00 | D112: 银都拉玛（开平）高性能纤维有限公司2023年1月至12月短期进出口信用保险项目3440 | E112: 111
A113: 开平施特珑卫浴产品有限公司 | B113: 2023年出口贸易信用险 | C113: 3,571.00 | D113: 开平施特珑卫浴产品有限公司2023年出口贸易信用险3571 | E113: 112
A114: 广东华艺卫浴实业有限公司 | B114: 2023年1月至12月中国出口信用保险公司资信服务 | C114: 19,200.00 | D114: 广东华艺卫浴实业有限公司2023年1月至12月中国出口信用保险公司资信服务19200 | E114: 113
A115: 广东科仕特精密机械有限公司 | B115: 2023年1月至12月中国出口信用保险公司资信服务 | C115: 2,700.00 | D115: 广东科仕特精密机械有限公司2023年1月至12月中国出口信用保险公司资信服务2700 | E115: 114
A116: 广东可味巧克力食品有限公司 | B116: 2023年1月至12月中国出口信用保险公司资信服务 | C116: 2,700.00 | D116: 广东可味巧克力食品有限公司2023年1月至12月中国出口信用保险公司资信服务2700 | E116: 115
A117: 广东泰宝聚合物有限公司 | B117: 2023年1月至12月中国出口信用保险公司资信服务 | C117: 20,000.00 | D117: 广东泰宝聚合物有限公司2023年1月至12月中国出口信用保险公司资信服务20000 | E117: 116
A118: 广东伟祥卫浴实业有限公司 | B118: 2023年1月至12月中国出口信用保险公司资信服务 | C118: 10,500.00 | D118: 广东伟祥卫浴实业有限公司2023年1月至12月中国出口信用保险公司资信服务10500 | E118: 117
A119: 广东意希诺科技有限公司 | B119: 2023年1月至12月中国出口信用保险公司资信服务 | C119: 300.00 | D119: 广东意希诺科技有限公司2023年1月至12月中国出口信用保险公司资信服务300 | E119: 118
A120: 江门雅固卫浴实业有限公司 | B120: 2023年1月至12月中国出口信用保险公司资信服务 | C120: 800.00 | D120: 江门雅固卫浴实业有限公司2023年1月至12月中国出口信用保险公司资信服务800 | E120: 119
A121: 开平柏斯高卫浴有限公司 | B121: 2023年1月至12月中国出口信用保险公司资信服务 | C121: 1,200.00 | D121: 开平柏斯高卫浴有限公司2023年1月至12月中国出口信用保险公司资信服务1200 | E121: 120
A122: 开平凯德家用电器有限公司 | B122: 2023年1月至12月中国出口信用保险公司资信服务 | C122: 1,200.00 | D122: 开平凯德家用电器有限公司2023年1月至12月中国出口信用保险公司资信服务1200 | E122: 121
A123: 开平美迪晨卫浴有限公司 | B123: 2023年1月至12月中国出口信用保险公司资信服务 | C123: 3,300.00 | D123: 开平美迪晨卫浴有限公司2023年1月至12月中国出口信用保险公司资信服务3300 | E123: 122
A124: 开平市安迪卫浴实业有限公司 | B124: 2023年1月至12月中国出口信用保险公司资信服务 | C124: 2,100.00 | D124: 开平市安迪卫浴实业有限公司2023年1月至12月中国出口信用保险公司资信服务2100 | E124: 123
A125: 开平市宝来塑胶制品有限公司 | B125: 2023年1月至12月中国出口信用保险公司资信服务 | C125: 1,200.00 | D125: 开平市宝来塑胶制品有限公司2023年1月至12月中国出口信用保险公司资信服务1200 | E125: 124
A126: 开平市博美卫浴有限公司 | B126: 2023年1月至12月中国出口信用保险公司资信服务 | C126: 5,100.00 | D126: 开平市博美卫浴有限公司2023年1月至12月中国出口信用保险公司资信服务5100 | E126: 125
A127: 开平市富丽雅实业有限公司 | B127: 2023年1月至12月中国出口信用保险公司资信服务 | C127: 400.00 | D127: 开平市富丽雅实业有限公司2023年1月至12月中国出口信用保险公司资信服务400 | E127: 126
A128: 开平市汉玛克卫浴有限公司 | B128: 2023年1月至12月中国出口信用保险公司资信服务 | C128: 900.00 | D128: 开平市汉玛克卫浴有限公司2023年1月至12月中国出口信用保险公司资信服务900 | E128: 127
A129: 开平市和洋洁具有限公司 | B129: 2023年1月至12月中国出口信用保险公司资信服务 | C129: 800.00 | D129: 开平市和洋洁具有限公司2023年1月至12月中国出口信用保险公司资信服务800 | E129: 128
A130: 开平市红日制衣有限公司 | B130: 2023年1月至12月中国出口信用保险公司资信服务 | C130: 400.00 | D130: 开平市红日制衣有限公司2023年1月至12月中国出口信用保险公司资信服务400 | E130: 129
A131: 开平市骏源进出口贸易有限公司 | B131: 2023年1月至12月中国出口信用保险公司资信服务 | C131: 400.00 | D131: =A131&B131&C131 -> 开平市骏源进出口贸易有限公司2023年1月至12月中国出口信用保险公司资信服务400 | E131: 130
A132: 开平市凯赛德水暖配件有限公司 | B132: 2023年1月至12月中国出口信用保险公司资信服务 | C132: 4,200.00 | D132: 开平市凯赛德水暖配件有限公司2023年1月至12月中国出口信用保险公司资信服务4200 | E132: 131
A133: 开平市蓝凯卫浴实业有限公司 | B133: 2023年1月至12月中国出口信用保险公司资信服务 | C133: 2,100.00 | D133: 开平市蓝凯卫浴实业有限公司2023年1月至12月中国出口信用保险公司资信服务2100 | E133: 132
A134: 开平市奇迪科压铸卫浴有限公司 | B134: 2023年1月至12月中国出口信用保险公司资信服务 | C134: 1,200.00 | D134: 开平市奇迪科压铸卫浴有限公司2023年1月至12月中国出口信用保险公司资信服务1200 | E134: 133
A135: 开平市天雅塑料实业有限公司 | B135: 2023年1月至12月中国出口信用保险公司资信服务 | C135: 400.00 | D135: 开平市天雅塑料实业有限公司2023年1月至12月中国出口信用保险公司资信服务400 | E135: 134
A136: 开平市炜华制衣有限公司 | B136: 2023年1月至12月中国出口信用保险公司资信服务 | C136: 400.00 | D136: 开平市炜华制衣有限公司2023年1月至12月中国出口信用保险公司资信服务400 | E136: 135
A137: 开平市中贸进出口有限公司 | B137: 2023年1月至12月中国出口信用保险公司资信服务 | C137: 400.00 | D137: 开平市中贸进出口有限公司2023年1月至12月中国出口信用保险公司资信服务400 | E137: 136
A138: 开平依利安达电子第三有限公司 | B138: 2023年1月至12月中国出口信用保险公司资信服务 | C138: 20,000.00 | D138: 开平依利安达电子第三有限公司2023年1月至12月中国出口信用保险公司资信服务20000 | E138: 137
A139: 联冠（开平）胶粘制品有限公司 | B139: 2023年1月至12月中国出口信用保险公司资信服务 | C139: 4,200.00 | D139: 联冠（开平）胶粘制品有限公司2023年1月至12月中国出口信用保险公司资信服务4200 | E139: 138
A140: 银都拉玛（开平）高性能纤维有限公司 | B140: 2023年1月至12月中国出口信用保险公司资信服务 | C140: 900.00 | D140: 银都拉玛（开平）高性能纤维有限公司2023年1月至12月中国出口信用保险公司资信服务900 | E140: 139
